{"text_format":"1","workbook":"xlsx","n_sheets":5,"sheets":["Filtration lab test data base ","Reference data base","Pivot table","Market list","Drop-down list"],"not_rendered":{"charts":0,"images":0,"macros":1,"external_links":0,"defined_names":11,"comments":0,"pivot_tables":1},"unopened":[],"bounds":{"document_bytes":16777216,"sheet_cells":100000,"rows_first":2000,"rows_last":500,"rows_between":2000,"halvings":0,"cell_chars":16384,"cell_head_chars":4096},"cells_cut":0,"cells_raw":0,"read":"whole","date_system":"1900"}

{"sheet":"Filtration lab test data base ","index":0,"n_rows":143,"n_cols":61,"rows_kept":143,"cut":false,"hidden":false,"merged":[[0,2,0,11],[0,51,0,59],[0,12,0,16],[0,17,0,28],[0,29,0,43],[0,44,0,50]]}
[null,null,"Slurry parameters",null,null,null,null,null,null,null,null,null," /!\\ Tested /!\\ slurry parameters",null,null,null,null,"Clients' target",null,null,null,null,null,null,null,null,null,null,null,"Filtration test parameters",null,null,null,null,null,null,null,null,null,null,null,null,null,null,"Performances reached",null,null,null,null,null,null,"Report/Selling data"]
[null,null,"Market","Submarket","Product","Csolid (w/w %)","Tslurry (°C)","Densityslurry","Densitysolid","Viscosity (cP)","d50 (μm)","pH","Csolid,tested (w/w %)","Tslurry,tested (°C)","Densityslury,tested ","Densitysolid,tested","pHtested","Productiontarget (T/h)","Production priority","Cake moisturetarget (%)","Cake moisture priority","Csolid in filtrate,target (%)","Csolid in filtrate priority","Cake analysistarget","Cake analysis priority","Filtrate analysistarget","Filtrate analysistarget priority","Global wash ratiotarget (m3/Tdry solid)","Global wash ratio priority","Cloth - permeability (L/dm2/min) - weaving","Thicknesscake (mm)","Pick-up time (s)","Washing agent and method","Twashing (°C)","Global wash ratio (m3/Tdry solid)","Washing agent pH","Washing agent conductivity (µS/cm)","Interzone (s)","tdrying (s)","Steam hood (Tested/Kept)","Press (Tested/Kept)","Flocculancts(F)/Surfactants(S) (Tested/Kept)","Cycle time (s)","Filtrability (kg/h/m2)","Production (T/h)","Cake moisture (%)","Cake moisture with artifice (%)","Csolid in filtrate (%)","Impurity","Cake analysis","Filtrate analysis","TG","Customer","Report date","Kind of filter","Sold (Yes/No)","Start-up date","Filter reference number","Project number","Hasler Group Standard / Area","Comments"]
[null,null,null,null,"Dichromate sodium","/","/","/","/","/","/","/",20.7,80,1.4795,"/",8.6999999999999993,"/","/","/","/","/","/","/","/","/","/","/","/","(20μm)",6,80,"/","/","/","/","/","/","/","No/No","No/No","No/No","/","/","/","/","/","/","/","/","/",3095,"Viscnu chemicals","08/2009","FAB","YES","/","/","/","/"]
[null,null,"MMF",null,"Coal ","/","/","/","/","/","/","/","/","/","/","/","/","/","/","/","/","/","/","/","/","/","/","/","/","Cltoh 7450","/",50,"/","/","/","/","/","/",30,"No/No","No/No","No/No","/",576,"/",39.1,"/",0.1,"/","/","/",3357,"IPAS","06/2001","FAB","/","/","/","/","/","Lab test were not converted into an offer"]
[null,null,"MMF","G3 Industrial minerals","Jarosite","/","/","/","/","/","/","/","330 g/l",31,"/","/","/",25,1,"/","/","/","/","/","/","/","/","/","/","25141AN - 200 - Mono","/","/","/","/","/","/","/","/","/","No/No","No/No","No/No","/",570,"/","/","32-34(pressure)","/","/","/","/",3412,"OUTOKUMPU ZINC OY","12/2001","FAB","/","/","/","/",44]
[null,null,"MMF","L3 Zinc and cadmium","Sulphur","/","/","/","/","/","/","/","145 g/l",65,"/","/","/",13.5,"/","/","/","/","/","Zinc<0,2%","/","/","/","/",null,"25141AN - 200 - Mono","/","/","/","/",1.1399999999999999,"/","/","/",15,"No/No","No/No","No/No","/",115,null,49.5,"42 (pressure)",null,"Zinc",1E-3,"/",3412,"OUTOKUMPU ZINC OY","12/2001","FAB","/","/","/","/",118,"Cake moisture was in fact between 31,5 and 49,5. The cake moisture covered a wide range of value because of the variations of the pulp (concentration between 110 and 190 g/l)"]
[null,null,"MMF","G3 Industrial minerals","Nyobium","/","/","/","/","/","/","/","/","/","/","/","/",1,"/","/","/","/","/","P205 removal","/","/","/","/","/","Multi",5,30,"Acidulated water (by chloridric acid 10%)","/",0.4,"/","/","/",15,"No/No","No/No","No/No","/",335,1,"/","/","/","P205","0,07 (unit?)","/",3417,"La Mine Niobec","11/1999","FAB","/","/","/","/",5]
[null,null,"MMF","U3 Pyrometallurgy - calcinators - minerals kiln feed","Calcine","/","/","/","/","/","/","/","/",65,"/","/","/",3,1,"/","/","/","/","/","/","/","/","/","/","Multi - low permeability",5,"/","Water",65,"/","/","/","/","/","No/No","No/No","No/No","/",113,3,35,"/","Clear","/","/","/",3422,"N Komati AVMIN","07/2001","FAB","/","/","/","/",35]
[null,null,"MMF","F3 Copper","Copper concentrate K.D.P.M","/","/","/","/","/","/","/","/",20,1.55,"/","/",50,2,"<11%",1,"/","/","/","/","/","/","/","/","Double layer mono (polypropylen)",7,"/","/",75,0.4,"/","/","/","/","No/No","Yes/Yes","(F) - 30g/Tdry solids 0,5g/l/Yes","/",700,50,16,"45(without flocculent) 18 (Hot water washing + surfactant) 14,5 (press without flocculent) 13,8 (press with flocculent) 11,33 (flocculent +surfactant + hot water washing + press)","/","/","/","/",3422,"Konkola Copper Mines plc","09/2001","FR","YES","/",null,"/","2*50","Filtrates are not important as they go back to thickener; drying time has little influence on final cake moisture."]
[null,null,"MMF","F3 Copper","Leach slurry","/","/","/","/","/","/","/","/","/","/","/","/",720,"/","/","/","/","/","/","/","Cu and Co wash recovery","/","/","/","/","/","/","Acidified water pH3 (H2SO4) - 1D",20,0.45,"/","/","/","/","No/No","No/No","(F) \"no ionic\" - 13g/Tdry solids 0,5g/l/Yes","/",1500,720,19,"/","Clear","Cu and CO","/",">99,5%",3445,"KOLWEZI Pilot Plant","09/2001","FAB","/","/","/","/","4*172"]
[null,null,"MMF","F3 Copper","Copper slurry |Pre - Leach Slurry","/","/","/","/","/","/","/",68,24,"/","/","/",320,"/","<20","/","/","/","/","/","/","/","/","/","Mono (polyester)",45,"/","/","/","/","/","/","/","/","No/No","No/No","(F) 14g/Tdry solids/Yes","/",300,320,20,"/","/","/","/",null,3445,"MINTEK - KOLWEZI","02/2005","FAB","/","/","/","/","1*108"]
[null,null,"MMF","F3 Copper","Copper slurry |Post - Leach Slurry",68,"/","/","/","/","/","/",61,24,"/","/","/",320,"/","/","/","/","/","/","/","Cu and CO>98%","/","/","/","Mono (polyester)",28,"/","Acidified water pH3 (H2SO4) - 1D+1CC","/",0.33,"/","/","/","/","No/No","No/No","(F) 22g/Tdry solids/Yes","/",1950,320,"/","/","/","Cu and CO","/",">98%",3445,"MINTEK - KOLWEZI","02/2005","FAB","/","/","/","/","2*91","Washing with a counter current instead of a direct saves water and makes the global wash ratio drop from 0,45 to 0,33m3/h with the same Cu/Co recovery performances. The filtrability also decreases with a counter current going from 2700 kg/h/m2 to 1950 kg/h/m2 resulting in a sizing of 2*91 instead of 1*128."]
[null,null,"MMF","L3 Zinc and cadmium","Zinc","/","/","/","/","/","/","/","/","/","/","/","/",100,"/","/","/","/","/","/","/","/","/","/","/","2666PP - 300 - Mono/mono (polypropylene) ","/","/","/","/","/","/","/","/","/","No/No","No/No","(F) \"no ionic and anionic\" 30g/Tdry solids/Yes","/",1300,100,20,"/","/","/","/","/",3478,"Gamsberg","06/2001","FAB","/","/","/","/",84,"Filtration without a thickened slurry would lead to a sizing that is too important"]
[null,null,"MMF","N3 Nickel, Cobalt and Manganese","Nickel suspension","/","/","/","/","/","/","/","/","/","/","/","/","/","/","minimum","/","/","/","\"Good wash efficiency\"","/","/","/","/","/","Mono (polypropylene)",20,"/","\"Solution\" ",60,1.4,"/","/","/","/","No/No","No/No","No/No","/",2200,"/",4,"/","Clear","S - SO4","0,110% - 0,329%","/",3492,"IMPALA","10/2000","FAB","/","/","/","/","/"]
[null,null,"MMF","N3 Nickel, Cobalt and Manganese","Cobalt suspension","/","/","/","/","/","/","/","/","/","/","/","/","/","/","minimum","/","/","/","\"Good wash efficiency\"","/","/","/","/","/","Mono (polypropylene)",20,"/","\"Solution\" ",60,1,"/","/","/","/","No/No","No/No","No/No","/",3000,"/",7,"/","Clear","S -SO4","0,250% - 0,733%","/",3492,"IMPALA","10/2001","FAB","/","/","/","/","/"]
[null,null,"MMF","G3 Industrial minerals","Jarosite","/","/","/","/","/","/","/","/","/","/","/","/","/","/","/","/","/","/"," Zinc<1%",1,"/","/","/","/","Quality 5050 - 150 - Mono/mono (polypropylen)",6,"/","Water",30,1.2,"/","/","/","/","No/No","No/No","No/No","/",200,"/",40,"/","/","Zinc","<1%","/",3497,"Cajamarquilla","11/2000","FAB","/","/","/","/","/"]
[null,null,"MMF","T3 Other metals","Pb/Ag residu","/","/","/","/","/","/","/","/","/","/","/","/","/","/","/","/","/","/"," Zinc<1%",1,"/","/","/","/","Quality 5050 - 150 - Mono/mono (polypropylen)",6,"/","Water",30,2.2000000000000002,"/","/","/","/","No/No","No/No","No/No","/",50,"/",60,"/","/","Zinc","<1%","/",3497,"Cajamarquilla","11/2000","FAB","/","/","/","/","/"]
[null,null,"CCH","G4 Specialty polymers and resins","Furfural resin","/","/","/","/","/","/","/",null,null,1.2,null,null,null,null,null,null,null,null,null,null,null,null,null,null,null,null,null,null,null,null,null,null,null,null,null,null,null,null,null,null,null,null,null,null,null,null,3528,"TFC Furfural","07/2001","FAB & FR"]
[null,null,"CCH","G4 Specialty polymers and resins","Furfural resin","/","/","/","/","/","/","/","/","/",1.2,"/","/","/","/","/","/","/","/","/","/","/","/","/","/","95125 AM",30,20,"1D","/",2.5,"/","/","/","/","No/No","No/No","No/No","/","/","/","/","/","/","/","/","/",3528,"TFC Furfural","06/2001","FAB / FR","/","/",null,"/","/"]
[null,null,null,null,"Dye | Rouge 4B","/","/","/","/","/","/","/","/",40,"/","/","/","/","/","/","/","/","/","/","/","/","/","/","/","95125 AM",13,"/","/",40,"/","/","/","/","/","No/No","No/No","No/No","/",260,"/",71,"/",0.155,"/","/","/",3529,"Steiner","06/2001","FR","/","/",null,"/","/"]
[null,null,null,null,"Dye | Base de brun","/","/","/","/","/","/","/","/",20,"/","/","/","/","/","/","/","/","/","/","/","/","/","/","/","95125 AM",9,"/","/",20,"/","/","/","/","/","No/No","No/No","No/No","/",85,"/",65,"/",0.155,"/","/","/",3529,"Steiner","06/2001","FR","/","/",null,"/","/"]
[null,null,null,null,"Dye | Base de chryoidine","/","/","/","/","/","/","/","/",20,"/","/","/","/","/","/","/","/","/","/","/","/","/","/","/","95125 AM",8,"/","/",20,"/","/","/","/","/","No/No","No/No","No/No","/",28,"/",76,"/",0.155,"/","/","/",3529,"Steiner","06/2001","FR","/","/",null,"/","/"]
[null,null,null,null,"EAF Dust | Slurry B","/","/","/","/","/","/","/","/","/","/","/","/",11.2,"/","/","/","/","/","chlorides<0,2%","/","/","/","/","/","Double layer mono/multi (polypropylen)",6,"/","1D","/",0.6,"/","/","/",30,"No/No","No/No","No/No","/",205,11.2,23,"/",5,"Chloride","<0,2%","/",3531,"Paul Wurth","09/2001","FAB","/","/","/","/",60]
[null,null,null,null,"EAF Dust |Slurry C","/","/","/","/","/","/","/","/","/","/","/","/",8,"/","/","/","/","/","chlorides<0,2%","/","/","/","maximum of  0,45","/","Double layer mono/multi (polypropylen)",6,"/","1D","/",0.6,"/","/","/",30,"No/No","No/No","No/No","/",205,8,26,"/",5,"Chloride",">0,2%","/",3531,"Paul Wurth","09/2001","FAB","/","/","/","/",60]
[null,null,"MMF","D3 Uranium","Uranium leach residue | Blend 82/18 (%)","/","/","/","/","/","/","/","/",25,"/","/","/",2000,"/","/","/","/","/","/","/","U308",1,"/","/","900 (polyester)",35,"/","Barren and tap water","/","0,4 - 0,07","/","/","/",18,"No/No","No/No","(F) RMG 129 LWM - 20g/Tdry solids 0,5g/l/Yes","/",3200,2000,14,"/","/","U308",1E-3,"/",3533,"Rössing","05/2002","FAB","/","/","/","/","6*151","The slurry is a blend of underflow cyclone (82%) and slime (18%). The slime has a solid concentration around 40% (d=1,4) and the underflow cyclone around 75% (d=1,9)"]
[null,null,"MMF","D3 Uranium","Uranium leach residue | Blend 80/20 (%)","/","/","/","/","/","/","/","/",25,"/","/","/",2000,"/","/","/","/","/","/","/","U308",1,"/","/","900 (polyester)",28,"/","Barren and tap water","/","0,4 - 0,07","/","/","/",18,"No/No","No/No","(F) RMG 129 LWM - 20g/Tdry solids 0,5g/l/Yes","/",3000,2000,16,"/","/","U308",1E-3,"/",3533,"Rössing","05/2002","FAB","/","/","/","/","6*151","The slurry is a blend of underflow cyclone (80%) and slime (20%). The slime has a solid concentration around 40% (d=1,4) and the underflow cyclone around 75% (d=1,9)"]
[null,null,"MMF","D3 Uranium","Uranium leach residue | Blend 77/23 (%)","/","/","/","/","/","/","/","/",25,"/","/","/",2000,"/","/","/","/","/","/","/","U308",1,"/","/","900 (polyester)",27,"/","Barren and tap water","/","0,4 - 0,07","/","/","/",18,"No/No","No/No","(F) RMG 129 LWM - 24g/Tdry solids 0,5g/l/Yes","/",2200,2000,15,"/","/","U308",1E-3,"/",3533,"Rössing","05/2002","FAB","/","/","/","/","6*151","The slurry is a blend of underflow cyclone (77%) and slime (23%). The slime has a solid concentration around 40% (d=1,4) and the underflow cyclone around 75% (d=1,9)"]
[null,null,"MMF","D3 Uranium","Uranium leach residue","/","/","/","/","/","/","/","/",25,"/","/","/",2000,"/","/","/","/","/","/","/","U308",1,"/","/","900 (polyester)",23,"/","Barren and tap water","/","0,4 - 0,07","/","/","/",18,"No/No","No/No","(F) RMG 129 LWM - 20g/Tdry solids 0,5g/l/Yes","/",1500,2000,13,"/","/","U308",3.3E-3,"/",3533,"Rössing","05/2002","FAB","/","/","/","/","6*151"]
[null,null,"MMF","A1 Phosphoric acid","H3PO4","/","/","/","/","/","/","/",26,58,1.25,null,null,null,null,33,null,null,null,"P205 < 3,5% - K2O < 0,5%",null,null,null,null,null,null,17,8,"\"Dirty\" water + Tapwater\"",58,0.28999999999999998,"/","/",null,null,"No/No","No/No","No/No","/",null,106.25,"<26",null,"/","P205 - K2O","3,13 - 0,66",null,3954,"ROTEM","11/2009","FAB","Yes",1991,"/","/",40]
[null,null,"CCH","H4 Soda Ash","Soda Ash","/","/","/","/","/","/","/",21,30,1.31,"/","/","/","/","/","/","/","/","/","/","/","/","/","/","RPADL50",25,7.5,"\"Counte current\"","/","<0,7","/","/","/","/","No/No","No/No","No/No","/","/","2*50",16.5,"/","/","NaCl",6.9999999999999999E-4,"/",4086,"Ciech Matwy","04/2013","FAB","Yes",2014,"/","1686 - 01","2*73,5"]
[null,null,"CCH","H4 Soda Ash","Soda Ash","/","/","/","/","/","/","/",21,30,1.3,"/","/","/","/","/","/","/","/","/","/","/","/","/","/","RPADL50",25,7.5,"\"Counte current\"","/","<0,7","/","/","/","/","No/No","No/No","No/No","/","/","2*37,5",16,"/","/","NaCl",5.9999999999999995E-4,"/",4086,"Ciech Janikowo","04/2013","FAB","Yes",2014,"/","1686 - 02","2*54"]
[null,null,"CCH","H4 Soda Ash","Soda Ash","/","/","/","/","/","/","/",14.5,39,1.242,null,null,null,null,null,null,null,null,"chlorides<0,15%",1,null,null,null,null,"RPA DL 50",40,12,"Process water - \"Counter Current\"",40,0.85,"/","/",null,90,"No/No","No/No","No/No","/",1050,108,16,"/","/","Chloride","<0,15%",null,4112,"LONGSHAN","03/2014","FAB","Yes",2015,null,2238,"108 m2 Lab test result but 81 m2 actually sold"]
[null,null,null,null,null,null,null,null,null,null,null,null,8,90,1.7,null,null,null,null,"<30",null,"<0,1%",null,"P2O5 < 2",null,null,null,null,null,"07-8430-W120 - 1680 - ",5,null,"\"No washing required\"","\"No washing required\"","\"No washing required\"","\"No washing required\"","\"No washing required\"","\"No washing required\"","\"No washing required\"","No/No","No/No","No/No","/",300,null,"< 30",null,"0,5",null,null,null,4155,"LIFOSA","10/2015","FAB","Yes",2016,null,"CC3615",20]
[null,null,"MMF","J3 Metals recycling","Aluminium slags",15,20,1.22,"/","/","/","/",20,"/","/","/","/",3.9,"/","<25","/","minimum","/","chlorides<0,15%","/","/","/","<1,33","/","RPA K85",6,"/","Process water - 3D",20,1.85,"/","/","/",34,"No/No","No/No","(F) 50g/T dry solids / Yes","/",175,3.9,"/","34 (flocculant)","<0,2","Chloride","<1,5%","/",4156,"RESAL","12/2015","FAB","Yes",2016,"/","CC3682",25]
[null,null,"MMF","J3 Metals recycling","Aluminium slags",45,29,1.4,"/","/","/",11.8,"/","/","/","/","/","/","/","/","/","/","/","/","/","/","/","/","/","/",13,75,"/","/","14 m3/h","/","/","/","/","No/No","No/No","(F) 400g/Tdry solids \"concentration of 3%\"/No","/","/","/","/","/","/","/","/","/",4178,"RESAL - Spain","04/2018","FAB","Yes",2016,"/","RC3682","25B20","Audit process"]
[null,null,"MMF","A1 Phosphoric acid","H3PO4",null,null,null,null,null,"125 - 200",null,60,40,1.7110000000000001,null,null,null,null,"<15",null,"<0,1%",null,null,null,null,null,null,null," 783 - Monofilament",50,null,null,null,null,"/","/",null,45,"No/No","No/No","No/No","/",5170,124.1,15,null,"0,13",null,null,null,4219,"LEBANON CHEMICALS","10/2017","FAB","Yes",2003,null,216,24]
[null,null,null,null,"/",null,null,null,null,null,null,null,null,null,null,null,null,null,null,null,null,null,null,null,null,null,null,null,null,null,null,null,null,null,null,null,null,null,null,null,null,null,null,null,null,null,null,null,null,null,null,4301,"SIMPLOT Pocatello - Don Plant","06/2022","ATF"]
[null,null,"CCH","P4 Other chemicals","Product Y","/","/","/","/","/","/","/",7.25,82,1,"/",8,"/","/","/","/","/","/","/","/","/","/","/","/","MICHELIN KARLSRUHE - 283 - Mono ",22.5,8.5,"No washing","No washing","No washing","No washing","No washing","No washing",30,"Yes/No","Yes/Yes","(S)/No",50,1000,"/",30,"23 (surfactant or pressure) 27 (hot air)","/","/","/","/",4305,"MICHELIN KARLSRUHE","04/2019","FR","/","/",null,"/",3,"Moisture varies heavly between 25 and 32% because of the variations of the entering slurry. Injection of hot air does not have any impact on cake moisture. Pressure and surfactant have a good impact on cake moisture."]
[null,null,"MMF","N3 Nickel, Cobalt and Manganese","Gypsum",19,67.5,1.1850000000000001,"/","/","/",6,19.8,67.5,1.17,"/",5.98,55,"/",45,"/","\"back to decanter\"","/","/","/","Recovery = 95,5","/","/","/","C. CRAMER & CO. - 360 - Mono/mono",25,7,"Water - 2CC+1D",50,1,7,"/","/",12,"No/No","No/No","(F)AN 910 SH - 65g/Tdry solids 0,5g/L/Yes",68,648,"78",45.7,"46,9 (flocculant)",0.05,"/","/","Recovery > 99%",4307,"VALE NOUVELLE CALEDONIE","06/2019","FAB","/","/","/","/","4*120 (120B40)","Concentration in solids varies heavly between the days of tests (from 23,7 to 18). Concentration of Ni in solids around 0,6%; Concentration of Ni in aqueous phase around 2400 mg/L. Other flocculant from SNF were tested but AN 910 SH was the best. Flocculants were used by VALE but was prouved to be non-necessary."]
[null,null,"MMF","N3 Nickel, Cobalt and Manganese","Gypsum",19,67.5,1.1850000000000001,"/","/","/",6,19.8,67.5,1.17,"/",5.98,55,"/",45,"/","\"back to decanter\"","/","/","/","Recovery = 95,5","/","/","/","C. CRAMER & CO. - 360 - Mono/mono",25,7,"Water - 2CC+1D",50,1,7,"/","/",12,"No/No","No/No","(F)AN 910 SH - 65g/Tdry solids 0,5g/L/No",68,608,"73",45.7,"46,9 (flocculant)",0.3,"/","/","Recovery > 99%",4307,"VALE NOUVELLE CALEDONIE","06/2019","FAB","/","/","/","/","4*120 (120B40)","Concentration in solids varies heavly between the days of tests (from 23,7 to 18). Concentration of Ni in solids around 0,6%; Concentration of Ni in aqueous phase around 2400 mg/L. Other flocculant from SNF were tested but AN 910 SH was the best. Flocculants were used by VALE but was prouved to be non-necessary."]
[null,null,"MMF","K3 Waste/dust tailing valorization","PX301 - Gypsum","/","/","/","/","/","/","/",18.5,"/",1.1499999999999999,"/","/","/","/","/","/","/","/","/","/","/","/","/","/","120 (30µm) - Mono/mono Std",25,5.5,"Distilled water - 1CC+1D",20,0.33,"/","/","/",60,"No/No","Yes/No","(S)/No",76,568,"8,1","<35","25 (pressure) 28(surfactant) 18(pressure+surfactant)",0.05,"Zinc",2E-3,"/",4309,"American Zinc Products LLC - Mooresboro Plant","04/2019","FAB","/","/","/","/",14.3]
[null,null,"MMF","K3 Waste/dust tailing valorization","PX301 - Gypsum","/","/","/","/","/","/","/",18.5,"/",1.1499999999999999,"/","/","/","/","/","/","/","/","/","/","/","/","/","/","120 (50µm) - Mono/mono Std",25,"/","Distilled water - 1CC+1D",20,0.31,"/","/","/",60,"No/No","Yes/No","(S)/No",76,606,"8,7",30,"19 (pressure+surfactant)",0.1,"Zinc","0,225%","/",4309,"American Zinc Products LLC - Mooresboro Plant","04/2019","FAB","/","/","/","/",14.3]
[null,null,"MMF","K3 Waste/dust tailing valorization","PX301 - Gypsum","/","/","/","/","/","/","/",18.5,37.5,1.1499999999999999,"/","/","/","/","/","/","/","/","/","/","/","/","/","/","120 (30µm)  - Double Layer",25,"/","Distilled water - 1CC+1D",20,0.33,"/","/","/",120,"No/No","No/No","No/No",136,318,"4,5",30,"/",0.05,"Zinc",8.9999999999999998E-4,"/",4309,"American Zinc Products LLC - Mooresboro Plant","04/2019","FAB","/","/","/","/",14.3]
[null,null,"CCH","P4 Other chemicals","Styrene","/","/","/","/","/","/","/","/","/","/","/","/","/","/","/","/","/","/","/","/","/","/","/","/","/","/","/","/","/","/","/","/","/","/","/","/","/","/","/","/","/","/","/","/","/","/",4315,"Mixt Composites Recyclables","06/2019","Not adapted to filtration","/","/",null,"/",null,"None of the cloth tested enabled filtration, test with a precoat wasn't conclusive."]
[null,null,"MMF","D3 Uranium","Yellow cake diluted (Uranium)","/","/","/","/","/",8.0020000000000007,"/",13,20,1.1399999999999999,"/",3.5,"/","/","minimum","/","/","/","/","/","Recovery > 95%","/","minimum","/","12 - Double Layer Mono/multi",5,220,"Tests dropped","Tests dropped","Tests dropped","Tests dropped","Tests dropped","Tests dropped","Tests dropped","Tests dropped","Tests dropped","(F)/No","Tests dropped","Tests dropped","/","Tests dropped","Tests dropped",0.28000000000000003,"/","/","Tests dropped",4316,"Nex Gen - Wood","07/2019","Not adapted to FAB","/","/",null,"/",null,"Yellow cake diluted due to high viscosity, 26% solids content in the slurry before dilution; \"d50 too low, the product doesn't correspond to standard Yallow cake and cannot be considered as representative.\"; solids are too thin and go through cloths; filtration time too high; (F) injections: 1st- 70% ; 2nd: 30%/ Flocculant tested: AN 905 SH; AN 910 SH, AN 923 SH, AN 945 SH, AN 956 SH, AN 977 SH, FA 920 SH, AH 912 SH, FO 4190, FO 4440, FO 4650 / Tested flocculants do not have any impact on filtration time. Tests were droped after discussion"]
[null,null,"MMF","D3 Uranium","Gypsum LUGP (Uranium)","/","/","/","/","/",39.6,"/",24.3,20,1.1599999999999999,"/",3,"/","/","minimum","/",0.5,"/","pH=6,5","/"," Recovery > 99,75%","/","minimum","/","120 - Double Layer Mono/mono",37.5,11,"Tap Water - 2D","/",1.25,8,"/","/",60,"No/No","Yes/?","No/No","/",670,7,30,"22,5 (pressure)",2.5999999999999999E-2,"/","pH = 6,5","Recovery = 99,86%",4316,"Nex Gen - Wood","07/2019","FAB","/","/","/","/",10.5,"decreases and the content of solids in the cake increases with the use of pressure"]
[null,null,"MMF","D3 Uranium","Leach residue + Gypsum + Precipitates HPG (Uranium)","/","/","/","/","/",14.24,"/",25,20,1.06,"/",7,"/","/","minimum","/",0.5,"/","/","/","/","/","/","/","840 - Double Layer Mono/mono",11,90,"No washing","No washing","No washing","No washing","No washing","No washing",30,"No/No","Yes/No","(F)FA920SH - 275g/Tdry solids 0,5g/L/Yes","/",230,"/",39,"44 (flocculant and pressure)",0.29299999999999998,"/","/","/",4316,"Nex Gen - Wood","07/2019","FAB","/","/","/","/",null,"(F) injections: 1st- 70% ; 2nd: 30%; all flocculants tested: AN 905  SH, AN 923 SH, FA 920 SH"]
[null,null,"MMF","D3 Uranium","Leach Residue + Tailings  HP (Uranium)","/","/","/","/","/",22,"/",27.5,20,1.1000000000000001,"/",9,"/","/","minimum","/","/","/","/","/","/","/","/","/","260 - Double Layer Mono/mono",8,100,"No washing","No washing","No washing","No washing","No washing","No washing",30,"No/No","Yes/No","(F) FA920SH - 325g/Tdry solids 0,5g/L/Yes","/",400,39,44.5,"tdrying = 60s: 39,5(pressure), 43(surfactant)",4.1700000000000001E-2,"/","/","/",4316,"Nex Gen - Wood","07/2019","FAB","/","/","/","/",null,"(F) injections: 1st- 70% ; 2nd: 30%; all flocculants tested: AN 905  SH, AN 923 SH, FA 920 SH"]
[null,null,"MMF","D3 Uranium","Neutralized Leach Residue HGNLR (Uranium)","/","/","/","/","/",21.61,"/",49,20,1.45,"/",8.5,"/","/","minimum","/","/","/","/","/","/","/","/","/","240 - Double Layer Mono/mono",8,100,"No washing","No washing","No washing","No washing","No washing","No washing",30,"Yes (100°C)/No","Yes/?","(S) and(F)FA920SH - 175g/Tdry solids 0,5g/L/Yes","/",830,51,30,"tdrying = 60s: 25(pressure), 27,5(surfactant), 30(hot air)",6.5000000000000002E-2,"/","/","/",4316,"Nex Gen - Wood","07/2019","FAB","/","/","/","/",63,"(F) injections: 1st- 70% ; 2nd: 30%; all flocculants tested: AN 905  SH, AN 923 SH, FA 920 SH; Surfactant and pressure effects on moisture do not add up (surfactant + pressure = 25% moisture)"]
[null,null,"MMF","D3 Uranium","UNLR - Leach Residue (Uranium)","/","/","/","/","/",12.97,"/",45,50,1.4379999999999999,"/",0,"/","/","minimum","/","/","/","/","/","Recovery > 99,5 %","/","minimum","/","120 - Double Layer Mono/mono",8,100,"\"Solution\" - 1CC+1D","/",2,1.5,"/","/",30,"No/No","Yes/Yes","(F)FA920SH - 325g/Tdry solids 0.5g/L/No","/",120,51,35,"25 (tdrying =60s+pressure)",{"$f":"2.62*10^-3*100","v":0.26200000000000001},"/","/","Recovery = 99,5%",4316,"Nex Gen - Wood","07/2019","FAB","/","/","/","/","3*147","(F) injections: 1st- 70% ; 2nd: 30% / All floccluants tested AN 905 SH;AN 910 SH;AN 923 SH;AN 945 SH;AN 956 SH;AN 977 SH;FA 920 SH;AH 912 SH;FO 4190;FO 4440;FO 4650;Magnafloc 351; We can observe that the use of pressure has a positive impact on the moisture of the cake. objectiv of recovery reached with a W/R between 1.5 and 2.5"]
[null,null,"CCH","J4 Pharmaceuticals / Perfume intermediate / Cosmetics","Adjuvant","/","/","/","/","/",20.5,"/",3,65,1,"/",11.8,"/","/","/","/","/","/","/","/","/","/","/","/","00930W - 200 - Multi","/","/","/","/","/","/","/","/","/","/","/","/","/","/","/","/","/",1.4E-2,"/","/","/",4317,"SPI PHARMA","04/2019","FR","/","/",null,"/",null,"Slurry had different particle sized between the days of test (d50=27 1st day and d50=14 2nd day). The objectiv of the test was only to determine a new optimal cloth "]
[null,null,"MMF","J3 Metals recycling","Aluminium slags",65,60,"/","/",1.4,300,11.3,34,65,1.4,"/",11.3,"/","/","/","/","/","/","chlorides<3%",1,"/","/","/","/","23-1001-K056 - 252",15,20,"Water - 1D",20,0.35,"/","/","/",25,"No/No","No/No","No/No","/","/","/",32.5,"/",0.17,"Chloride","<3%","/",4326,"BEFESA - Valladolid","07/2019","FAB","Yes",2007,510338,"/",45,"The data of this report is about the pannevis filter (obtained during an audit). Solids content in filtrates varies from 1,4 to 2 g/L in laboratory scale and from 0,88 to 0,94 in industrial scale; optimum cake thickness varied between the 2 days of tests because of the variation of the presence of fine particles in the slurry. "]
[null,null,"CCH","H4 Soda Ash","Soda Ash","/","/","/","/","/","/","/",19,32,1.2,"/",8,"/","/","/","/","/","/","/","/","/","/","/","/","240 - Double Layer Weave",28,4,"Condensate and soft water - 1CC+2D (last washing splitted)",33,1,"/","/","/",40,"Yes/No","Yes/No","(S) Flodri DA470/No","/",700,"20,8",23.4,"15(pressure+surfactant) 18(surfactant)  21(pressure) 23 (hot air)",0.03,"Chloride",6.9999999999999999E-4,"/",4328,"SODA SISECAM LUKAVAC","11/2019","FAB","/","/","/","/",30,"Results of a lab test done in order to size a new unit. Surfactant used is no-ionic, organic, ethoxylate (C11-C16); the use of dry air doesn't affect positively the cake moisture; surfactant lower the moisture however increasing the volume of surfactant doesn't improve it (1,0l/T => 17,8% against 5,0l/T =>20,6)"]
[null,null,"CCH","K4 Sugars, starches, proteins, bioproducts, alcohol, edible oil and derivates","Wood Biomass","/","/","/","/",5,"/","/",10.75,70,1.45,"/",3,"/","/","minimum","/",2,"/","/","/","Recovery > 95,5%","/","/","/","1290 - Mono",17,30,"Tap water - 2CC+1D",60,14,"/","/","/",15,"Yes/No","Yes/No","No/No","/",43,"/",66,"66 (pressure) 66,5 (hot air)",1.28,"/","/","Recovery = 99,5%",4334,"Arbiom","10/2019","FAB","/","/","/","/",0.5,"d50 100-5000; sizing of a pilot; small influence of drying time on cake moisture"]
[null,null,"MMF","H3 Aluminium and bayer alumina ","Alumine","/","/","/","/","/",50,"/",3.9,60,1.054,"/",9.6999999999999993,"/","/","<85","/",1.4999999999999999E-2,"/","/","/","/","/","/","/","SEFAR 05-11-360K",11,40,"Demineralized water - 1D",60,18,"/","/","/",30,"No/No","No/No","No/No","/",93,"1,439",71,"/",7.0000000000000001E-3,"Sodium - Sulfates","0,5750% - 0,0450% ","/",4339,"AXENS","10/2019","FAB","/","/","/","/",16,"\"Taille filtre offre budgétaire n°719311\""]
[null,null,"MMF","H3 Aluminium and bayer alumina ","Alumine","/","/","/","/","/",10,"/",3.5,60,1.0660000000000001,"/",9.8000000000000007,"/","/","<85","/",1.4999999999999999E-2,"/","sodium<0,04% - SO4<0,3%","/","/","/","/","/","SEFAR 05-11-360K",9,42,"Demineralized water - 1D",60,30,"/","/","/",30,"No/No","No/No","No/No","/",29,"1,306",84,"/",7.0000000000000001E-3,"Sodium - Sulfates","0,4800% - 0,1% ","/",4339,"AXENS","10/2019","FAB","/","/","/","/",45,"q"]
[null,null,"CCH","I4 Specialty acids / vitamins / specialty acids","Lactic acid + Gypsum","/","/","/","/","/","/","/",12.5,80,1.159,"/",1.8,2,"/","minimum","/","minimum","/","\"remove lactic acid\"","/","/","/","/","/","240 (50µm)",17.5,7.5,"RO water - 1CC+1D",20,1.3,"/","/","/",60,"Yes (110°C)/No","Yes/No","(S)/No","/",438,"2,0","<30","23(pressure);39(hot air);30(surfactant)",1.23,"Lactic acid",1E-3,"/",4343,"Glanbia","10/2019","FAB","/","/","/","/",5,"Volume of surfactant tested: 0,1; 0,25; 0,5"]
[null,null,"CCH","G4 Specialty polymers and resins","Acrylic Polymer","/","/","/","/","/","/","/",10.5,80,1.004,"/",4.3,"/","/","<38","/","minimum","/","/","/","/","/","/","/","25 - Mono",16,11,"Tap water - 1D",80,"No results given","/","/","/",60,"No/No","No/No","No/No","/",260,"/",55,"/","\"very clear\"","/","/","/",4348,"AKSA AKRILIK KIMYA SAN","10/2019","FR","/","/",null,"/",null,"Filtrability between 230 - 290 according to the wash ratio (which could not be determined because results of analysis were not given)"]
[null,null,"MMF","J3 Metals recycling","Aluminium slags","/","/","/","/","/","/","/",23,75,1.34,"/",10,"10 (wet production)","/","<35","/","/","/","chlorides<0,1%","/","/","/","/","/",330,12.5,35,"Condensate water - 2D",75,4.75,"/",320,"/",30,"No/No","Yes/Yes","No/No","/",210,"10 (wet production)",42,"<37(pressure)",0.33500000000000002,"Chloride",2.0000000000000001E-4,"/",4353,"Raffmetal","02/2020","FAB","/","/","/","/","30B20"]
[null,null,"MMF","L3 Zinc and cadmium","Sulphur Flotation concentrate","/","/","/","/","/",45,"/",36,20,1.61,"/",1,6.06,"/","<13","/",0.8,"/","Wextract/Zn<0,47%","/","/","/","/","/","156 - Single Layer Mono",20,10,"Process water - 1D",20,0.5,"/","/","/",30,"Yes/No","Yes/Yes","(S)/No","/","1395",6.06,17,"13(pressure);11(surfactant);20(steam)",0.89,"WExtract/Zn",5.0000000000000001E-4,"/",4354,"Teck","02/2020","FAB","/","/","/","/",5,"36% solid content in slurry 25-27 jan and 45% solid content is slurry in \"degraded mode\" 23-24 janv; The objectiv regarding the solid content in filtrate is to reach the same performances than the cloth that was currently used; Many temperatures were tested (8°,30°,50°,70°,20°) and no impact of the slurry temperature on the filtration time could be determined; "]
[null,null,"CCH","E4 Technical silica","Gel",7.5,"/","/","/","/","/","/",4.8,20,1.1000000000000001,"/",10.5,1.6,"/","<90","/",0.05,"/","Sodium<1,21% - S<0,11%","/","/","/","/","/","05-8000-C030 - 120 - Double Layer Mono/mono",7,75,"Demineralized water - 1D",50,0.5,"/","/","/",30,"Yes/No","No/No","(S)/No","/","150",1.6,89,"90(sprayers);90(surfactant);tdrying=15s 91(hot air)",2.9000000000000001E-2,"Sodium - S ","0,45% - 0,05%","/",4361,"Solvay","02/2020","FAB","/","/","/","/","12B15","The slurry consist of \"very fine particles of sodium aluminium silicate suspended in an aqueous solution of sodium sulfate (Na2SO4)\"; flowrate of the slurry: 1600kg/h; sprayers were used on the drying zone to prevent the formation of cracks on the cake"]
[null,null,"MMF","J3 Metals recycling","Aluminium slags","/","/","/","/","/",250,"/",35,55,1.7,"/","/",13,"/","<35","/",0.3,"/","chlorides<0,5%","/","/","/","minimum","/","05-8000-C85 - 360 - DLW",8,40,"Process water - 1CC/2+1D/2",40,3,"/","/",20,15,"No/No","Yes/No","Yes/No","/",241,13,35,"30(surfactant);tdrying=30s: 27,5(pressure)",0.6,"Chloride","<0,5%","/",4363,"REFIAL","08/2020","FAB","/","/","/","/","54B30","The slurry consist of \"Brine (NaCl+KCl), Dissolved Ammonia - 5-15 g/L Alumnium oxides\"; solids concentration varied from 31-37 but could go up to 40 (and up to 50% during lab tests); With the cloudy port solution, the solids content decreased to 0,38g/L; "]
[null,null,"MMF","J3 Metals recycling","Aluminium slags",35,55,1.22,"/",1,"Avg (760)",11,14,"/","/","/","/","/","/","/","/","/","/","chlorides<0,25%",1,"/","/","/","/","05-8000-C50 HC - 300 - Double Layer",5,32,"2D",60,2.4,"/","/","/",20,"No/No","No/No","No/No",86,"174",7,39,"/",0.78800000000000003,"Chloride","<0,20%","/",4364,"INTALS","02/2020","FAB","/","/","/","/",40,"The objectiv of the audit was to identify vacuum problems and determine the maximum production capacity of the 2 filters (of 50 and 40 sqm). For 40sqm, the maximum production was 7 Tdry solids/h and for 50sqm bewteen 8 and 9 Tdry solids/h."]
[null,null,"MMF","J3 Metals recycling","Aluminium slags",35,55,1.22,"/",1,"/",11,14,"/","/","/","/",7,2,"/","/","/","/","chlorides<0,25%",1,"/","/","/","/","C50 HC - 300 - Double Layer",5,32,"Process and clean water - 2D",60,2.4,"/","/","/",20,"No/No","No/No","No/No",86,174,7,"39","/","0,788","Chloride","<0,20%","/",4364,"INTALS","02/2020","FAB","Yes",2001,509540,"/",40]
[null,null,"MMF","J3 Metals recycling","Aluminium slags",35,55,1.22,"/",1,"/",11,14,"/","/","/","/",8.5,2,"/","/","/","/","chlorides<0,25%",1,"/","/","/","/","C50 HC - 300 - Double Layer",5,32,"Process and clean water - 2D",60,2.4,"/","/","/",20,"No/No","No/No","No/No",86,174,8.5,"39","/","0,788","Chloride","<0,20%","/",4364,"INTALS","02/2020","FAB","Yes",2001,"/",13946,50]
[null,null,"CCH","G4 Specialty polymers and resins","PVDF (Grade Solef 5130)","/","/","/","/","/","/","/",15,55,1.1599999999999999,"/",5,1.2,"/","<27","/",0.03,"/","/","/","/","/",20,"/","SEFAR 23-1020-K052 - 292 - Mono Layer ",33,5.8,"Demineralized water - 3D",55,20,"/","/","/",60,"No/No","Yes/No","No/No","/",434,1.2,26.8,"Tdrying=30s: 25(pressure)",0,"/","/","/",4369,"Solvay","07/2020","FAB","/","/","/","/","3B5","Solides in filtrate not detectable with a precision of 0,01g"]
[null,null,"CCH","G4 Specialty polymers and resins","PVDF (Grade Solef 75130)","/","/","/","/","/","/","/",12.5,55,1.1000000000000001,"/",5,1.2,"/","<21","/",1.4999999999999999E-2,"/","/","/","/","/",20,"/","SEFAR 23-1020-K052 - 292 - Mono Layer ",33,6,"Demineralized water - 3D",55,20,"/","/","/",60,"No/No","No/No","No/No","/","636",1.2,19.5,"/",0,"/","/","/",4369,"Solvay","07/2020","FAB","/","/","/","/","3B5","Solides in filtrate not detectable with a precision of 0,01g"]
[null,null,"CCH","I4 Specialty acids / vitamins / specialty acids","Salicylic acid","/","/","/","/","/","/","/",17.5,40,1.1000000000000001,"/",3,"/",null,"minimum","/","minimum","/","sulfates<0,02%","/","/","/","/","/","SEFAR 05-1001-K079 - 375 - Mono",30,1.5,"Demineralized water - 3D",38,2.65,"/","/","/",60,"No/No","Yes/No","No/No","/","1150",2,17,"11(pressure)",0.124,"Sulfates",1.4999999999999999E-4,"/",4375,"SEQENS","09/2020","FAB","/","/","/","/","3B5"]
[null,null,"CCH","G4 Specialty polymers and resins","PVDF (Grade Solef 21510)","/","/","/","/","/","/","/",22,55,1.1000000000000001,"/",5,1.2,"/","<26","/",0.03,"/","/","/","/","/",20,"/","SEFAR 23-1020-K052 - 292 - Mono Layer ",33,3.8,"Demineralized water - 3D",55,20,"/","/","/",90,"No/No","Yes/No","No/No","/","410",1.2,23.9,"Tdrying=30s: 25,1(pressure)",0,"/","/","/",4379,"Solvay","10/2020","FAB","/","/","/","/","3B5","To solvay's demand, the slurry was concentrated to 35% content in solids and it was found that the slurry's concentration in solids has a negligible impact on filtration time and thus on the sizing. Solides in filtrate not detectable with a precision of 0,01g; A drying time of 30s was enough to reach the performances (with a cake moisture of 25%) but the filter which is planned to be common to grades 5130 and 75130 enabled a drying time of 90s."]
[null,null,"MMF","H3 Aluminium and bayer alumina ","Alumina","/","/","/","/","/","/","/",49.5,70,1.5629999999999999,"/","/","/","/","minimum","/",0.5,"/","/","/","Na2O<1,0","/","/","/","23-1001-K052 - 252",33,11,"No washing","No washing","No washing","No washing","No washing","No washing",45,"No/No","No/No","No/No","/","/",1,5,"/",0.5,"Na2O<0,1","<1,0%","/",4380,"ALTEO","09/2020","ATF","/","/",null,"/","2B05"]
[null,null,"MMF","H3 Aluminium and bayer alumina ","Alumina","/","/","/","/","/","/","/",32,75,1.57,"/","/","/","/","minimum","/",0.5,"/","/","/","Na2O<1,0","/",1,"/","23-1001-K052 - 252",25,12.5,"Process water - 1CC+1D",80,0.7,"/","/","/",45,"No/No","No/No","No/No","/","1400",1,5,"/",0.5,"Na2O<0,1","<1,0%","/",4380,"ALTEO","09/2021","ATF","/","/",null,"/","2B05"]
[null,null,"MMF","H3 Aluminium and bayer alumina ","Alumina","/","/","/","/","/","/","/",22.5,75,1.46,"/","/","/","/","minimum","/",0.5,"/","/","/","Na2O<1,0","/",1,"/","23-1001-K052 - 252",20,19,"Process water - 1CC+1D",80,0.7,"/","/","/",45,"No/No","No/No","No/No","/","1150",1,5,"/",0.5,"Na2O<0,1","<1,0%","/",4380,"ALTEO","09/2022","ATF","/","/",null,"/","2B05"]
[null,null,"MMF","H3 Aluminium and bayer alumina ","Alumina","/","/","/","/","/","/","/",13,75,1.4,"/","/","/","/","minimum","/",0.5,"/","/","/","Na2O<1,0","/",1,"/","23-1001-K052 - 252",15,19,"Process water - 1CC+1D",80,0.7,"/","/","/",45,"No/No","No/No","No/No","/","1000",1,5,"/",0.5,"Na2O<0,1","<1,0%","/",4380,"ALTEO","09/2023","ATF","/","/",null,"/","2B05"]
[null,null,"CCH","I4 Specialty acids / vitamins / specialty acids","Crude terephtalic acid","/","/","/","/","/","/","/",9,60,1.0840000000000001,"/",2,6,"/","<70","/","/","/","sodium<0,0025","/","Recovery: CTA>98%; MEG>99,9 (in mother liquor)","/","/","/","30 - Double Layer",30,36,"Demineralized water - 2CC+2D",60,9.1,"/",23,"/",15,"/","Yes/No","/","/","81",6,68.5,"58,5 (pressure)",0.14399999999999999,"Sodium","0,0023%","Recovery: CTA=98,9",4382,"CARBIOS","10/2020","FAB","/","/","/","/",100,"CTA=terephtalic acid MEG=ethylene glycol; Cake moisture doesn't change much with drying time. CTA and PTA are going to be filtered using the same filter. No information on MEG recovery."]
[null,null,"CCH","I4 Specialty acids / vitamins / specialty acids","Pure terephtalic acid","/","/","/","/","/","/","/",7,60,1,"/","/","/","/","<15","/","/","/","/","/","conductivity < 100 µS/cm","/","/","/","30 - Double Layer",15,15,"Demineralized water - 1D",20,1,"/",23,"/",30,"/","Yes/No","/","/","550","/","<25","<20 (pressure)","No results given","Sodium","No results given","conductivity < 100 µS/cm",4382,"CARBIOS","10/2020","FAB","/","/","/","/",100,"CTA=terephtalic acid MEG=ethylene glycol; Cake moisture doesn't change much with drying time. CTA and PTA are going to be filtered using the same filter. No information on MEG recovery."]
[null,null,"MMF","E3 Rare Earth","Rares Earths","/","/","/","/","/","/","/",25,20,1.1819999999999999,"/","/",78,"/","<20","/","minimum","/","/","/","/","/","/","/","C20 - 60",9,15,"No washing","No washing","No washing","No washing","No washing","No washing",45,"No/No","Yes/Yes","(F) Kemira Superfloc N300 - 65g/Tdry solids/Yes","/","700",240,"<30","<20 (pressure).<27(surfactant)",0.05,"/","/","/",4384,"DEWATERING SOLUTIONS","09/2020","/","/","/",null,"/","3*120","These results correspond to the results obtained in order to size a first filtration unit which was meant only to dewater the mineral suspension. Other tests were made in order to size a second filtration unit in which a washing to remove a maximum amount of ammonia was planned. however results of the tests were not given. Flocculants were used at a dilution rate of 0,5 g/L. Other flocculant tested was Kemira Superfloc A100"]
[null,null,"CCH","P4 Other chemicals","Alginate acids","/","/","/","/","/","/","/","/",20,1,"/",2.5,"/","/","minimum","/","minimum","/","/","/","/","/","/","/","/","/","/","/","No washing","No washing","No washing","No washing","No washing","/","/","/","/","/","/","/","/","/","/","/","/","/",4414,"BBEPP","04/2021","Not adapted to filtration","/","/",null,"/"]
[null,null,"CCH","P4 Other chemicals","Alginate extract - concentrated slurry",2,"/","/","/","/","/","/",2.5,20,1,"/",8,"/","/","minimum","/","minimum","/","/","/","conductivity < 300 µS/cm","/","/","/","1290 - Mono",7,45,"RO water - 2D",21,107.5,"/",23,"/",30,"No/No","Yes/No","No/No","/","6","/",94,"/",0.02,"/","/","conductivity = 300 µS/cm",4414,"BBEPP","04/2021","FAB","/","/","/","/",null,"The use of pressure does not seem to have a big impact on the cake moisture."]
[null,null,"CCH","P4 Other chemicals","Alginate extract - light slurry",2,"/","/","/","/","/","/",0.65,20,1,"/",8,"/","/","minimum","/","minimum","/","/","/","conductivity < 300 µS/cm","/","/","/","1290 - Mono",4,45,"RO water - 2D",21,107.5,"/",23,"/",30,"No/No","Yes/No","No/No","/","6","/",94,"/",0.02,"/","/","conductivity = 300 µS/cm",4414,"BBEPP","04/2021","FAB","/","/","/","/"]
[null,null,"CCH","P4 Other chemicals","Alliara 10 - Seaweed + sulfuric acid",4,"/","/","/","/","/","/",2.5,20,1,"/",6,"/","/","minimum","/","minimum","/","/","/","conductivity < 200 µS/cm","/","/","/","1290 - Mono",14,4.2,"RO water - 3D",21,62.5,6,23,"/",30,"No/No","Yes/No","No/No","/",60,"/",90,"86,5 (tdrying= 60s)",3.5999999999999997E-2,"/","/","conductivity = 200 µS/cm",4414,"BBEPP","04/2021","FAB","/","/","/","/"]
[null,null,"CCH","P4 Other chemicals","Alliaria 10 - Hydrated Seaweed",4,"/","/","/","/","/","/",2.5,20,1,"/",6,"/","/","minimum","/","minimum","/","/","/"," conductivity < 300 µS/cm","/","/","/","1290 - Mono",20,4,"RO water - 4D",21,55,"/",23,"/",30,"No/No","Yes/No","No/No","/",52.5,"/",92,92,{"$f":"0.48/1000*100","v":4.7999999999999994E-2},"/","/","conductivity = 300 µS/cm",4414,"BBEPP","04/2021","FAB","/","/","/","/"]
[null,null,"CCH","P4 Other chemicals","Alliaria 10 - Seaweed + citric acid","/","/","/","/","/","/","/",1.5,20,1,"/",3.5,"/","/","minimum","/","minimum","/","/","/","/","/","/","/","1290 - Mono",13,4,"No washing","No washing","No washing","No washing","No washing","No washing",30,"No/No","Yes/No","No/No","/","100","/",90,"85 (tdrying = 60s)",2.8000000000000001E-2,"/","/","/",4414,"BBEPP","04/2021","FAB","/","/","/","/",null,"The use of pressure does not seem to have a big impact on the cake moisture."]
[null,null,"CCH","K4 Sugars, starches, proteins, bioproducts, alcohol, edible oil and derivates","Enzymatic Hydrolysis of Pretreated Wood",15,47.5,1.01,"/","/","/",5,"/","/","/","/","/","/","/","<70","/",1,"/","/","/","/","/","/","/","1290 - Mono",25,16,"Water - 2CC+1D","/","/","/","/","/","/","No/No","No/No","No/No","/","/","/","/","/","/","/","/","/",4417,"Arbiom / BBEPP","05/2021","FAB","/","/","/","/"]
[null,null,"CCH","P4 Other chemicals","Alginate acids","/","/","/","/","/","/","/","/",20,1,"/",1.9,"/","/","minimum","/","minimum","/","/","/","/","/","/","/","1290 - Single Layer Mono",5,300,"No washing","No washing","No washing","No washing","No washing","No washing","No drying","/","/","/","/","/","/",99.1,"/","/","/","/","/",4422,"BBEPP","07/2021","Not adapted to FAB","/","/",null,"/"]
[null,null,"CCH","P4 Other chemicals","Alginate extract","/","/","/","/","/","/","/",1,20,1,"/",8,"/","/","minimum","/","minimum","/","/","/","/","/","/","/","1290 - Single Layer Mono",10,5,"No washing","No washing","No washing","No washing","No washing","No washing",30,"No/No","No/No","No/No","/",48,"/",93.3,"/",2.7E-2,"/","/","/",4422,"BBEPP","07/2021","FAB","/","/","/","/"]
[null,null,"CCH","P4 Other chemicals","Hydrated seaweed","/","/","/","/","/","/","/",4.5999999999999996,20,1,"/",6.5,"/","/","minimum","/","minimum","/","/","/","conductivity < 200 µS/cm","/","/","/","1290 - Single Layer Mono",55,1,"RO water - 7D",20,168,"/",23,"/",30,"No/No","Yes/No","No/No","/","140","/",89,"/",4,"/","/","conductivity < 200 µS/cm",4422,"BBEPP","07/2021","FAB","/","/","/","/",null,"Pressure does not seem to have any impact on the cake moisture."]
[null,null,"CCH","P4 Other chemicals","Seaweed + citric acid","/","/","/","/","/","/","/",2.15,20,1,"/",2.7,"/","/","minimum","/","minimum","/","/","/","/","/","/","/","1290 - Single Layer Mono",15,4,"No washing","No washing","No washing","No washing","No washing","No washing",30,"No/No","No/No","No/No","/",70,"/",91.5,"/",4.6300000000000001E-2,"/","/","/",4422,"BBEPP","07/2021","FAB","/","/","/","/"]
[null,null,"CCH","P4 Other chemicals","Seaweed + sulfuric acid","/","/","/","/","/","/","/",2.2000000000000002,20,1,"/",2,"/","/","minimum","/","minimum","/","/","/","conductivity < 100 µS/cm","/","/","/","1290 - Single Layer Mono",33,5,"RO water - 3D",20,205,"/",23,"/",30,"No/No","No/No","No/No","/",18,"/",91.2,"/",1.9E-2,"/","/","conductivity < 100 µS/cm",4422,"BBEPP","07/2021","FAB","/","/","/","/"]
[null,null,"?","?","Gypsum balls - fresh CRG tamisée (p>53μm)","/","/","/","/","/",500,"/",23,20,1.27,"/",12,1.7,"/","<10","/","clear","/","chlorides<0,1%","/","/","/","/","/","29660K - 250 - Mono","/","/","Demineralized water","/","/","/","/","/","/","No/No","No/No","(S) Soap/?","/","/","/",13,9,"Clear (1,25% MES)","Chloride",">0,5","/",4427,"SOLVAY","12/2021","FAB","/","/","/","/",null,"Clogging phenomenon observed with fresh CRG and old CRG. Not observed for subdued slurry with cloth 29660K; Concentration in solids not constant during the tests (it varies between 20% and 31%), washing 1D and 2D were tried and were not enough to meet the performances desired in chloride content in the cake."]
[null,null,"CCH","A2 Cement","ByPass Dust","/","/","/","/","/","/","/",30,20,1.147,"/",12,null,"/","minimum","/","/","/","minimum chlorides","/","/","/","/","/","120 - Double Layer Mono/Mono",25,60,"Raw water","/",1.5,"/","/","/",30,"Yes/No","Yes/No","No/No","/",296,3,40,"40 (tdrying=15s)",{"$f":" 0.1","v":0.1},"Chloride","No result given","/",4432,"KREISEL","11/2021","FAB","/","/","/","/",15,"The use of hot air, vapour, vibration, more air flow and hot washing water does not give a significant improvement in cake moisture; analysis of the efficiency of washing staps not given; moisture remain around 40% no matter the concentration in solids in the slurry; the increasing of WR has no influence on cake moisture"]
[null,null,"CCH","A2 Cement","ByPass Dust","/","/","/","/","/","/","/",10,20,1.0840000000000001,"/",12,"/","/","minimum","/","/","/","minimum chlorides","/","/","/","/","/","120 - Double Layer Mono/Mono",8,31,"Raw water","/",1.5,"/","/","/",30,"Yes/No","Yes/No","No/No","/",300,3,40,"40 (tdrying=15s)",{"$f":"1.03/10","v":0.10300000000000001},"Chloride","No result given","/",4432,"KREISEL","11/2021","FAB","/","/","/","/",15]
[null,null,"MMF","C1 Potassium fertilizers","Pota Ash","/","/","/","/","/","/","/",28,21.5,1.21,"/",7.15,55,2,"<12",1,"/","/","/","/","/","/","/","/","K120 - 498 - Mono",8,60,"No washing","No washing","No washing","No washing","No washing","No washing",60,"No/No","No/No","No/No","/",110,55,9,"/",0.17,"/","/","/",4437,"NUTRIEN","04/2022","FR","/","/",null,"/","24/40","The drying time has an influence on the moisture."]
[null,null,"MMF","V3 Building materials, Plaster","Plaster /  Sulfate Hemihydrate","/","/","/","/","/","/","/",44,87.5,1.38,"/",7.07,4.93,2,"<10",1,"/","/","/","/","/","/","/","/","05-8000-C 030 - 120 - Mono/mono",35,10,"No washing","No washing","No washing","No washing","No washing","No washing",60,"No/No","No/No","No/No","/",1000,"4,93",15,"/",1.43,"/","/","/",4439,"Saint-Gobain","02/2022","FAB","/","/","/","/","6B10"]
[null,null,"MMF","MMF - B1 Phosphated fertilizers","Phosphate","/","/","/","/","/","/","/",55,24,1.76,"/","/",300,1,"/","/","/","/","/","/","/","/","/","/","07-1030-W00 - 2167 - Mono",35,"/","Desalinated water - 2CC+1D",20,0.35,"/","/","/","/","No/No","No/No","(S) MT 470 – 20 g/Tdry solids /Yes","/","2500?","300","/","16 (surfactant)","/","Chloride","<0,07 %","/",4441,"Miski Mayo - Peru","02/2022","FAB","/","/","/","/","120B40"]
[null,null,"CCH","O4 Enzymes and yeasts","Betainex (K2SO4) ","/","/","/","/","/","/","/",20,37.5,1.05,"/","/","/","/","<8",1,"/","/","/","/","/","/","/","/","1101 - Mono",20,25,"Raw water",20,"/","/","/","/","/","No/No","No/No","No/No","/",{"$f":"3*1000/6","v":500},3,7,"/","/","/","/","/",4444,"Biospringer","12/2022","FR?","/","/",null,"/",null,"Filtration impossible defore decantation"]
[null,null,"CCH","O4 Enzymes and yeasts","Vinasse Safralic (K2SO4)","/","/","/","/","/","/","/",15,37.5,1.0249999999999999,"/","/","/","/","<8",1,"/","/","/","/","/","/","/","/","1101 - Mono",20,25,"Washing wort",20,"/","/","/","/","/","No/No","No/No","No/No","/",{"$f":"0.5*1000/6","v":83.333333333333329},"0,5",7,"/","/","/","/","/",4444,"Biospringer","12/2022","FR?","/","/",null,"/",null,"Filtration impossible defore decantation"]
[null,null,"CCH","P4 Other chemicals","CIBA slugs/ loaded with soda","/","/","/","/","/","/","/",35,21.4,1.34,"/",9.25,"/","/","/","/","/","/","chlorides<0,5%",1,"/","/","/","/","120 - Multifilament",15,50,"Water - 1D",20,1,7.5,"/","/",15,"No/No","No/No","No/No","/",400,10,26,"/",0.105,"Chloride","<0,4 %","pH = 9,25",4447,"KEMONE","05/2022","FAB","/","/","/","/",25]
[null,null,"MMF","J3 Metals recycling","Aluminium slags","/","/","/","/","/","/","/",30,51,1.25,"/",10.62,"/","/","<31,5","/","minimum","/","chlorides<0,5%","/","/","/","/","/","Hasler85 - 660 - DLW",5,19,"Water - 2CC+2D","12,5",0.9,"/","/","/",15,"No/No","Yes/No","(S)/No","/",320,12.7,41,"/","/","Chloride",3.0000000000000001E-3,"/",4449,"R.V.A","05/2022","FAB","/","/","/","/","42B30","Drying time has no influence on cake moisture; pressure and surfactant have little influence on cake moisture"]
[null,null,"Environment","A5 FGD","CaCO3","/","/","/","/","/",24.6,"/",20,60,1.21,"/","/",56.99,"/","<15",1,0.5,"/","/","/","/","/","/","/","Hasler1 - Mono/mono",10,18,"No washing","No washing","No washing","No washing","No washing","No washing","/","No/No","Yes/No","(S)(F)/No","/","/","/",40,"16,86 (surfactant and particles>40μm)",0.12,"/","/","/",4458,"SKE&S","07/2022","FAB","/","/","/","/","Target performances not reached","Dewatering time does not influence the residual moisture in the cake; fine particles are a problem to lower the residual moisture of the cake"]
[null,null,"MMF","J3 Metals recycling","Aluminium slags","/","/","/","/","/","avg(500)","/","/",15,1.0900000000000001,"/",9.1999999999999993,4.42,"/","<30","/",0.1,"/","chlorides<1%","/","/","/","<1,55","/","Hasler6 - Mono/mono",24,24,"Water",15,3.61,"/","/","/",30,"No/No","No/No","(F) NALCO 90g/Tdry solid /Yes","/","/","/",27,"/",7.6999999999999999E-2,"Chloride",6.7999999999999996E-3,"/",4459,"ALTEK","12/2022","FAB","/","/","/","/",null,"Without flocculant filtration becomes difficult and cake formation time is multiplied by 5, dewatering time has a minimal influence on the residual moisture of the cake"]
[null,null,"MMF","A1 Phosphoric acid","Phosphoric acid",null,null,null,null,null,null,null,32,72,1.52,"/","/",null,null,null,null,null,null,null,null,null,null,null,null,null,40,null,null,null,null,null,null,null,null,null,null,null,null,null,null,null,null,null,null,null,null,4462,"SIMPLOT - Rock Springs Plant","06/2022","ATF","/","/",null,"/"]
[null,null,"Environment","A5 FGD","CaCO3","/","/","/","/","/","size>100","/",50,60,"/","/","/",56.99,"/","<15",1,3,"/","/","/","/","/","/","/","High permeability",11,0.5,"No washing","No washing","No washing","No washing","No washing","No washing",60,"No/No","No/No","No/No","/",663,"56,99",16.7,"/",0.46,"/","/","/",4465,"SKE&S","11/2022","FAB","/","/","/","/","90B30","The filtration time vs. cake thickness is linear. Dehydration time has an impact on the residual moisture of the cake."]
[null,null,"Environment","A5 FGD","CaCO3","/","/","/","/","/","size around 64","/",50,60,"/","/","/",56.99,"/","<15",1,3,"/","/","/","/","/","/","/","Middle Permeability",11,3,"No washing","No washing","No washing","No washing","No washing","No washing",60,"No/No","No/No","No/No","/",995.52,"56,99",9,"/",0.6,"/","/","/",4465,"SKE&S","11/2022","FAB","/","/","/","/","58.5B30","The filtration time vs. cake thickness is linear. Dehydration time has an impact on the residual moisture of the cake."]
[null,null,"CCH","H4 Soda Ash","Soda Ash","/","/","/","/","/","/","/",21.5,28,1.2150000000000001,"/","/",113,"/","<15","/","/","/","chlorides<0,1%","/","/","/",0.7,"/","05-8000-C 085 - 360 - DLW",20,9.5,"Water - 1CC+1D",20,0.7,"/","/","/",32,"No/No","Yes/Yes","No/No","/",1050,113,"22,75 (t drying = 32s)","19,75 (press)","/","Chloride","<0,1%","/",4466,"GHCL - India","09/2022","FAB","/","/","/","/","108B40"]
[null,null,"MMF","J3 Metals recycling","Aluminium slags","/","/","/","/","/","/","/",54.5,"/","/","/","/","/","/","/","/","/","/","/","/","/","/","/","/","Mo","/","/","Water - 2D","/",0.73,"/","/","/","/","/","/","/","/","270",12,22,"/","/","/","/","/","/","BEFESA","/","/","/","/",null,"/",45,"data from \"documentations process\" folder"]
[null,null,"MMF","J3 Metals recycling","Aluminium slags","/","/","/","/","/","/","/",17.8,"/","/","/","/","/","/","/","/","/","/","/","/","/","/","/","/","SEFAR - Mo/Mo (30µm)","/",90,"Water - 3D","/",1.27,"/","/","/",15,"/","/","/",150,"160",6.3,15.9,"/","/","/","/","/","/","VEDANI","/","/","/","/",null,"/",40,"data from \"documentations process\" folder"]
[null,null,"MMF","G3 Industrial minerals","BZS","/","/","/","/","/","/","/",21,"/","/","/","/","/","/","/","/","/","/","/","/","/","/","/","/","/","/",35,"Water - 1D","/",1.67,"/","/",5,40,"/","/","/",95,"250",6,16.7,"/","/","/","/","/","/","HZL","/","/","/","/",null,"/",24,"data from \"documentations process\" folder"]
[null,null,"MMF","N3 Nickel, Cobalt and Manganese","Carbonate nickel","/","/","/","/","/","/","/",45,15,"/","/","/","/","/","/","/","/","/","/","/","/","/","/","/","07-8435-SK10 - Mo/Mu (10µm)","/","/","Water - 2D","/",39,"/","/","/","/","/","/","/","/",40,0.315,55,"/","/","/","/","/","/","ERAMET","/","/","/","/",null,"/",8.1300000000000008,"Type of process: HCl; data from \"documentations process\" folder"]
[null,null,"MMF","F3 Copper","Copper oxide","/","/","/","/","/","/","/",10.1,"/","/","/","/","/","/","/","/","/","/","/","/","/","/","/","/","Mo/Mo","/","/","Water - 2D","/",8.24,"/","/","/","/","/","/","/","/","170",0.51,"/","/","/","/","/","/","/","ERACHEM","/","/","/","/",null,"/",3,"data from \"documentations process\" folder"]
[null,null,"MMF","N3 Nickel, Cobalt and Manganese","Ferro nickel concentrate","/","/","/","/","/","/","/",28.3,"/","/","/","/","/","/","/","/","/","/","/","/","/","/","/","/","/","/",20,"No washing","No washing","No washing","No washing","No washing","No washing",40,"/","/","/",60,"680",1.7,58.8,"/","/","/","/","/","/","CERRO MATOSO","/","/","/","/",null,"/",2.5,"data from \"documentations process\" folder"]
[null,null,"MMF","N3 Nickel, Cobalt and Manganese","Goro nickel","/","/","/","/","/","/","/",30.3,68.2,"/","/","/","/","/","/","/","/","/","/","/","/","/","/","/","/","/",15,"Water - 2CC + 1D","/",0.93,"/","/","/",25,"/","/","/",90,"490",59,36,"/","/","/","/","/","/","VALE INCO","/","/","/","/",null,"/",120,"Type of process: Lixiviation; data from \"documentations process\" folder"]
[null,null,"MMF","G3 Industrial minerals","Jarosite","/","/","/","/","/","/","/",32,80,"/","/","/","/","/","/","/","/","/","/","/","/","/","/","/","/","/",45,"Water - 2D","/",2,"/","/",5,35,"/","/","/",145,"110",9.6,45,"/","/","/","/","/","/","HZL","/","/","/","/",null,"/",84,"data from \"documentations process\" folder"]
[null,null,"MMF","G3 Industrial minerals","Jarosite","/","/","/","/","/","/","/",25,80,"/","/","/","/","/","/","/","/","/","/","/","/","/","/","/","/","/",30,"Water - 2D","/",2.5,"/","/",5,30,"/","/","/",145,"150",9.6,37.5,"/","/","/","/","/","/","BINANI","/","/","/","/",null,"/",63,"data from \"documentations process\" folder"]
[null,null,"MMF","G3 Industrial minerals","Jarosite","/","/","/","/","/","/","/",25,"/","/","/","/","/","/","/","/","/","/","/","/","/","/","/","/","/","/",46,"Water - 2D","/",2.5,"/","/","/",12,"/","/","/",148,"130",6,37.5,"/","/","/","/","/","/","HZL","/","/","/","/",null,"/",45,"data from \"documentations process\" folder"]
[null,null,"MMF","G3 Industrial minerals","Jarosite","/","/","/","/","/","/","/",20,"/","/","/","/","/","/","/","/","/","/","/","/","/","/","/","/","Mo","/",35,"Water - 2D","/",2.12,"/","/","/",17,"/","/","/",98,"100",4.8899999999999997,55,"/","/","/","/","/","/","BOLIDEN","/","/","/","/",null,"/",51,"data from \"documentations process\" folder"]
[null,null,"MMF","G3 Industrial minerals","Jarosite","/","/","/","/","/","/","/",12.2,"/","/","/","/","/","/","/","/","/","/","/","/","/","/","/","/","/","/",20,"Water - 1D","/",1.0900000000000001,"/","/",8,30,"/","/","/",88,"100",2.2999999999999998,43.5,"/","/","/","/","/","/","PORTOVESME","/","/","/","/",null,"/",24,"data from \"documentations process\" folder"]
[null,null,"MMF","G3 Industrial minerals","Leach residue","/","/","/","/","/","/","/","/","/","/","/","/","/","/","/","/","/","/","/","/","/","/","/","/","Mo","/","/","Water - 2D","/","/","/","/","/","/","/","/","/","/","250","/","/","/","/","/","/","/","/","NAMZINC","/","/","/","/",null,"/",147,"data from \"documentations process\" folder"]
[null,null,"MMF","N3 Nickel, Cobalt and Manganese","Nickel ore","/","/","/","/","/","/","/",54.8,"/","/","/","/","/","/","/","/","/","/","/","/","/","/","/","/","SEFAR - Mo (85µm)","/",12,"No washing","No washing","No washing","No washing","No washing","No washing",60,"/","/","/",72,"1460",23,22,"/","/","/","/","/","/","ERAMET","/","/","/","/",null,"/",15.75,"data from \"documentations process\" folder"]
[null,null,"MMF","G3 Industrial minerals","Sodium dichromate","/","/","/","/","/","/","/",43.1,80,"/","/",8.5,"/","/","/","/","/","/","/","/","/","/","/","/","/","/",35,"Water - 2D","/",0.84,"/","/",5,50,"/","/","/",130,"510",25,26,"/","/","/","/","/","/","VISHNU CHEMICALS","/","/","/","/",null,"/",49.5,"data from \"documentations process\" folder"]
[null,null,"MMF","D3 Uranium","Uranium peroxide","/","/","/","/","/","/","/",40.200000000000003,"/","/","/","/","/","/","/","/","/","/","/","/","/","/","/","/","SEFAR - Mo/Mo (20µm)","/","/","Water - 1CC+1D","/","/","/","/","/","/","/","/","/","/","70",0.41,"/","/","/","/","/","/","/","COGEMA/AREVA","/","/","/","/",null,"/",6,"Type of process: Amine Extraction; data from \"documentations process\" folder"]
[null,null,"MMF","L3 Zinc and cadmium","Zinc residue","/","/","/","/","/","/","/",19.3,"/","/","/","/","/","/","/","/","/","/","/","/","/","/","/","/","/","/",22,"Water","/",3,"/","/",15,25,"/","/","/",137,"90",2.8,35.700000000000003,"/","/","/","/","/","/","ESPANOLA DEL ZINC","/","/","/","/",null,"/",31.5,"data from \"documentations process\" folder"]
[null,null,"MMF","J3 Metals recycling","Aluminium slags",36,70,1.8,"/","/","avg(150)","/",29,70,1.45,"/","/","/","/","<35","/",0.2,"/","chlorides<0,5%","/","/","/","/","/","C 030 - 120 - Mono/mono",5,40,"Water - 3D ","/",1.5,"/","/","/",30,"No/No","No/No","(F)SNF: AN934SH - 2mL 0.1%/No","/",135,6,"43","/","0,27","Chloride","0,45 %","/","/","Alumetal","03/2023","FAB","/","/","/","/","45B30","Drying time has no influence on moisture; quicker pick-up time with flocculant but results were not repeatable"]
[null,null,"CCH","H4 Soda Ash","Soda Ash","/","/","/","/","/","/","/",21.4,32,"/","/","/","/","/","/","/","/","/","/","/","/","/","/","/","SEFAR - Mo/Mo Dlw",28,10,"2D+1CC","/",0.44,"/","/",10,50,"/","/","/",105,1200,48,16,"/","/","Chloride",1.5E-3,"/","/","Sterlitamak","/","FAB","Yes","/","512293-01","/",40,"data from \"documentations process\" folder"]
[null,null,"CCH","H4 Soda Ash","Soda Ash","/","/","/","/","/","/","/",21.36,32,"/","/","/","/","/","/","/","/","/","/","/","/","/","/","/","SEFAR - Mo/Mo Dlw",29,10,"2D+1CC","/",0.4,"/","/",10,50,"/","/","/",105,1100,75.2,16,"/","/","Chloride",1.5E-3,"/","/","Sterlitamak","/","FAB","Yes","/","512293-02","/",66,"data from \"documentations process\" folder"]
[null,null,"CCH","H4 Soda Ash","Soda Ash","/","/","/","/","/","/","/",21.8,35,"/","/","/","/","/","/","/","/","/","/","/","/","/","/","/","214-3 CRAMER - - Mo/Mo Dlw",30,"/","2D+2CC","/",0.41,"/","/","/","/","/","/","/","/",1200,60,16,"/","/","Chloride",1.5E-3,"/","/","Sodawerk","/","FAB","Yes","/",514170,"/",50,"data from \"documentations process\" folder"]
[null,null,"CCH","H4 Soda Ash","Soda Ash","/","/","/","/","/","/","/",28.5,30,"/","/","/","/","/","/","/","/","/","/","/","/","/","/","/","SEFAR - - Mo","/","/","1D+1CC","/",0.38,"/","/","/","/","/","/","/","/",900,76.5,16.8,"/","/","Chloride",1.5E-3,"/","/","Torrelavega","/","FAB","Yes","/","/","1837 - 01",81,"data from \"documentations process\" folder"]
[null,null,"CCH","H4 Soda Ash","Soda Ash","/","/","/","/","/","/","/",25.5,30,"/","/","/","/","/","/","/","/","/","/","/","/","/","/","/","SCANDIAFELT - Mo","/","/","1D+1CC","/",0.38,"/","/","/","/","/","/","/","/",1100,66,16,"/","/","Chloride",1.2999999999999999E-3,"/","/","Rosignano","/","FAB","Yes","/","/",9111,60,"data from \"documentations process\" folder"]
[null,null,"CCH","H4 Soda Ash","Soda Ash","/","/","/","/","/","/","/",20.399999999999999,31,"/","/","/","/","/","/","/","/","/","/","/","/","/","/","/","Mo/Dlw","/","/","2D+1CC","/",0.44,"/","/","/","/","/","/","/","/",1100,80,16.5,"/","/","Chloride","/","/","/","Ciech Matwy","/","FAB","Yes",2014,"/","1686 - 01",73.5,"\"contract values\" from soda ash excel reference list "]
[null,null,"CCH","H4 Soda Ash","Soda Ash","/","/","/","/","/","/","/",21.8,40,"/","/","/","/","/","/","/","/","/","/","/","/","/","/","/","/","/",17.5,"2D+1CC","/",0.44,"/","/","/",50.6,"/","/","/",89.24,1100,60,16,"/","/","Chloride",1.5E-3,"/","/","Ciech Janikowo","/","FAB","Yes","/","/","1686 - 02",54,"\"contract values\" from soda ash excel reference list; data from \"documentations process\" folder"]
[null,null,"CCH","H4 Soda Ash","Soda Ash","/","/","/","/","/","/","/",19,32,"/","/","/","/","/","/","/","/","/","/","/","/","/","/","/","214-3 CRAMER - - Mo/Mo Dlw","/",15,"2D+1CC","/",0.45,"/","/",5,60,"/","/","/",90,1100,120,16,"/","/","Chloride",1.5E-3,"/","/","Nanfang","/","FAB","Yes","/",515281,"/",108,"data from \"documentations process\" folder"]
[null,null,"CCH","H4 Soda Ash","Soda Ash","/","/","/","/","/","/","/",20,31,"/","/","/","/","/","/","/","/","/","/","/","/","/","/","/","SEFAR - - Mo/Mo Dlw","/",13,"2D+1CC","/",0.43,"/","/",7,60,"/","/","/",90,1100,61.22,16,"/","/","Chloride",1.5E-3,"/","/","Jingshen","/","FAB","Yes","/","515177 / 1","/",54,"data from \"documentations process\" folder"]
[null,null,"CCH","H4 Soda Ash","Soda Ash","/","/","/","/","/","/","/",14,38,"/","/","/","/","/","/","/","/","/","/","/","/","/","/","/","SEFAR - - Dlw","/",21,"2D+1CC","/",0.39,"/","/",6,63,"/","/","/",94,900,71.42,16,"/","/","Chloride",1.5E-3,"/","/","Kunshan","/","FAB","Yes","/","/","1440 / 01",81,"data from \"documentations process\" folder"]
[null,null,"ENV","A5 FGD (Flue-gas-desulfurization)","FGD (Gypsum)","/","/","/","/","/","/","/",45,"/","/","/","/","/","/","/","/","/","/","/","/","/","/","/","/","SEFAR - Mo","/",20," - D","/",0.6,"/","/",2,58,"/","/","/",90,860,35,"10","/","/","\"Salt\"",1E-4,"/","/","KOREA EAST-WEST POWER CO LTD (EWP)","/","FAB","Yes",2004,"/",20693,40.5,"data from \"documentations process\" folder"]
[null,null,"ENV","A5 FGD (Flue-gas-desulfurization)","FGD (Gypsum)","/","/","/","/","/","/","/",50,"/","/","/","/","/","/","/","/","/","/","/","/","/","/","/","/","SEFAR - Mo","/",20,"- 2D","/",0.59,"/","/",2,50,"/","/","/",92,900,43.2,"10","/","/","\"Salt\"",1E-4,"/","/","KOREAN WESTERN POWER CO LTD (KOWEPO)","/","FAB","Yes",2004,"/",20568,48,"data from \"documentations process\" folder"]
[null,null,"ENV","A5 FGD (Flue-gas-desulfurization)","FGD (Gypsum)","/","/","/","/","/","/","/",50,"/","/","/","/","/","/","/","/","/","/","/","/","/","/","/","/","SEFAR - Mo","15 (Start up value)",20," - D","/",0.6,"/","/",2,60,"/","/","/",90,880,45,"10","/","/","\"Salt\"",1E-4,"/","/","KOREAN SOUTH-EAST POWER (KOSEP)","/","FAB","Yes","2003","/",19021,51,"data from \"documentations process\" folder"]
[null,null,"ENV","A5 FGD (Flue-gas-desulfurization)","FGD (Gypsum)","/","/","/","/","/","/","/",50,"/","/","/","/","/","/","/","/","/","/","/","/","/","/","/","/","SEFAR - Mo","30 (Start up value)",20," - D","/",0.57999999999999996,"/","/",2,58,"/","/","/",90,890,36,"10","/","/","\"Salt\"",1E-4,"/","/","KOREAN WESTERN POWER CO LTD (KOWEPO)","/","FAB","Yes",2005,"505467 - 01","/",40.5,"data from \"documentations process\" folder"]
[null,null,"ENV","A5 FGD (Flue-gas-desulfurization)","FGD (Gypsum)","/","/","/","/","/","/","/",50,"/","/","/","/","/","/","/","/","/","/","/","/","/","/","/","/","SEFAR - Mo","/",20," - D","/",0.57999999999999996,"/","/",2,58,"/","/","/",90,890,36,"10","/","/","\"Salt\"",1E-4,"/","/","KOREA MIDLAND POWER CO (KOMIPO)","/","FAB","Yes",2006,"507590 - 01","/",40.5,"data from \"documentations process\" folder"]
[null,null,"ENV","A5 FGD (Flue-gas-desulfurization)","FGD (Gypsum)","/","/","/","/","/","/","/",48,"/","/","/","/","/","/","/","/","/","/","/","/","/","/","/","/","SEFAR - Mo","/",20," - D","/",0.5,"/","/",5,40,"/","/","/",75,910,45,"10","/","/","\"Salt\"",1E-4,"/","/","BABCOCK & WILCOX","/","FAB","Yes",2008,508873,"/",49.5,"data from \"documentations process\" folder"]
[null,null,"ENV","A5 FGD (Flue-gas-desulfurization)","FGD (Gypsum)","/","/","/","/","/","/","/",51,"/","/","/","/","/","/","/","/","/","/","/","/","/","/","/","/","SEFAR - Mo","/",15,"- D","/",0.6,"/","/",10,70,"/","/","/",110,970,90,"10","/","/","/","/","/","/","GEORGIA POWER, PLANT AMEC BOWDEN","/","FAB","Yes",2007,"509561 - 1","/",93,"data from \"documentations process\" folder"]
[null,null,"MMF","G3 Industrial minerals","Jarosite",30,85,1.5,4.3,"/",3,"/","/","/","/","/","/","/","/","/","/","/","/","/","/","/","/","/","/","26630B PP, Clear Edge (various types)",6,"/","/ - 1D",40,1.1000000000000001,6.5,"/","/","/","No/No","No/No","No/No","/","100",5,42.5,"/","/","Zinc","<0,1%","/",null,"BOLIDEN KOKKOLA OY",null,null,"/","/",null,"/",null,"No use of flocculant"]
[null,null,"MMF","C3 Potash Brine, NaCl, Mg Salts","NaCl Sylvinite","/","/","/","/","/","/","/",35,100,"/","/","/","/","/","/","/","/","/","/","/","/","/","/","/","Mo/Dlw","/","/","/","/",0.3,"/","/","/","/","/","/","/","/",13300,200,20,"/","/","/","/","/","/","DEAD SEA WORKS","/","FAB","Yes","/","/","/",15,"Type of process : \"Hot leach cristallisation\"; data from \"documentations process\" folder"]
[null,null,"MMF","C3 Potash Brine, NaCl, Mg Salts","Carnalitte KCl MgCl2","/","/","/","/","/","/","/",45,28,"/","/","/","/","/","/","/","/","/","/","/","/","/","/","/","Vendor",60,"/","No washing","No washing","No washing","No washing","No washing","No washing","No washing","/","/","/","/",7200,288,20,"/","/","/","/","/","/","DEAD SEA WORKS","/","FAB","Yes","/","/","/",50,"data from \"documentations process\" folder"]
[null,null,"MMF","L3 Zinc and cadmium","Zinc residue",null,null,null,null,null,null,null,null,null,null,null,null,null,null,null,null,null,null,null,null,null,null,null,null,null,null,null,null,null,null,null,null,null,null,null,null,null,null,null,null,null,null,null,null,null,null,"/","DEAD SEA WORKS","/","FAB","Yes","/","/","/",31.5,"data from \"documentations process\" folder"]

{"sheet":"Reference data base","index":1,"n_rows":204,"n_cols":704,"rows_kept":204,"cut":false,"hidden":false,"merged":[[94,3,96,3],[111,3,111,4],[112,3,112,4],[41,2,59,2],[56,3,59,3],[110,3,110,4],[109,3,109,4],[79,1,117,2],[93,3,93,4],[52,3,53,3],[54,3,55,3],[39,1,62,1],[61,2,62,3],[60,2,60,3],[39,2,40,3],[20,1,24,3],[25,1,32,3],[114,3,114,4],[115,3,115,4],[117,3,117,4],[116,3,116,4],[74,3,78,3],[80,3,92,3],[97,3,103,3],[104,3,107,3],[113,3,113,4],[108,3,108,4],[33,1,38,3],[63,1,66,3],[67,1,78,2],[41,3,51,3]]}
["Outil de filtration de la base de données"]
[]
[]
[]
[]
[]
[]
[]
[]
[]
[]
[]
[]
[]
[]
[]
[]
[]
[]
[]
[null,"Market & product data",null,null,"Market","MMF","MMF","MMF","MMF","MMF","MMF","MMF","MMF","MMF","MMF","MMF","MMF","MMF","MMF","MMF","ENV","ENV","ENV","ENV","ENV","ENV","ENV","ENV","ENV","ENV","ENV","ENV","ENV","ENV","ENV","ENV","ENV","ENV","ENV","ENV","ENV","ENV","MMF","MMF","MMF","MMF","MMF","MMF","MMF","MMF","MMF","MMF","MMF","MMF","MMF","MMF","MMF","MMF","MMF","CCH","CCH","CCH","CCH","CCH","CCH","CCH","CCH","CCH","CCH","MMF","MMF","MMF","MMF","MMF","MMF","MMF","MMF","MMF","MMF","MMF","MMF","MMF","MMF","MMF","MMF","MMF","MMF","MMF","MMF","MMF","MMF","MMF","MMF","MMF","MMF","MMF","MMF","MMF","MMF","MMF","MMF","MMF","MMF","MMF","MMF","MMF","MMF","MMF","MMF","MMF","MMF","MMF","MMF","MMF","MMF","MMF","MMF","MMF","MMF","MMF","MMF","MMF","MMF","MMF","MMF","MMF","MMF","MMF","MMF","MMF","MMF","MMF","MMF","MMF","MMF","MMF","MMF","MMF","MMF","MMF","MMF","MMF","MMF","MMF","MMF","MMF","MMF","MMF","ENV","ENV","ENV","ENV","ENV","ENV","ENV","ENV","ENV","ENV","ENV","ENV","ENV","ENV","ENV","ENV","MMF","MMF","MMF","MMF","MMF","MMF","MMF","CCH","CCH","CCH","CCH","CCH","CCH","CCH","CCH","MMF","MMF","MMF","MMF","MMF","MMF","MMF","CCH","CCH","CCH","CCH","CCH","CCH","CCH","CCH","CCH","CCH","CCH","CCH","CCH","CCH","CCH","CCH","CCH","CCH","CCH","CCH","CCH","CCH","CCH","CCH","CCH","MMF","MMF","MMF","MMF","MMF","MMF","MMF","MMF","MMF","MMF","MMF","MMF","MMF","MMF","MMF","MMF","MMF","MMF","MMF","MMF","MMF","MMF","MMF","MMF","MMF","MMF","MMF","MMF","MMF","MMF","MMF","MMF","MMF","MMF","MMF","MMF","MMF","MMF","MMF","MMF","MMF","MMF","MMF","MMF","MMF","MMF","MMF","MMF","MMF","MMF","MMF",null,null,null,null,null,null,null,null,null,null,null,null,null,null,null,null,null,null,null,null,null,null,null,null,null,null,null,null,null,null,null,null,null,null,null,null,null,null,null,null,null,null,null,null,null,null,null,null,null,null,null,null,null,null,null,null,null,null,null,null,null,null,null,null,null,null,null,null,null,null,null,null,null,null,null,null,null,null,null,null,null,null,null,null,null,null,null,null,null,null,null,null,null,null,null,null,null,null,null,null,null,null,null,null,null,null,null,null,null,null,null,null,null,null,null,null,null,null,null,null,null,null,null,null,null,null,null,null,null,null,null,null,null,null,null,null,null,null,null,null,null,null,null,null,null,null,null,null,null,null,null,null,null,null,null,null,null,null,null,null,null,null,null,null,null,null,null,null,null,null,null,null,null,null,null,null,null,null,null,null,null,null,null,null,null,null,null,null,null,null,null,null,null,null,null,null,null,null,null,null,null,null,null,null,null,null,null,null,null,null,null,null,null,null,null,null,null,null,null,null,null,null,null,null,null,null,null,null,null,null,null,null,null,null,null,null,null,null,null,null,null,null,null,null,null,null,null,null,null,null,null,null,null,null,null,null,null,null,null,null,null,null,null,null,null,null,null,null,null,null,null,null,null,null,null,null,null,null,null,null,null,null,null,null,null,null,null,null,null,null,null,null,null,null,null,null,null,null,null,null,null,null,null,null,null,null,null,null,null,null,null,null,null,null,null,null,null,null,null,null,null,null,null,null,null,null,null,null,null,null,null,null,null,null,null,null,null,null,null,null,null,null,null,null,null,null,null,null,null,null,null,null,null,null,null,null,null,null,null,null,null,null,null,null,null,null,null,null,null,null,null,null,null,null,null,null,null,null,null,null,null,null,null,null,null,null,null,null,null,null,null,null,null,null,null,null,null,null,null,null,null,null,null,null,null,null,null,null,null,null,null,null,null,null,null,null,null,null,null,null,null,null,null,null,null,null,null,null,null,null,null,null,null,null,null,null,null,null,null,null,null,"MMF"]
[null,null,null,null,"Submarket","N3 Nickel, Cobalt and Manganese","N3 Nickel, Cobalt and Manganese","N3 Nickel, Cobalt and Manganese","N3 Nickel, Cobalt and Manganese","N3 Nickel, Cobalt and Manganese","L3 Zinc and cadmium","L3 Zinc and cadmium","L3 Zinc and cadmium","L3 Zinc and cadmium","L3 Zinc and cadmium","J3 Metals recycling","J3 Metals recycling","D3 Uranium","F3 Copper (hydrometallurgy)","T3 Other metals","A5 FGD (Flue-gas-desulfurization)","A5 FGD (Flue-gas-desulfurization)","A5 FGD (Flue-gas-desulfurization)","A5 FGD (Flue-gas-desulfurization)","A5 FGD (Flue-gas-desulfurization)","A5 FGD (Flue-gas-desulfurization)","A5 FGD (Flue-gas-desulfurization)","A5 FGD (Flue-gas-desulfurization)","A5 FGD (Flue-gas-desulfurization)","A5 FGD (Flue-gas-desulfurization)","A5 FGD (Flue-gas-desulfurization)","A5 FGD (Flue-gas-desulfurization)","A5 FGD (Flue-gas-desulfurization)","A5 FGD (Flue-gas-desulfurization)","A5 FGD (Flue-gas-desulfurization)","A5 FGD (Flue-gas-desulfurization)","A5 FGD (Flue-gas-desulfurization)","A5 FGD (Flue-gas-desulfurization)","A5 FGD (Flue-gas-desulfurization)","A5 FGD (Flue-gas-desulfurization)","A5 FGD (Flue-gas-desulfurization)","A5 FGD (Flue-gas-desulfurization)","C3 Potash Brine, NaCl, Mg Salts","C3 Potash Brine, NaCl, Mg Salts","C3 Potash Brine, NaCl, Mg Salts","C3 Potash Brine, NaCl, Mg Salts","C3 Potash Brine, NaCl, Mg Salts","C3 Potash Brine, NaCl, Mg Salts","C3 Potash Brine, NaCl, Mg Salts","C3 Potash Brine, NaCl, Mg Salts","C3 Potash Brine, NaCl, Mg Salts","C3 Potash Brine, NaCl, Mg Salts","C3 Potash Brine, NaCl, Mg Salts","C3 Potash Brine, NaCl, Mg Salts","C3 Potash Brine, NaCl, Mg Salts","C3 Potash Brine, NaCl, Mg Salts","C3 Potash Brine, NaCl, Mg Salts","C3 Potash Brine, NaCl, Mg Salts","C3 Potash Brine, NaCl, Mg Salts","H4 Soda Ash","H4 Soda Ash","H4 Soda Ash","H4 Soda Ash","H4 Soda Ash","H4 Soda Ash","H4 Soda Ash","H4 Soda Ash","H4 Soda Ash","H4 Soda Ash","A1 Phosphoric acid","A1 Phosphoric acid","A1 Phosphoric acid","A1 Phosphoric acid","A1 Phosphoric acid","A1 Phosphoric acid","A1 Phosphoric acid","A1 Phosphoric acid","A1 Phosphoric acid","A1 Phosphoric acid","A1 Phosphoric acid","A1 Phosphoric acid","A1 Phosphoric acid","A1 Phosphoric acid","A1 Phosphoric acid","A1 Phosphoric acid","A1 Phosphoric acid","A1 Phosphoric acid","A1 Phosphoric acid","A1 Phosphoric acid","A1 Phosphoric acid","A1 Phosphoric acid","A1 Phosphoric acid","A1 Phosphoric acid","A1 Phosphoric acid","A1 Phosphoric acid","A1 Phosphoric acid","A1 Phosphoric acid","A1 Phosphoric acid","A1 Phosphoric acid","A1 Phosphoric acid","A1 Phosphoric acid","A1 Phosphoric acid","A1 Phosphoric acid","A1 Phosphoric acid","A1 Phosphoric acid","A1 Phosphoric acid","A1 Phosphoric acid","A1 Phosphoric acid","A1 Phosphoric acid","A1 Phosphoric acid","A1 Phosphoric acid","A1 Phosphoric acid","A1 Phosphoric acid","A1 Phosphoric acid","A3 Phosphate rock","A3 Phosphate rock","A3 Phosphate rock","A3 Phosphate rock","A3 Phosphate rock","A3 Phosphate rock","A3 Phosphate rock","A3 Phosphate rock","A3 Phosphate rock","A3 Phosphate rock","A3 Phosphate rock","A3 Phosphate rock","A3 Phosphate rock","A3 Phosphate rock","A3 Phosphate rock","A3 Phosphate rock","A3 Phosphate rock","A3 Phosphate rock","A3 Phosphate rock","A3 Phosphate rock","A3 Phosphate rock","A3 Phosphate rock","A3 Phosphate rock","A3 Phosphate rock","A3 Phosphate rock","A3 Phosphate rock","A3 Phosphate rock","A3 Phosphate rock","A3 Phosphate rock","A3 Phosphate rock","A3 Phosphate rock","A3 Phosphate rock","A3 Phosphate rock","A3 Phosphate rock","A5 FGD (Flue-gas-desulfurization)","A5 FGD (Flue-gas-desulfurization)","A5 FGD (Flue-gas-desulfurization)","A5 FGD (Flue-gas-desulfurization)","A5 FGD (Flue-gas-desulfurization)","A5 FGD (Flue-gas-desulfurization)","A5 FGD (Flue-gas-desulfurization)","A5 FGD (Flue-gas-desulfurization)","A5 FGD (Flue-gas-desulfurization)","A5 FGD (Flue-gas-desulfurization)","A5 FGD (Flue-gas-desulfurization)","A5 FGD (Flue-gas-desulfurization)","A5 FGD (Flue-gas-desulfurization)","A5 FGD (Flue-gas-desulfurization)","A5 FGD (Flue-gas-desulfurization)","A5 FGD (Flue-gas-desulfurization)","F3 Copper (hydrometallurgy)","F3 Copper (hydrometallurgy)","F3 Copper (hydrometallurgy)","F3 Copper (hydrometallurgy)","F3 Copper (hydrometallurgy)","F3 Copper (hydrometallurgy)","F3 Copper (hydrometallurgy)","H4 Soda Ash","H4 Soda Ash","H4 Soda Ash","H4 Soda Ash","H4 Soda Ash","H4 Soda Ash","H4 Soda Ash","H4 Soda Ash","J3 Metals recycling","J3 Metals recycling","J3 Metals recycling","J3 Metals recycling","J3 Metals recycling","J3 Metals recycling","J3 Metals recycling","I4 Aminated Acids / vitamins / specialty acids (lactic, citric…)","I4 Aminated Acids / vitamins / specialty acids (lactic, citric…)","I4 Aminated Acids / vitamins / specialty acids (lactic, citric…)","I4 Aminated Acids / vitamins / specialty acids (lactic, citric…)","I4 Aminated Acids / vitamins / specialty acids (lactic, citric…)","I4 Aminated Acids / vitamins / specialty acids (lactic, citric…)","I4 Aminated Acids / vitamins / specialty acids (lactic, citric…)","I4 Aminated Acids / vitamins / specialty acids (lactic, citric…)","I4 Aminated Acids / vitamins / specialty acids (lactic, citric…)","I4 Aminated Acids / vitamins / specialty acids (lactic, citric…)","I4 Aminated Acids / vitamins / specialty acids (lactic, citric…)","I4 Aminated Acids / vitamins / specialty acids (lactic, citric…)","I4 Aminated Acids / vitamins / specialty acids (lactic, citric…)","I4 Aminated Acids / vitamins / specialty acids (lactic, citric…)","I4 Aminated Acids / vitamins / specialty acids (lactic, citric…)","I4 Aminated Acids / vitamins / specialty acids (lactic, citric…)","I4 Aminated Acids / vitamins / specialty acids (lactic, citric…)","I4 Aminated Acids / vitamins / specialty acids (lactic, citric…)","I4 Aminated Acids / vitamins / specialty acids (lactic, citric…)","I4 Aminated Acids / vitamins / specialty acids (lactic, citric…)","I4 Aminated Acids / vitamins / specialty acids (lactic, citric…)","I4 Aminated Acids / vitamins / specialty acids (lactic, citric…)","I4 Aminated Acids / vitamins / specialty acids (lactic, citric…)","I4 Aminated Acids / vitamins / specialty acids (lactic, citric…)","I4 Aminated Acids / vitamins / specialty acids (lactic, citric…)","L3 Zinc and cadmium","L3 Zinc and cadmium","L3 Zinc and cadmium","L3 Zinc and cadmium","L3 Zinc and cadmium","L3 Zinc and cadmium","L3 Zinc and cadmium","L3 Zinc and cadmium","L3 Zinc and cadmium","L3 Zinc and cadmium","L3 Zinc and cadmium","L3 Zinc and cadmium","L3 Zinc and cadmium","L3 Zinc and cadmium","L3 Zinc and cadmium","L3 Zinc and cadmium","L3 Zinc and cadmium","L3 Zinc and cadmium","L3 Zinc and cadmium","L3 Zinc and cadmium","L3 Zinc and cadmium","L3 Zinc and cadmium","L3 Zinc and cadmium","L3 Zinc and cadmium","L3 Zinc and cadmium","L3 Zinc and cadmium","L3 Zinc and cadmium","L3 Zinc and cadmium","L3 Zinc and cadmium","L3 Zinc and cadmium","L3 Zinc and cadmium","L3 Zinc and cadmium","L3 Zinc and cadmium","L3 Zinc and cadmium","L3 Zinc and cadmium","N3 Nickel, Cobalt and Manganese","N3 Nickel, Cobalt and Manganese","N3 Nickel, Cobalt and Manganese","N3 Nickel, Cobalt and Manganese","N3 Nickel, Cobalt and Manganese","N3 Nickel, Cobalt and Manganese","N3 Nickel, Cobalt and Manganese","N3 Nickel, Cobalt and Manganese","N3 Nickel, Cobalt and Manganese","N3 Nickel, Cobalt and Manganese","N3 Nickel, Cobalt and Manganese","N3 Nickel, Cobalt and Manganese","N3 Nickel, Cobalt and Manganese","N3 Nickel, Cobalt and Manganese","N3 Nickel, Cobalt and Manganese","N3 Nickel, Cobalt and Manganese",null,null,null,null,null,null,null,null,null,null,null,null,null,null,null,null,null,null,null,null,null,null,null,null,null,null,null,null,null,null,null,null,null,null,null,null,null,null,null,null,null,null,null,null,null,null,null,null,null,null,null,null,null,null,null,null,null,null,null,null,null,null,null,null,null,null,null,null,null,null,null,null,null,null,null,null,null,null,null,null,null,null,null,null,null,null,null,null,null,null,null,null,null,null,null,null,null,null,null,null,null,null,null,null,null,null,null,null,null,null,null,null,null,null,null,null,null,null,null,null,null,null,null,null,null,null,null,null,null,null,null,null,null,null,null,null,null,null,null,null,null,null,null,null,null,null,null,null,null,null,null,null,null,null,null,null,null,null,null,null,null,null,null,null,null,null,null,null,null,null,null,null,null,null,null,null,null,null,null,null,null,null,null,null,null,null,null,null,null,null,null,null,null,null,null,null,null,null,null,null,null,null,null,null,null,null,null,null,null,null,null,null,null,null,null,null,null,null,null,null,null,null,null,null,null,null,null,null,null,null,null,null,null,null,null,null,null,null,null,null,null,null,null,null,null,null,null,null,null,null,null,null,null,null,null,null,null,null,null,null,null,null,null,null,null,null,null,null,null,null,null,null,null,null,null,null,null,null,null,null,null,null,null,null,null,null,null,null,null,null,null,null,null,null,null,null,null,null,null,null,null,null,null,null,null,null,null,null,null,null,null,null,null,null,null,null,null,null,null,null,null,null,null,null,null,null,null,null,null,null,null,null,null,null,null,null,null,null,null,null,null,null,null,null,null,null,null,null,null,null,null,null,null,null,null,null,null,null,null,null,null,null,null,null,null,null,null,null,null,null,null,null,null,null,null,null,null,null,null,null,null,null,null,null,null,null,null,null,null,null,null,null,null,null,null,null,null,null,null,null,null,null,null,null,null,null,null,null,null,null,null,null,null,null,null,null,null,null,null,null,null,null,null,null,null,null,null,null,null,null,null,null,null,null,null,null,null,null,null,null,null,"A3 Phosphate rock"]
[null,null,null,null,"Application","Hydrometallurgy","Hydrometallurgy","Hydrometallurgy","Hydrometallurgy","Hydrometallurgy","Hydrometallurgy","Hydrometallurgy","Hydrometallurgy","Hydrometallurgy","Hydrometallurgy","Hydrometallurgy","Hydrometallurgy","Hydrometallurgy","Hydrometallurgy","Hydrometallurgy","FGD","FGD","FGD","FGD","FGD","FGD","FGD","FGD","FGD","FGD","FGD","FGD","FGD","FGD","FGD","FGD","FGD","FGD","FGD","FGD","FGD","FGD","POTASH","POTASH","POTASH","POTASH","POTASH","POTASH","POTASH","POTASH","POTASH","POTASH","POTASH","POTASH","POTASH","POTASH","POTASH","POTASH","POTASH","SODA ASH","SODA ASH","SODA ASH","SODA ASH","SODA ASH","SODA ASH","SODA ASH","SODA ASH","SODA ASH","SODA ASH","PHOSPHORIC ACID","PHOSPHORIC ACID","PHOSPHORIC ACID","PHOSPHORIC ACID","PHOSPHORIC ACID","PHOSPHORIC ACID","PHOSPHORIC ACID","PHOSPHORIC ACID","PHOSPHORIC ACID","PHOSPHORIC ACID","PHOSPHORIC ACID","PHOSPHORIC ACID","PHOSPHORIC ACID","PHOSPHORIC ACID","PHOSPHORIC ACID","PHOSPHORIC ACID","PHOSPHORIC ACID","PHOSPHORIC ACID","PHOSPHORIC ACID","PHOSPHORIC ACID","PHOSPHORIC ACID","PHOSPHORIC ACID","PHOSPHORIC ACID","PHOSPHORIC ACID","PHOSPHORIC ACID","PHOSPHORIC ACID","PHOSPHORIC ACID","PHOSPHORIC ACID","PHOSPHORIC ACID","PHOSPHORIC ACID","PHOSPHORIC ACID","PHOSPHORIC ACID","PHOSPHORIC ACID","PHOSPHORIC ACID","PHOSPHORIC ACID","PHOSPHORIC ACID","PHOSPHORIC ACID","PHOSPHORIC ACID","PHOSPHORIC ACID","PHOSPHORIC ACID","PHOSPHORIC ACID","PHOSPHORIC ACID","PHOSPHORIC ACID","PHOSPHORIC ACID","PHOSPHORIC ACID","PHOSPHATE ROCK","PHOSPHATE ROCK","PHOSPHATE ROCK","PHOSPHATE ROCK","PHOSPHATE ROCK","PHOSPHATE ROCK","PHOSPHATE ROCK","PHOSPHATE ROCK","PHOSPHATE ROCK","PHOSPHATE ROCK","PHOSPHATE ROCK","PHOSPHATE ROCK","PHOSPHATE ROCK","PHOSPHATE ROCK","PHOSPHATE ROCK","PHOSPHATE ROCK","PHOSPHATE ROCK","PHOSPHATE ROCK","PHOSPHATE ROCK","PHOSPHATE ROCK","PHOSPHATE ROCK","PHOSPHATE ROCK","PHOSPHATE ROCK","PHOSPHATE ROCK","PHOSPHATE ROCK","PHOSPHATE ROCK","PHOSPHATE ROCK","PHOSPHATE ROCK","PHOSPHATE ROCK","PHOSPHATE ROCK","PHOSPHATE ROCK","PHOSPHATE ROCK","PHOSPHATE ROCK","PHOSPHATE ROCK","FGD","FGD","FGD","FGD","FGD","FGD","FGD","FGD","FGD","FGD","FGD","FGD","FGD","FGD","FGD","FGD","Hydrometallurgy","Hydrometallurgy","Hydrometallurgy","Hydrometallurgy","Hydrometallurgy","Hydrometallurgy","Hydrometallurgy","SODA ASH","SODA ASH","SODA ASH","SODA ASH","SODA ASH","SODA ASH","SODA ASH","SODA ASH","Hydrometallurgy","Hydrometallurgy","Hydrometallurgy","Hydrometallurgy","Hydrometallurgy","Hydrometallurgy","Hydrometallurgy","Tartaric acid","Methionine Raw","Methionine Pure","Methionine Pure","Methionine Pure","Methionine Raw","CaSO4","Citric acid","Methionine","Hydrasine chlorhydrate","Amine acid","Threonine","Glutamate","Gallic acid","Citric acid","Tartaric acid","Tartaric acid","Lactic acid","Methionine Raw","Methionine Raw","Methionine Raw","Methionine Extr.","Methionine Pure","Methionine Raw","Methionine Extr.","Hydrometallurgy","Hydrometallurgy","Hydrometallurgy","Hydrometallurgy","Hydrometallurgy","Hydrometallurgy","Hydrometallurgy","Hydrometallurgy","Hydrometallurgy","Hydrometallurgy","Hydrometallurgy","Hydrometallurgy","Hydrometallurgy","Hydrometallurgy","Hydrometallurgy","Hydrometallurgy","Hydrometallurgy","Hydrometallurgy","Hydrometallurgy","Hydrometallurgy","Hydrometallurgy","Hydrometallurgy","Hydrometallurgy","Hydrometallurgy","Hydrometallurgy","Hydrometallurgy","Hydrometallurgy","Hydrometallurgy","Hydrometallurgy","Hydrometallurgy","Hydrometallurgy","Hydrometallurgy","Hydrometallurgy","Hydrometallurgy","Hydrometallurgy","Hydrometallurgy","Hydrometallurgy","Hydrometallurgy","Hydrometallurgy","Hydrometallurgy","Hydrometallurgy","Hydrometallurgy","Hydrometallurgy","Hydrometallurgy","Hydrometallurgy","Hydrometallurgy","Hydrometallurgy","Hydrometallurgy","Hydrometallurgy","Hydrometallurgy","Hydrometallurgy",null,null,null,null,null,null,null,null,null,null,null,null,null,null,null,null,null,null,null,null,null,null,null,null,null,null,null,null,null,null,null,null,null,null,null,null,null,null,null,null,null,null,null,null,null,null,null,null,null,null,null,null,null,null,null,null,null,null,null,null,null,null,null,null,null,null,null,null,null,null,null,null,null,null,null,null,null,null,null,null,null,null,null,null,null,null,null,null,null,null,null,null,null,null,null,null,null,null,null,null,null,null,null,null,null,null,null,null,null,null,null,null,null,null,null,null,null,null,null,null,null,null,null,null,null,null,null,null,null,null,null,null,null,null,null,null,null,null,null,null,null,null,null,null,null,null,null,null,null,null,null,null,null,null,null,null,null,null,null,null,null,null,null,null,null,null,null,null,null,null,null,null,null,null,null,null,null,null,null,null,null,null,null,null,null,null,null,null,null,null,null,null,null,null,null,null,null,null,null,null,null,null,null,null,null,null,null,null,null,null,null,null,null,null,null,null,null,null,null,null,null,null,null,null,null,null,null,null,null,null,null,null,null,null,null,null,null,null,null,null,null,null,null,null,null,null,null,null,null,null,null,null,null,null,null,null,null,null,null,null,null,null,null,null,null,null,null,null,null,null,null,null,null,null,null,null,null,null,null,null,null,null,null,null,null,null,null,null,null,null,null,null,null,null,null,null,null,null,null,null,null,null,null,null,null,null,null,null,null,null,null,null,null,null,null,null,null,null,null,null,null,null,null,null,null,null,null,null,null,null,null,null,null,null,null,null,null,null,null,null,null,null,null,null,null,null,null,null,null,null,null,null,null,null,null,null,null,null,null,null,null,null,null,null,null,null,null,null,null,null,null,null,null,null,null,null,null,null,null,null,null,null,null,null,null,null,null,null,null,null,null,null,null,null,null,null,null,null,null,null,null,null,null,null,null,null,null,null,null,null,null,null,null,null,null,null,null,null,null,null,null,null,null,null,null,null,null,null,null,null,null,null,null,null,null,null,null,null,null,null,null,"PHOSPHATE ROCK"]
[null,null,null,null,"Product","Nickel ore","Carbonate nickel","NiSO4","Nickel","Nickel (neutralized slurry)","Zinc residue","Zinc (Jarosite)","Zinc (BZS)","Zinc (Jarosite)","Jarosite","Aluminium slags","Aluminium slags","Uranium peroxide","Copper oxide","Dichromate sodium","FGD (Gypsum)","FGD (Gypsum)","FGD (Gypsum)","FGD (Gypsum)","FGD (Gypsum)","FGD (Gypsum)","FGD (Gypsum)","FGD (Gypsum)","FGD (Gypsum)","FGD (Gypsum)","FGD (Gypsum)","FGD (Gypsum)","FGD (Gypsum)","FGD (Gypsum)","FGD (Gypsum)","FGD (Gypsum)","FGD (Gypsum)","FGD (Gypsum)","FGD (Gypsum)","FGD (Gypsum)","FGD (Gypsum)","FGD (Gypsum)","Halite","Halite waste","Halite","Sylvinite","NaCl Sylvinite","Sylvinite","Sylvinite","Sylvinite (KCl + NaCl)","Carnalitte KCl MgCl3","Carnallite","Carnallite","Carnallite","KCl","Tails","Salt","NaCl SEPARATION","KCl Sylvite","NaHCO3","NaHCO3","NaHCO3","NaHCO3","NaHCO3","NaHCO3","NaHCO3","NaHCO3","NaHCO3","NaHCO3","Fluosilicate","Chemical product","H3PO4 - Sludge","H3PO4 - 30% Dihydrate","H3PO4 - 30% Dihydrate","H3PO4 - Defluoration","H3PO4 - 30% Dihydrate","Phosphogypsum","H3PO4 - 30% Dihydrate","H3PO4 - 30% Dihydrate","H3PO4 - 30% Dihydrate","H3PO4 - 30% Dihydrate","H3PO4 - 30% Dihydrate","Pilot unit","Phosphogypsum","H3PO4 - Sludge","H3PO4 - 30% Dihydrate","H3PO4","H3PO4 - 30% Dihydrate","H3PO4 + HCL","H3PO4 - 30% Dihydrate","H3PO4 + HCL","Aluminium Fluoride","H3PO4 - 30% Dihydrate","H3PO4 - Sludge","H3PO4 - 54% Clarificat","H3PO4 - 54% Clarificat","H3PO4 - 54% Clarificat","H3PO4 - 30% Dihydrate","H3PO4 - 30% Dihydrate","H3PO4 - 50% hemihydrate","H3PO4 - 30% Dihydrate","H3PO4 - 42% Clarificat","H3PO4 - 30% Dihydrate","H3PO4 - 54% Clarificat","Acid sludges","H3PO4 - 30% Dihydrate","H3PO4 - 30% Dihydrate","H3PO4","H3PO4 - 54% Clarificat","Pilot Unit","H3PO4 - 30% Dihydrate","H3PO4 - 30% Dihydrate","H3PO4 - 30% Dihydrate","Phosphoric acid","Phosphate Ore","Phosphate Ore","Phosphate Ore","Phosphate Ore","Apatite","Apatite","Phosphate Ore","Phosphate Ore","Phosphate Ore","Phosphate Ore","Phosphate Ore","Phosphate Ore","Phosphate Ore","Phosphate Ore","Phosphate Ore","Phosphate Ore","Phosphate Ore","Phosphate Ore","Phosphate Ore","Phosphate Ore","Phosphate Ore","Phosphate Ore","Phosphate Ore","Phosphate Ore","Phosphate Ore","Phosphate Ore","Phosphate Ore","Phosphate Ore","Phosphate Ore","Phosphate Ore","Phosphate Ore","Phosphate Ore","Phosphate Ore","Apatite","Tar Sand","FGD (Gypsum)","FGD (Gypsum)","FGD (Gypsum)","Gas desulfuris","FGD (Gypsum)","FGD (Gypsum)","FGD (Gypsum)","FGD (Gypsum)","FGD (Gypsum)","FGD (Gypsum)","FGD (Gypsum)","FGD (Gypsum)","FGD (Gypsum)","FGD (Gypsum)","FGD (Gypsum)","Copper","Copper oxychloride","Copper","Copper","Copper powder","Copper tailings",null,"NaHCO3","NaHCO3","NaHCO3","NaHCO3","NaHCO3","NaHCO3","NaHCO3","NaHCO3","Aluminium slags","Aluminium slags","Aluminium slags","Aluminium slags","Aluminium slags","Aluminium slags","Aluminium slags","Tartaric acid","Methionine Raw","Methionine Pure","Methionine Pure","Methionine Pure","Methionine Raw","CaSO4","Citric acid","Methionine","Hydrasine chlorhydrate","Amine acid","Threonine","Glutamate","Gallic acid","Citric acid","Tartaric acid","Tartaric acid","Lactic acid","Methionine Raw","Methionine Raw","Methionine Raw","Methionine Extr.","Methionine Pure","Methionine Raw","Methionine Extr.","Zinc (BZS)","Zinc (Jarosite)","Zinc (Silicate)","Zinc (Gypsum)","Zinc (Jarosite)","Zinc (Jarosite)","Zinc (Jarosite)","Zinc (Jarosite)","Zinc (Jarosite)","Magnesium removal","Residu plomb-argent","Zinc (Geolithe)","Jarosite","Jarosite","floatation residue_pulp acid","Zinc","Zinc oxide","Zinc oxide","Leach Residue","Leach Residue","Demonstration","Zinc (BZS)","Zinc (Jarosite)","Zinc (cement)","Zinc (cement)","Zinc (cement)","Zinc (Jarosite)","Cadmium (Cement)","Zinc","Zinc","Zinc","Zinc","Jarosite","Zinc (Jarosite)","BZS - Basic Zinc","Manganese","Manganese","Manganese","Nickel carbonate","Nickel carbonate","Cobalt chloride","Nickel carbonate","Nickel ore","Nickel (neutralized slurry)","Nickel (neutralized slurry)","Cobalt (Sulfate)","Cobalt (Hydroxide)","Cobalt (Hydroxide)","Cobalt (Hydroxide)","Cobalt extension","Gypsum_cobalt",null,null,null,null,null,null,null,null,null,null,null,null,null,null,null,null,null,null,null,null,null,null,null,null,null,null,null,null,null,null,null,null,null,null,null,null,null,null,null,null,null,null,null,null,null,null,null,null,null,null,null,null,null,null,null,null,null,null,null,null,null,null,null,null,null,null,null,null,null,null,null,null,null,null,null,null,null,null,null,null,null,null,null,null,null,null,null,null,null,null,null,null,null,null,null,null,null,null,null,null,null,null,null,null,null,null,null,null,null,null,null,null,null,null,null,null,null,null,null,null,null,null,null,null,null,null,null,null,null,null,null,null,null,null,null,null,null,null,null,null,null,null,null,null,null,null,null,null,null,null,null,null,null,null,null,null,null,null,null,null,null,null,null,null,null,null,null,null,null,null,null,null,null,null,null,null,null,null,null,null,null,null,null,null,null,null,null,null,null,null,null,null,null,null,null,null,null,null,null,null,null,null,null,null,null,null,null,null,null,null,null,null,null,null,null,null,null,null,null,null,null,null,null,null,null,null,null,null,null,null,null,null,null,null,null,null,null,null,null,null,null,null,null,null,null,null,null,null,null,null,null,null,null,null,null,null,null,null,null,null,null,null,null,null,null,null,null,null,null,null,null,null,null,null,null,null,null,null,null,null,null,null,null,null,null,null,null,null,null,null,null,null,null,null,null,null,null,null,null,null,null,null,null,null,null,null,null,null,null,null,null,null,null,null,null,null,null,null,null,null,null,null,null,null,null,null,null,null,null,null,null,null,null,null,null,null,null,null,null,null,null,null,null,null,null,null,null,null,null,null,null,null,null,null,null,null,null,null,null,null,null,null,null,null,null,null,null,null,null,null,null,null,null,null,null,null,null,null,null,null,null,null,null,null,null,null,null,null,null,null,null,null,null,null,null,null,null,null,null,null,null,null,null,null,null,null,null,null,null,null,null,null,null,null,null,null,null,null,null,null,null,null,null,null,null,null,null,null,null,null,null,null,null,null,null,null,null,null,null,null,null,"Phosphate Ore"]
[null,null,null,null,"Type of process",null,"HCl","H2SO4",null,null,null,null,null,null,null,null,null,"Amine extraction",null,null,"Wet FGD","Wet FGD","Wet FGD","Wet FGD","Wet FGD","Wet FGD","Wet FGD","Wet FGD","Wet FGD","Wet FGD","Wet FGD","Wet FGD","Wet FGD","Wet FGD","Wet FGD","Wet FGD","Wet FGD","Wet FGD","Wet FGD","Wet FGD","Wet FGD","Wet FGD",null,null,null,null,"Hot leach cristallisation",null,"Flotation","Flotation","Hot leach cristallisation","Continuous",null,null,null,null,"Hot leach cristallisation",null,"FLOTATION","Solvay","Solvay","Solvay","Solvay","Solvay","Solvay","Solvay","Hou","Hou","Hou"]
[null,"Filter data",null,null,"TG","3768?",3975,"SD0130",3834,"3560? - 4307","3430 (démarrage)","3743 - 4047?","3873 - 3933 (Technical visit)- 4096","3873 - 3933 (Technical visit) - 4141 (Lab test offer) - 4175 (lab test offer)",null,"3872 (Démarrage) - 3500","3844 - 4326 (Pannevis belt filter process audit)","3859 (Démarrage) - 3976 - 4059 (commissioning offer)",3741,"3905 (Démarrage) - 3933 (Technical visit) - 4066 (Audit)",4121,"4109 (Start up)",null,null,null,"3955 (mechanical acceptance)","3937 (Visit + Lab test) - 4020 (Technical audit)","3956 (mechanical acceptance) - 3961 (Visit)","3896 (démarrage)","3849 (démarrage)",null,null,"(3893 démarrage)","3729? (acceptance report)","3818 - 3938 (supervision report)",null,"3883 (démarrage)",null,null,null,null,null,null,null,null,"3635 (démarrage)?","3635 (démarrage)?",null,3763,null,"3635 (démarrage)?",null,null,null,null,null,null,null,null,"3947 (acceptance tests)","3946 (acceptance tests)",null,null,null,"2526 - 4086 - 4211 (cake washing optimization)","3536 - 4086","3953 - 4075 ? (démarrage)","4014 - 4077",4161,null,null,null,null,null,null,null,null,null,null,null,null,"3936 (Technical visit)",null,"4251 (audit process offer) - 4278 (audit process offer) - 4322 (process audit offer)",null,null,"3954 - 4151 (audit)",3954,null,null,null,null,null,"3306 (démarrage)",null,4219,null,null,null,null,null,null,null,null,null,null,null,null,null,3645,"4244 (process audit offer)","4244 (process audit offer)",null,"4155 - 4188 (start up) - 4390 (lab test offer)",null,"3625 - 4000",null,null,"TG 3494 (démarrage) - 3545?","3991 - 4045",null,null,"4044 (commissioning) -",null,null,"3982 - 3363 ? - 4057? - 4091? - 4123? - 4268 (audit meca + process) - 4441 (audit report)",null,null,null,null,null,null,null,null,null,null,null,null,null,null,null,null,null,null,null,null,null,null,null,null,null,3699,null,null,null,null,null,null,"4149 - 4162 (start up) - 4202",null,null,null,null,null,null,null,null,null,"3838 (essais problèmes)","4089 (installation report) - 4166",null,"4077 - 4124 (Start up)",null,null,3616,"4112 - 4135 (start up)",null,"4190 (start up)",null,"4364 (audit report) - 4396 (cloth testing)","4364 (audit report) - 4396 (cloth testing)",null,null,null,null,"4156 - 4178 (process audit) - 4363",null,null,null,null,null,null,"3607? - 4097 (lab test offer) - 4170","3684?",null,null,"3562?",null,null,"4184 - 4246 (process audit offer)",null,null,null,null,null,null,null,null,"4300 (process audit)","4300 (process audit)","4300 (process audit)",null,null,null,"TG 3353","TG 3353",null,null,"3878 (start-up)",null,4116,null,null,null,"4177 - 4179",null,null,3511,3511,"4150 (audit offer)","4150 (audit offer)","4150 (audit offer)","4150 (audit offer)","3497 - 3845 - 3842 - 4002 (process audit)",null,null,null,null,null,null,null,null,null,null,"3580? (démarrage)",null,null,null,null,3975,null,"3733?",null,null,4307,null,"3863 - 4058","3863 - 4058","3863 - 4058",null,"4113 (start up)","4102 - 4148 - 4245 (process audit offer)",null,null,null,null,null,null,null,null,null,null,null,null,null,null,null,null,null,null,null,null,null,null,null,null,null,null,null,null,null,null,null,null,null,null,null,null,null,null,null,null,null,null,null,null,null,null,null,null,null,null,null,null,null,null,null,null,null,null,null,null,null,null,null,null,null,null,null,null,null,null,null,null,null,null,null,null,null,null,null,null,null,null,null,null,null,null,null,null,null,null,null,null,null,null,null,null,null,null,null,null,null,null,null,null,null,null,null,null,null,null,null,null,null,null,null,null,null,null,null,null,null,null,null,null,null,null,null,null,null,null,null,null,null,null,null,null,null,null,null,null,null,null,null,null,null,null,null,null,null,null,null,null,null,null,null,null,null,null,null,null,null,null,null,null,null,null,null,null,null,null,null,null,null,null,null,null,null,null,null,null,null,null,null,null,null,null,null,null,null,null,null,null,null,null,null,null,null,null,null,null,null,null,null,null,null,null,null,null,null,null,null,null,null,null,null,null,null,null,null,null,null,null,null,null,null,null,null,null,null,null,null,null,null,null,null,null,null,null,null,null,null,null,null,null,null,null,null,null,null,null,null,null,null,null,null,null,null,null,null,null,null,null,null,null,null,null,null,null,null,null,null,null,null,null,null,null,null,null,null,null,null,null,null,null,null,null,null,null,null,null,null,null,null,null,null,null,null,null,null,null,null,null,null,null,null,null,null,null,null,null,null,null,null,null,null,null,null,null,null,null,null,null,null,null,null,null,null,null,null,null,null,null,null,null,null,null,null,null,null,null,null,null,null,null,null,null,null,null,null,null,null,null,null,null,null,null,null,null,null,null,null,null,null,null,null,null,null,null,null,null,null,null,null,null,null,null,null,null,null,null,null,null,null,null,null,null,null,null,null,null,null,null,null,null,null,null,null,null,null,null,null,null,null,null,null,null,null,null,null,null,null,null,null,null,null,null,null,null,null,null,null,null,null,null,null,null,null,null,null,null,null,null,null,null,null,null,null,null,null,null,null,"SS0440"]
[null,null,null,null,"Start-up date",2006,null,2026,null,2009,null,2005,2007,2007,null,null,2007,null,2005,2007,null,2014,2014,null,null,2010,2007,null,2008,2006,2004,2005,2007,2003,2005,2002,2006,2007,2005,2004,1999,null,null,null,null,null,null,null,null,null,null,null,null,null,null,null,null,null,null,2009,2009,2010,1996,1992,2014,2014,2013,2010,2014,null,null,1974,null,1994,1983,1979,1984,1980,1973,1978,1969,1995,1982,1995,1995,1998,1991,1991,1990,1988,1984,1996,1973,2001,1998,2003,1982,null,1971,1991,1972,1999,1965,1976,1985,1982,1972,1982,1985,2003,1997,1997,1995,2016,2002,2010,null,null,2001,2012,null,1992,2011,1997,1977,2010,2001,2005,2011,2014,null,1977,1990,1985,null,null,null,null,null,null,null,null,null,null,null,null,null,null,2005,2005,1994,2001,1991,2017,1997,1997,1996,2005,2014,null,null,null,null,2020,2005,1984,2006,2006,1984,2016,2020,2014,1992,1992,1987,2015,2015,2016,2020,2001,2007,null,1995,1990,null,2016,null,2004,2004,1997,1997,1992,1993,1992,1988,1984,null,1996,1987,null,null,1984,null,null,1997,null,null,null,1997,1997,2010,1989,2000,2000,2000,1998,1997,1996,2008,1996,2014,1986,2001,1991,1990,1989,2006,2001,2001,2005,2002,2002,2002,2007,2001,null,null,null,null,1988,1988,1983,1982,null,2002,null,null,null,null,2006,null,1991,2007,null,2009,2010,2001,2001,2006,null,2014,2014,null,null,null,null,null,null,null,null,null,null,null,null,null,null,null,null,null,null,null,null,null,null,null,null,null,null,null,null,null,null,null,null,null,null,null,null,null,null,null,null,null,null,null,null,null,null,null,null,null,null,null,null,null,null,null,null,null,null,null,null,null,null,null,null,null,null,null,null,null,null,null,null,null,null,null,null,null,null,null,null,null,null,null,null,null,null,null,null,null,null,null,null,null,null,null,null,null,null,null,null,null,null,null,null,null,null,null,null,null,null,null,null,null,null,null,null,null,null,null,null,null,null,null,null,null,null,null,null,null,null,null,null,null,null,null,null,null,null,null,null,null,null,null,null,null,null,null,null,null,null,null,null,null,null,null,null,null,null,null,null,null,null,null,null,null,null,null,null,null,null,null,null,null,null,null,null,null,null,null,null,null,null,null,null,null,null,null,null,null,null,null,null,null,null,null,null,null,null,null,null,null,null,null,null,null,null,null,null,null,null,null,null,null,null,null,null,null,null,null,null,null,null,null,null,null,null,null,null,null,null,null,null,null,null,null,null,null,null,null,null,null,null,null,null,null,null,null,null,null,null,null,null,null,null,null,null,null,null,null,null,null,null,null,null,null,null,null,null,null,null,null,null,null,null,null,null,null,null,null,null,null,null,null,null,null,null,null,null,null,null,null,null,null,null,null,null,null,null,null,null,null,null,null,null,null,null,null,null,null,null,null,null,null,null,null,null,null,null,null,null,null,null,null,null,null,null,null,null,null,null,null,null,null,null,null,null,null,null,null,null,null,null,null,null,null,null,null,null,null,null,null,null,null,null,null,null,null,null,null,null,null,null,null,null,null,null,null,null,null,null,null,null,null,null,null,null,null,null,null,null,null,null,null,null,null,null,null,null,null,null,null,null,null,null,null,null,null,null,null,null,null,null,null,null,null,null,null,null,null,null,null,null,null,null,null,null,null,null,null,null,null,null,null,null,null,null,null,null,null,null,null,null,null,null,null,null,null,null,null,null,null,2026]
[null,null,null,null,"Country","NCL",null,null,"COL","NCL",null,"IND","IND","IND",null,null,"ESP",null,"BEL","IND",null,"KOR","KOR","KOR",null,"USA","USA",null,"LTU","KOR","KOR","FRA","KOR","KOR","KOR","KOR","KOR","BGR","KOR","KOR","ISR","KOR",null,null,null,null,null,null,null,null,null,null,null,null,null,null,null,null,null,"RUS","RUS","DEU","ESP","ITA","POL","POL","CHN","CHN","CHN","BEL","BEL","BEL","CHN","CHN","FRA","FRA","FRA","FRA","FRA","FRA","FRA","IND","ISR","ISR","ISR","ISR","ISR","ISR","ISR","ISR","ISR","JOR","Kosovo Republic","LBN","LBN","LBN","MAR","MAR","POL","RUS","RUS","SEN","SWE","TUN","TUN","TUN","TUN","TUN","TUN","USA","USA","USA","ZWE","LIT","DZA","DZA","DZA","DZA","CAN","FIN","IRQ","JOR","MAR","MAR","MAR","PER","SYR","TGO","TGO","TGO","TGO","TUN","TUN","TUN","TUN","TUN","TUN","TUN","TUN","TUN","TUN","TUN","TUN","TUN","TUN","TUN","TUR","VEN","CAN","FRA","FRA","DEU","ITA","KOR","KOR","KOR","KOR","KOR","KOR","KOR","KOR","KOR","KOR","RCOL","AUS","BEL","BRA","BRA","FRA","ESP","KOR","CHN","FRA","FRA","FRA","CHN","CHN","CHN","POL","ITA","ITA","ITA","ITA","ITA","POL","ESP","ARG","BEL","BEL","BEL","BEL","BEL","BEL","BEL","CHN","FRA","FRA","FRA","FRA","FRA","FRA","FRA","FRA","FRA","DEU","SGP","SGP","SGP","USA","USA","USA","BEL","BRA","BRA","CAN","CAN","CAN","CAN","FIN","FIN","FIN","FRA","FRA","FRA","FRA","FRA","ITA","MAR","MAR","NAM","NAM","NAM","NAM","PER","THA","THA","THA","THA","THA","THA","THA","THA","THA","DZA","ITA","CAN","BEL","BEL","BEL","FRA","FRA","FRA","FRA","IRN","NCL","NCL","ZWB","ZWB","ZWB","ZWB","ZWB","ZWB"]
[null,null,null,null,"Location","Tiébaghi",null,null,"Montelibano","Mont Dore",null,"Kerala","Chanderiya","Chanderiya",null,null,"Valladolid",null,"St Ghislain","Anakapalle",null,"Yeong_Heung 5,6","Changwon - SI",null,null,"Stratton","Casterville",null,"Elektrenaï","Panwol","DANGJIN Thermal Power","Saint Avold","Ha Dong Thermal Power","Samchonpo","TaeAn","Younghung","Boryeong","Sofia","Nameju","Pyongtaek","Haïfa","Ha Dong",null,null,null,null,null,null,null,null,null,null,null,null,null,null,null,null,null,"Sterlitamak","Sterlitamak","Stassfurt","Torrelavega","Rosignano","Inovroclaw","Janikowo","GUANGZHOU","Huan an City","Kunshan","Rupel","Vilvorde","Rupel","Guangxi","Guangxi","Grand Couronne","Rouen","Le Havre","Bordeaux","L'oseraie","Roches de Condrieu","Auby","Madras","Arad","Arad","Arad","Arad","Arad","Arad","Arad","Arad","Haifa","Aqaba","Subotica","Selaata","Selaata","Selaata","Jorf Lasfar","Laayoune","Varsovie","Voskresensk","Moscou","Darou 2","Landskrona","Gabes","La Skhirra","Sfax","Sfax",null,"La Skhirra",null,"Plant City - Florida","Plant City - Florida","Amby Harare","Kedainiai","Djebel onk","Djebel onk","Djebel onk","Le Kouif","Kapuskasing","Siilinjärvi","Baghdad","Amman","Safi","Khouribga","Safi","Piura",null,"Kpeme","Kpeme","Kpeme","Lome","Kef Eddour","Kef Eddour","Metlaoui","Metlaoui","Redeyef","M'dhilla - Village","M'dhilla - Village","MOULARES","MOULARES","M'Dhilla - Sehib","Metlaoui / Kef SCHFAIER","Gafsa","Gafsa","Gafsa","Gafsa","Entes","Ciudad de Moron","Fort McMurray","Meyreuil",null,"Godorf",null,"Shinboryeong","Seo Chun","Young-Dong","Hadong","TaeAn","Taean","Sae-Chun",null,null,null,null,"Mount Isa",null,"Carajas","Carajas","Senecourt","Cobre las cruces",null,"Zhumadian","Nancy","Nancy","Dombasle s/Meurthe","Hangahou, Zhejiang Province","Jiangxi province","Huachang","Matwy Plant","Parona","Parona","Rovello","Carisio",null,"Varsovie",null,"Buenos Aires","Antwerpen","Antwerpen","Antwerpen","Antwerpen","Antwerpen","Escanafles","Tienen",null,"Le Péage de Roussillon","Amiens","Le Mesnil Saint Nicaise","Le Mesnil Saint Nicaise","Trosly Breuil","Quesnoy/Deule","Marseille","Marseille","Saint Fons","Wesseling","Jurong Island","Jurong Island","Jurong Island","Theodore","Theodore","Theodore","Balen","Tres Marias","Tres Marias","Flin Flon","Flin Flon","Velleyfield","Velleyfield","Kokkola","Kokkola","Kokkola","Auby","Auby","Auby","Auby","Auby","Portoscuso","Guemassa","Guemassa","Rosh Pinah","Rosh Pinah","Rosh Pinah","Rosh Pinah","Cajamarquilla","Tak","Tak","Tak","Tak","Tak",null,null,null,null,"Ghazaouet","Portoscuso","Salaberry-de-Valleyfield","St Ghislain","Tertre","Tertre","LE HAVRE Sandouville","LE HAVRE Sandouville","LE HAVRE Sandouville","LE HAVRE Sandouville","Zanjan","Mont Dore","Mont Dore","Chambishi","Chambishi","Chambishi","Chambishi","Chambishi","Kitwe"]
[null,null,null,null,"Area (m2)",15.75,8.1300000000000008,6,2.5,120,31.5,63,24,84,45,40,45,6,3,49.5,12.4,49.5,9.1,49.5,60,73.5,93,13.7,49.5,8,40.5,14.25,40.5,51,40.5,48,40.5,66,3.5,48,24,40,15,8.1300000000000008,12,51,15,76,55.5,36,50,66,30,51,36,30,30,18,12.5,40,66,50,81,60,73.5,54,108,54,81,0.75,3,15,105,6,5,4,30,10,7.5,5,3.7,25,0.5,100,15,60,40,12.5,2.5,20,2.5,5,12.5,30,12,24,49,30,1.8,60,10,30,15,30,0.1,20,25,0.2,40,0.5,100,84,25,20,36,36,25,3.7,100,57,50,1,25,25,25,120,40,25,35,35,1.8,30,30,10,10,30,10,30,30,10,30,30,2.4,3,1.8,7.5,20,40.5,20.25,14.25,4,6,12.5,49.5,7.2,6,40,40,9.1,7.2,28.5,36,36,42,10,4,18,2,1,0.5,49.5,81,50,40,1.5,81,54,81,36,50,40,10,30,30,2.5,25,2.4,45,51,20,25,30,5,12.5,6,3,6,6,4,5,2.4,6,7,3,20,49.5,51,5,30,25,5,85,100,100,70,70,64.5,27,51,51,51,85,85,85,1,85,24,30,69,147,147,0.5,36,30,70.5,2,5,70,2,5,2,70,70,51,24,64.5,5,3,5,8,6,1,7.5,20,120,12.5,60,60,60,60,60,60,null,null,null,null,null,null,null,null,null,null,null,null,null,null,null,null,null,null,null,null,null,null,null,null,null,null,null,null,null,null,null,null,null,null,null,null,null,null,null,null,null,null,null,null,null,null,null,null,null,null,null,null,null,null,null,null,null,null,null,null,null,null,null,null,null,null,null,null,null,null,null,null,null,null,null,null,null,null,null,null,null,null,null,null,null,null,null,null,null,null,null,null,null,null,null,null,null,null,null,null,null,null,null,null,null,null,null,null,null,null,null,null,null,null,null,null,null,null,null,null,null,null,null,null,null,null,null,null,null,null,null,null,null,null,null,null,null,null,null,null,null,null,null,null,null,null,null,null,null,null,null,null,null,null,null,null,null,null,null,null,null,null,null,null,null,null,null,null,null,null,null,null,null,null,null,null,null,null,null,null,null,null,null,null,null,null,null,null,null,null,null,null,null,null,null,null,null,null,null,null,null,null,null,null,null,null,null,null,null,null,null,null,null,null,null,null,null,null,null,null,null,null,null,null,null,null,null,null,null,null,null,null,null,null,null,null,null,null,null,null,null,null,null,null,null,null,null,null,null,null,null,null,null,null,null,null,null,null,null,null,null,null,null,null,null,null,null,null,null,null,null,null,null,null,null,null,null,null,null,null,null,null,null,null,null,null,null,null,null,null,null,null,null,null,null,null,null,null,null,null,null,null,null,null,null,null,null,null,null,null,null,null,null,null,null,null,null,null,null,null,null,null,null,null,null,null,null,null,null,null,null,null,null,null,null,null,null,null,null,null,null,null,null,null,null,null,null,null,null,null,null,null,null,null,null,null,null,null,null,null,null,null,null,null,null,null,null,null,null,null,null,null,null,null,null,null,null,null,null,null,null,null,null,null,null,null,null,null,null,null,null,null,null,null,null,null,null,null,null,null,null,null,null,null,null,null,null,null,null,null,null,null,null,null,null,null,null,null,null,null,null,null,null,null,null,null,null,null,null,null,null,null,null,null,null,null,null,null,null,null,null,120]
[null,null,null,null,"Site of production","LE NICKEL-SLN ","ERAMET","BOLIDEN","CERRO MATOSO","VALE INCO","ESPANOLA DEL ZINC","BINANI ZINC LIMITED","HINDUSTAN ZINC","HINDUSTAN ZINC","HZL","VEDANI","BEFESA ALUMINIO SA","COGEMA/AREVA","ERACHEM COMILOG","VISHNU CHEMICALS","KC Cotrell","KOREAN SOUTH-EAST POWER (KOSEP)","GUMI THERMAL POWER PLANT FGD","DOOSAN HEAVY INDUSTRY","DOOSAN HEAVY EQ","FIRST ENERGY SAMMIS","GEORGIA POWER, PLANT AMEC BOWDEN","Korea zinc eng","BABCOCK & WILCOX","STX ENGINE CO LTD","KOREA EAST-WEST POWER CO LTD (EWP)","E.ON France","KOREAN SOUTHERN POWER (KOSPO)","KOREAN SOUTH-EAST POWER (KOSEP)","KOREAN WESTERN POWER CO LTD (KOWEPO)","KOREAN SOUTH-EAST POWER (KOSEP)","KOREA MIDLAND POWER CO (KOMIPO)","TOTEMA","KOREAN WESTERN POWER CO LTD (KOWEPO)","KOREAN WESTERN POWER CO LTD (KOWEPO)","ISRAEL ELECTRIC COMPANY (IEC)","KOPSO/BABCOCK & WILCOX","CETCO","CETCO","URALKALY","DEAD SEA WORKS","DEAD SEA WORKS","ARAB POTASH","QINGHAI","POTASH CORP","DEAD SEA WORKS","CHANGSHA","MP SURIA","HDP/Kouilou","MP Suria SOLVAY","LLOBREAGAT","DEAD SEA WORKS","HDP","MDPA","JSC BASHKIRSKAIA SODOVAIA","JSC BASHKIRSKAIA SODOVAIA","SODAWERK","SOLVAY QUIMICA","SOLVAY CHIMICA ITALIA","SODA POLSKA CIECH ( Ciech Matwy)","SODA POLSKA CIECH (Ciech Janikowo)","GUANDONG NANFANG SODA ASH INDUSTRIAL CO/ LTD","Jingshen","Kunshan","SOCIETE CHIMIQUE DU RUPEL","SOCIETE CHIMIQUE DU RUPEL","SOCIETE DES ENGRAIS CHIMIQUES","Luzhai fertilizer chemical","Luzhai fertilizer chemical","APC","Cie BORDELAISE DE P.C","COFAZ","COFAZ","PECHINEY SAINT GOBAIN","RHONE PROGIL","STE DES PRODUITS DU MAIS","COROMANDEL INTERNATIONAL FERTILIZER","ROTEM AMFERT NEGEV","ROTEM AMFERT NEGEV","ROTEM AMFERT NEGEV","ROTEM AMFERT NEGEV","ROTEM AMFERT NEGEV","ROTEM AMFERT NEGEV","ROTEM AMFERT NEGEV","ROTEM AMFERT NEGEV","FERTILISER Ch.","JORDAN PHOSPHATES MINES CO","PROREA","LEBANON CHEMICALS","LEBANON CHEMICALS","LEBANON CHEMICALS","OCP","OCP PHOSBOUCRAA","POLIMEX","JSC VOSKRESENKIE","TECHMASHIMPORT","I.C.S 2","A.B. FORENADE","COMPAGNIE PHOSPHATES DE GAFSA","GROUPE CHIMIQUE TUNISIEN","GROUPE CHIMIQUE TUNISIEN","N.P.K","SIAPE Sté Internationale d'acide","SPIE BATIGNOLLES/SIAPE","BATEMAN / CARGILL / USA","MOSAIC FERTILIZERS INC.","MOSAIC FERTILIZERS INC.","ZIMPHOS","LIFOSA","SOMIPHOS","SOMIPHOS","SOMIPHOS","Cie PHOSPHATE CONSTANTINE","AGRIUM PARTNERSHIP","YARA","AL QAIM","JORDAN PHOSPHATES MINES CO","OCP (MP2)","OCP","FCB/OCP","CMM Miski Mayo / Bayovar","GECOPHAM","SOCIETE NOUVELLE PHOPHATES TOGO","SOCIETE NOUVELLE PHOPHATES TOGO","SOCIETE NOUVELLE PHOPHATES TOGO","SOCIETE NOUVELLE PHOPHATES TOGO","COMPAGNIE PHOSPHATES DE GAFSA","COMPAGNIE PHOSPHATES DE GAFSA","COMPAGNIE PHOSPHATES DE GAFSA","COMPAGNIE PHOSPHATES DE GAFSA","COMPAGNIE PHOSPHATES DE GAFSA","COMPAGNIE PHOSPHATES DE GAFSA","COMPAGNIE PHOSPHATES DE GAFSA","COMPAGNIE PHOSPHATES DE GAFSA","COMPAGNIE PHOSPHATES DE GAFSA","COMPAGNIE PHOSPHATES DE GAFSA","COMPAGNIE PHOSPHATES DE GAFSA","COMPAGNIE PHOSPHATES DE GAFSA","COMPAGNIE PHOSPHATES DE GAFSA","COMPAGNIE PHOSPHATES DE GAFSA","COMPAGNIE PHOSPHATES DE GAFSA","FCB","FERTIVEN / PEQUIVEN","FORT HILLS ENERGY CORPO.","E.ON France","SULZER","SHELL DEUTSCHLAND OIL GmbH","SALA ITALIANA / CIFA ENEL","DOOSAN","KOREA MIDLAND POWER CO (KOMIPO)","KOREAN SOUTH-EAST POWER (KOSEP)","KOREAN WESTERN POWER CO LTD (KOWEPO)","KOREAN WESTERN POWER CO LTD (KOWEPO)","IGCC-TAEAN","KOMIPO","DOOSAN HEAVY INDUSTRY","DOOSAN HEAVY INDUSTRY","KC COTTRELL CO.LTD.","BDI ENGINEERING","MOUNT ISA MINES","SOGEFILTERS / SEDEMA TERTRE","CIA VALE DO RIO DOCE - UHC","CIA VALE DO RIO DOCE - UHC","POUDMET","COBRE LAS CRUCES SA","DOOSAN HEAVY INDUSTRY","HENAN JUNHA","NOVACARB - LA MADELEINE","NOVACARB - LA MADELEINE","SOLVAY","HANGZHOU LONGSHAN CHEMICAL CO","Jiangxi Jinghao Salt Chemical Co","HUACHANG","CIECH SODA POLSKA SA","INTALS","INTALS","PREMOLI","SOCIETA' ALLUMINIO - S.P.A","SALA ITALIANA / SACAL","POLIMEX","RESAL","Cie ARGENTINE IND. & C","EVONIK DEGUSSA ANTWERPEN NV","EVONIK DEGUSSA ANTWERPEN NV","EVONIK DEGUSSA ANTWERPEN NV","EVONIK DEGUSSA ANTWERPEN NV","EVONIK DEGUSSA ANTWERPEN NV","GALACTIC","CITRIQUE BELGE","SPEICHIM","ADISSEO","AJINOMOTO EUROLYSINE","AJINOMOTO FOODS EUROPE","AJINOMOTO FOODS EUROPE","WeylChem","LE SAFRE","LEGRE-MANTE","LEGRE-MANTE","RHONE POULENC","EVONIK DEGUSSA GMBH","Evonik Methionine SEA Pte, Ltd","Evonik Methionine SEA Pte, Ltd","Evonik Methionine SEA Pte, Ltd","EVONIK INDUSTRIES","EVONIK INDUSTRIES","EVONIK INDUSTRIES","NYRSTAR","VOTORANTIM METAIS ZINCO","VOTORANTIM METAIS ZINCO","HUDSON BAY MINING & SMELTING CO","HUDSON BAY MINING & SMELTING CO","SOCIETE EN COMMANDITE","SOCIETE EN COMMANDITE","BOLIDEN","BOLIDEN","BOLIDEN","NYRSTAR","NYRSTAR","NYRSTAR","NYRSTAR","NYRSTAR","PORTOVESME","CIE MINIERE DE GUEMASSA","CIE MINIERE DE GUEMASSA","NAMZINC","NAMZINC","NAMZINC","NAMZINC","VOTORANTIM METAIS ZINCO","PA DAENG INDUSTRIE ","PA DAENG INDUSTRIE ","PA DAENG INDUSTRIE ","PA DAENG INDUSTRIE ","PA DAENG INDUSTRIE ","MECHIM","MECHIM","MECHIM","MECHIM","ALZINC PROJECT ","PORTOVESME","REVENU NORANDA","PRINCE ERACHEM SPRL","SEDEMA","SEDEMA","ERAMET","ERAMET","ERAMET","ERAMET","CALCIMINE MINE CO","VALE INCO","VALE INCO","CHAMBISHI METALS","CHAMBISHI METALS","CHAMBISHI METALS","CHAMBISHI METALS","CHAMBISHI METALS","CHAMBISHI METALS",null,null,null,null,null,null,null,null,null,null,null,null,null,null,null,null,null,null,null,null,null,null,null,null,null,null,null,null,null,null,null,null,null,null,null,null,null,null,null,null,null,null,null,null,null,null,null,null,null,null,null,null,null,null,null,null,null,null,null,null,null,null,null,null,null,null,null,null,null,null,null,null,null,null,null,null,null,null,null,null,null,null,null,null,null,null,null,null,null,null,null,null,null,null,null,null,null,null,null,null,null,null,null,null,null,null,null,null,null,null,null,null,null,null,null,null,null,null,null,null,null,null,null,null,null,null,null,null,null,null,null,null,null,null,null,null,null,null,null,null,null,null,null,null,null,null,null,null,null,null,null,null,null,null,null,null,null,null,null,null,null,null,null,null,null,null,null,null,null,null,null,null,null,null,null,null,null,null,null,null,null,null,null,null,null,null,null,null,null,null,null,null,null,null,null,null,null,null,null,null,null,null,null,null,null,null,null,null,null,null,null,null,null,null,null,null,null,null,null,null,null,null,null,null,null,null,null,null,null,null,null,null,null,null,null,null,null,null,null,null,null,null,null,null,null,null,null,null,null,null,null,null,null,null,null,null,null,null,null,null,null,null,null,null,null,null,null,null,null,null,null,null,null,null,null,null,null,null,null,null,null,null,null,null,null,null,null,null,null,null,null,null,null,null,null,null,null,null,null,null,null,null,null,null,null,null,null,null,null,null,null,null,null,null,null,null,null,null,null,null,null,null,null,null,null,null,null,null,null,null,null,null,null,null,null,null,null,null,null,null,null,null,null,null,null,null,null,null,null,null,null,null,null,null,null,null,null,null,null,null,null,null,null,null,null,null,null,null,null,null,null,null,null,null,null,null,null,null,null,null,null,null,null,null,null,null,null,null,null,null,null,null,null,null,null,null,null,null,null,null,null,null,null,null,null,null,null,null,null,null,null,null,null,null,null,null,null,null,null,null,null,null,null,null,null,null,null,null,null,null,null,null,null,null,null,null,null,null,null,null,null,"CMM Miski Mayo / Bayovar"]
[null,null,null,null,"Reference number (filter)",507546,null,null,"J1271-100","18083 - 01",null,504717,"508713 - 3","508713 - 1",null,null,510338,null,504385,"513472 ou 508711",null,"863 / 1","401 A ","PHILHYPS 49.5B30",null,509218,"509561 - 1",513674,508873,507981,null,505242,509814,null,"505467 - 01",17566,"507590 - 01","509126 - 1",505708,20568,7667,null,null,null,null,null,null,null,null,null,null,null,null,null,null,null,null,null,null,"512293-01","512293-02",514170,null,null,null,null,515281,"515177 / 1",null,null,null,null,7656,6418,null,null,"101/42655",null,null,null,null,9164,"101/42655",7624,7625,7630,null,9344.02,6485,"101/3056",null,1080,null,13638,6305,216,"101/41725",4212,null,"9993/1",null,8613,null,70083,47729,41480,null,47470,null,18769,3613,3614,9020,"CC3615","16914/1",512220,3957,null,14027,"698 ou 513 411",513345,null,"AR195/01 ou 513594",null,"140/01800","514156 - 1",8184,9877,"513960 / 1","EQ_909",null,5940,5939,null,null,1039,null,null,null,null,null,null,null,null,null,null,"GC/1094",510268,null,505705,"611 / 5489",15958,null,"2222 / 01","4000 / 1","2675 / 1",1224,1225,1469,null,"PHILGYPS 28.5B30","PHILGYPS 36B30","PHILGYPS 36B30","Philgyps 42B30",505093,1047,"508284-200","508284-100",45760,"CC3678","PHILGYPS",null,"611/1971/00",null,"101/62835",null,null,null,"VBF",null,509540,null,null,"101 / 6169",null,null,null,2360,2440,3220,3012,2887,5245,9342,1578,45150,8910,6851,55496,63455,null,1514,1445,null,"3650 / 1",2360,2440,2658,4334,"8866 / 3421",514223,"3170 / 01","9195 / 1",9758,11672,11673,2993,2991,510359,"2511 / 1",1756,49400,13695,"101 / 8810","101 / 6323","101 / 3170",508337,14691,14691,504234,"14596 - FB 001",null,14599,510267,14358,null,null,14313,null,"101 / 3839","101 / 43115","101 / 43115","101 / 42125","EQ002299-CC2839","15308 / 01",null,556615,null,"210 / 41264",508428,63310,1619,6533,54871,"18083 - 01",18085,11779,"12210 / 01","12210 / 02",31,1687,2209]
[null,null,null,null,"Project number",null,null,null,null,null,null,null,null,null,null,null,null,null,null,null,null,null,null,null,null,null,null,null,null,null,20693,null,null,19021,null,null,null,null,null,null,null,null,null,null,null,null,null,null,null,null,null,null,null,null,null,null,null,null,null,null,null,null,"1837 - 01",9111,"1686 - 01","1686 - 02",null,null,"1440 / 01",null,null,null,null,null,null,null,null,null,null,null,null,null,null,null,null,null,null,null,null,null,null,null,null,null,null,null,null,null,null,null,null,null,null,null,null,null,null,null,null,12140,null,null,null,null,null,null,null,null,null,null,null,null,null,null,null,null,null,null,null,null,null,null,null,null,null,null,null,null,null,null,null,null,null,null,null,null,null,null,null,null,null,null,null,null,null,null,null,null,null,null,null,null,null,null,null,null,null,null,null,null,null,"1816 / 01",null,60150,null,2238,"CC 2740",null,null,13946,null,7143,7396,null,null,"CC3682"]
[null,"Slurry parameters",null,null,"Slurry flowrate (T/h)",42,0.7,8.3000000000000007,6,195,null,38.4,28.6,30,24,35.299999999999997,22,1.02,5.04,58,20,80,14.6,72.73,114.4,161,null,25.1,89.6,null,48.4,28.3,72,null,null,null,68.040000000000006,103.5,6.1,null,null,null,600,77.3,200,800,428.6,869,180,137,575,975,360,700.3,null,57.1,449,353.8,140,167,253,238,240,null,null,null,409,145.1,468,null,null,null,null,null,null,null,null,null,null,null,null,null,null,"676,6 (from TG 4278)",null,null,106.25,null,null,null,null,null,null,null,null,null,null,null,null,null,null,null,null,null,null,null,null,null,null,null,null,null,null,null,null,null,null,null,null,null,null,null,null,null,null,null,null,null,null,null,null,null,null,null,null,null,null,null,null,null,null,null,null,null,null,null,null,null,null,null,null,null,null,null,null,null,null,null,null,null,null,null,null,null,null,null,null,null,null,null,null,null,null,null,null,411.4,null,null,null,null,null,null,null,null,null,3.9,null,null,null,null,null,null,null,null,null,null,null,null,null,null,null,null,null,null,null,null,null,null,null,null,null,null,null,null,null,null,null,null,"24,45 (data from 1996, 2008 or 2014)","24,45 (data from 1996, 2008 or 2014)","24,45 (data from 1996, 2008 or 2014)",null,null,null,null,null,"18,9 (data from 2002 or 2006)",null,null,"50 (value from 2005 or 2002)","50 (value from 2005 or 2002)",null,null,null,null,null,null,null,null,null,null,null,null,null,"18,9 (data from 2002 or 2006)",null,null,null,null,null,null,null,null,null,null,null,null,null,null,null,null,null,null,null,null,null,null,null,null,null,null,null,null,null,null,null,null,null,null,null,null,null,null,null,null,null,null,null,null,null,null,null,null,null,null,null,null,null,null,null,null,null,null,null,null,null,null,null,null,null,null,null,null,null,null,null,null,null,null,null,null,null,null,null,null,null,null,null,null,null,null,null,null,null,null,null,null,null,null,null,null,null,null,null,null,null,null,null,null,null,null,null,null,null,null,null,null,null,null,null,null,null,null,null,null,null,null,null,null,null,null,null,null,null,null,null,null,null,null,null,null,null,null,null,null,null,null,null,null,null,null,null,null,null,null,null,null,null,null,null,null,null,null,null,null,null,null,null,null,null,null,null,null,null,null,null,null,null,null,null,null,null,null,null,null,null,null,null,null,null,null,null,null,null,null,null,null,null,null,null,null,null,null,null,null,null,null,null,null,null,null,null,null,null,null,null,null,null,null,null,null,null,null,null,null,null,null,null,null,null,null,null,null,null,null,null,null,null,null,null,null,null,null,null,null,null,null,null,null,null,null,null,null,null,null,null,null,null,null,null,null,null,null,null,null,null,null,null,null,null,null,null,null,null,null,null,null,null,null,null,null,null,null,null,null,null,null,null,null,null,null,null,null,null,null,null,null,null,null,null,null,null,null,null,null,null,null,null,null,null,null,null,null,null,null,null,null,null,null,null,null,null,null,null,null,null,null,null,null,null,null,null,null,null,null,null,null,null,null,null,null,null,null,null,null,null,null,null,null,null,null,null,null,null,null,null,null,null,null,null,null,null,null,null,null,null,null,null,null,null,null,null,null,null,null,null,null,null,null,null,null,null,null,null,null,null,null,null,null,null,null,null,null,null,null,null,null,null,null,null,null,null,null,null,null,null,null,null,null,null,null,null,null,null,null,null,null,null,null,null,null,null,null,null,null,null,null,null,null,null,null,null,null,null,null,null,null,null,null,null,null,null,null,null,null,null,null,null,null,null,null,null,null,null,null,null,null,null,null,null,null,null,null,500]
[null,null,null,null,"Solid flowrate (T/h)",23,0.315,1.35,1.7,59,1.46,9.6,6,9.6,6,6.3,12,0.41,0.51,25,10,40,7.3,40,51.5,64,null,9.1,22.4,null,23.51,14.16,35,29.5,null,42.5,40,51.76,2.75,48.4,null,null,335,29.9,100,280,150,287,54,60,230,390,100,210,50,20,220.01,106,70,50,77,53.5,119.3,60,null,null,106.4,62.4,null,null,null,null,null,null,null,null,null,null,null,null,null,null,null,null,null,null,null,null,null,null,null,null,null,null,null,124.1,null,null,null,null,null,null,null,null,null,null,null,null,null,null,null,null,null,null,null,null,null,null,null,null,null,null,null,null,null,null,null,null,null,null,null,null,null,null,null,null,null,null,null,null,null,null,null,null,null,null,null,null,null,null,null,null,null,null,null,null,null,null,null,null,null,null,null,null,null,null,null,null,null,null,null,null,null,null,null,null,null,null,null,null,null,null,null,null,null,null,null,null,null,null,null,null,null,null,null,null,null,null,null,null,null,null,null,null,null,null,null,null,null,null,null,null,null,null,null,null,null,null,"4,89 (data from 1996, 2008 or 2014)","4,89 (data from 1996, 2008 or 2014)","4,89 (data from 1996, 2008 or 2014)",null,null,null,null,null,"2,3 (data from 2002 or 2006)",null,null,"42 (value from 2005 or 2002)","42 (value from 2005 or 2002)",null,null,null,null,null,null,null,null,null,null,null,null,null,"2,3 (data from 2002 or 2006)",null,null,null,null,null,null,null,null,null,null,null,null,null,null,null,null,null,null,null,null,null,null,null,null,null,null,null,null,null,null,null,null,null,null,null,null,null,null,null,null,null,null,null,null,null,null,null,null,null,null,null,null,null,null,null,null,null,null,null,null,null,null,null,null,null,null,null,null,null,null,null,null,null,null,null,null,null,null,null,null,null,null,null,null,null,null,null,null,null,null,null,null,null,null,null,null,null,null,null,null,null,null,null,null,null,null,null,null,null,null,null,null,null,null,null,null,null,null,null,null,null,null,null,null,null,null,null,null,null,null,null,null,null,null,null,null,null,null,null,null,null,null,null,null,null,null,null,null,null,null,null,null,null,null,null,null,null,null,null,null,null,null,null,null,null,null,null,null,null,null,null,null,null,null,null,null,null,null,null,null,null,null,null,null,null,null,null,null,null,null,null,null,null,null,null,null,null,null,null,null,null,null,null,null,null,null,null,null,null,null,null,null,null,null,null,null,null,null,null,null,null,null,null,null,null,null,null,null,null,null,null,null,null,null,null,null,null,null,null,null,null,null,null,null,null,null,null,null,null,null,null,null,null,null,null,null,null,null,null,null,null,null,null,null,null,null,null,null,null,null,null,null,null,null,null,null,null,null,null,null,null,null,null,null,null,null,null,null,null,null,null,null,null,null,null,null,null,null,null,null,null,null,null,null,null,null,null,null,null,null,null,null,null,null,null,null,null,null,null,null,null,null,null,null,null,null,null,null,null,null,null,null,null,null,null,null,null,null,null,null,null,null,null,null,null,null,null,null,null,null,null,null,null,null,null,null,null,null,null,null,null,null,null,null,null,null,null,null,null,null,null,null,null,null,null,null,null,null,null,null,null,null,null,null,null,null,null,null,null,null,null,null,null,null,null,null,null,null,null,null,null,null,null,null,null,null,null,null,null,null,null,null,null,null,null,null,null,null,null,null,null,null,null,null,null,null,null,null,null,null,null,null,null,null,null,null,null,null,null,null,null,null,null,null,null,null,null,null,null,null,null,null,null,null,null,null,null,null,300]
[null,null,null,null,"Temperature (°C)",null,"10 à 30",50,null,68.2,41.8,80,null,"70-90",null,null,null,null,null,80,null,null,null,null,null,null,null,null,40,30,null,40,null,null,null,null,50,null,null,null,null,null,"65 to 75",65,"60 to 100","25 to 30",100,null,"5 to 25",null,"25 to 30","61 to 68",null,null,"15 to 30","25 to 30",105,null,25,30.4,32.4,31,null,null,30,30,null,31,40,null,null,null,null,null,null,null,null,null,null,null,null,null,null,null,null,null,58,null,null,null,null,null,null,null,null,40,null,null,null,null,null,null,null,null,null,null,null,null,null,null,null,null,null,null,null,null,null,null,null,null,null,null,null,null,null,null,null,null,null,null,null,null,null,null,null,null,null,null,null,null,null,null,null,null,null,null,null,null,null,null,null,null,null,null,null,null,null,null,null,null,null,null,null,null,null,null,null,null,null,null,null,null,null,null,null,null,null,null,null,null,null,null,null,null,null,null,null,null,null,null,null,null,null,null,null,null,null,null,null,null,null,null,null,null,null,null,null,null,null,null,null,null,null,null,null,null,null,null,null,null,null,null,null,null,null,null,null,null,null,"40 (value from 2005 or 2002)","40 (value from 2005 or 2002)",null,null,null,null,null,null,null,null,null,null,null,null,null,null,null,null,null,null,null,null,null,null,null,null,null,null,null,null,null,null,null,null,null,null,null,null,null,null,null,null,null,null,null,null,null,null,null,null,null,null,null,null,null,null,null,null,null,null,null,null,null,null,null,null,null,null,null,null,null,null,null,null,null,null,null,null,null,null,null,null,null,null,null,null,null,null,null,null,null,null,null,null,null,null,null,null,null,null,null,null,null,null,null,null,null,null,null,null,null,null,null,null,null,null,null,null,null,null,null,null,null,null,null,null,null,null,null,null,null,null,null,null,null,null,null,null,null,null,null,null,null,null,null,null,null,null,null,null,null,null,null,null,null,null,null,null,null,null,null,null,null,null,null,null,null,null,null,null,null,null,null,null,null,null,null,null,null,null,null,null,null,null,null,null,null,null,null,null,null,null,null,null,null,null,null,null,null,null,null,null,null,null,null,null,null,null,null,null,null,null,null,null,null,null,null,null,null,null,null,null,null,null,null,null,null,null,null,null,null,null,null,null,null,null,null,null,null,null,null,null,null,null,null,null,null,null,null,null,null,null,null,null,null,null,null,null,null,null,null,null,null,null,null,null,null,null,null,null,null,null,null,null,null,null,null,null,null,null,null,null,null,null,null,null,null,null,null,null,null,null,null,null,null,null,null,null,null,null,null,null,null,null,null,null,null,null,null,null,null,null,null,null,null,null,null,null,null,null,null,null,null,null,null,null,null,null,null,null,null,null,null,null,null,null,null,null,null,null,null,null,null,null,null,null,null,null,null,null,null,null,null,null,null,null,null,null,null,null,null,null,null,null,null,null,null,null,null,null,null,null,null,null,null,null,null,null,null,null,null,null,null,null,null,null,null,null,null,null,null,null,null,null,null,null,null,null,null,null,null,null,null,null,null,null,null,null,null,null,null,null,null,null,null,null,null,null,null,null,null,null,null,null,null,null,null,null,null,null,null,null,null,null,null,null,null,null,null,null,null,null,null,null,null,null,null,null,null,null,null,null,null,null,null,null,null,null,null,null,null,null,null,null,null,null,null,null,null,null,null,null,null,null,25]
[null,null,null,null,"Csolid (w/w%)",54.8,45,16,28.3,30.3,null,25,21,32,25,17.8,54.5,40.200000000000003,10.1,43.1,50,50,50,55,45,39.75,null,36,25,52,48.56,49.98,48.61,null,null,null,70,50,44.93,null,null,30,55.8,38.700000000000003,50,35,35,33,30,43.8,40,40,27.8,30,null,35,49,30,50,29.7,{"$f":"30.4","v":30.4},{"$f":"22.5","v":22.5},{"$f":"49.7","v":49.7},null,21,21,26,{"$f":"BP35*100/BP34","v":43.004824259131638},0,null,null,null,null,null,null,null,null,null,null,null,null,null,null,"32 (from TG 4278)",null,null,26,null,null,null,null,null,null,null,null,60,null,null,null,null,null,null,null,null,null,null,null,null,null,null,null,null,null,null,null,null,null,null,null,null,null,null,null,null,null,null,null,null,null,null,null,null,null,null,null,null,null,null,null,null,null,null,null,null,null,null,null,null,null,null,null,null,null,null,null,null,null,null,null,null,null,null,null,null,null,null,null,null,null,null,null,null,null,null,null,22.3,null,null,null,14,14,null,null,null,null,15,null,null,null,null,null,null,null,null,null,null,null,null,null,null,null,null,null,null,null,null,null,null,null,null,null,null,null,null,null,null,null,null,"20 (data from 1996, 2008 or 2014)","20 (data from 1996, 2008 or 2014)","20 (data from 1996, 2008 or 2014)",null,null,null,null,null,"12,2 (data from 2002 or 2006)",null,null,"84 (value from 2005 or 2002)","84 (value from 2005 or 2002)",null,null,null,null,null,null,null,null,null,null,null,null,null,"12,2 (data from 2002 or 2006)",null,null,null,null,null,null,null,null,null,null,null,null,null,null,null,null,null,null,null,null,null,null,null,null,null,null,null,null,null,null,null,null,null,null,null,null,null,null,null,null,null,null,null,null,null,null,null,null,null,null,null,null,null,null,null,null,null,null,null,null,null,null,null,null,null,null,null,null,null,null,null,null,null,null,null,null,null,null,null,null,null,null,null,null,null,null,null,null,null,null,null,null,null,null,null,null,null,null,null,null,null,null,null,null,null,null,null,null,null,null,null,null,null,null,null,null,null,null,null,null,null,null,null,null,null,null,null,null,null,null,null,null,null,null,null,null,null,null,null,null,null,null,null,null,null,null,null,null,null,null,null,null,null,null,null,null,null,null,null,null,null,null,null,null,null,null,null,null,null,null,null,null,null,null,null,null,null,null,null,null,null,null,null,null,null,null,null,null,null,null,null,null,null,null,null,null,null,null,null,null,null,null,null,null,null,null,null,null,null,null,null,null,null,null,null,null,null,null,null,null,null,null,null,null,null,null,null,null,null,null,null,null,null,null,null,null,null,null,null,null,null,null,null,null,null,null,null,null,null,null,null,null,null,null,null,null,null,null,null,null,null,null,null,null,null,null,null,null,null,null,null,null,null,null,null,null,null,null,null,null,null,null,null,null,null,null,null,null,null,null,null,null,null,null,null,null,null,null,null,null,null,null,null,null,null,null,null,null,null,null,null,null,null,null,null,null,null,null,null,null,null,null,null,null,null,null,null,null,null,null,null,null,null,null,null,null,null,null,null,null,null,null,null,null,null,null,null,null,null,null,null,null,null,null,null,null,null,null,null,null,null,null,null,null,null,null,null,null,null,null,null,null,null,null,null,null,null,null,null,null,null,null,null,null,null,null,null,null,null,null,null,null,null,null,null,null,null,null,null,null,null,null,null,null,null,null,null,null,null,null,null,null,null,null,null,null,null,null,null,null,null,null,null,null,null,null,null,null,null,null,null,null,null,null,null,null,null,null,null,null,null,null,null,null,null,null,null,null,null,null,null,null,null,null,null,null,null,null,60]
[null,null,null,null,"Particle size (μm)",null,null,null,null,null,null,null,null,null,null,null,null,null,null,null,null,null,null,null,null,null,null,null,null,null,null,null,null,null,"0,5 to 100 (most important interval between 8 and 20)",null,null,null,null,"Interval 1 to 500 (500 the most likely)"]
[null,null,null,null,"pH",null,null,null,null,null,null,null,null,null,null,null,null,null,null,8.5,null,null,null,null,null,null,null,null,null,null,null,null,null,null,null,null,null,null,null,null,null,null,"6,5 to 7",5.5,"6,5 to 7,5",null,null,null,"7 to 8",null,null,5,null,null,"6 to 7",7,"6 to 7"]
[null,"Filtration parameters","Formation",null,"Cake thickness (mm)",null,null,null,null,null,2.94,null,null,null,null,null,null,null,null,null,null,null,null,null,null,null,25,null,21.3,"30 to 50",16.8,null,null,15.3,30,"22 to 25",null,null,null,21,null,null,null,"50 to 90",null,null,"50 to 100",null,null,null,null,35,35,null,35,10,null,null,"50 to 60","28 to 31","30 to 35","25 to 30",35,null,25,"25 to 30",39,38,null,null,null,null,null,null,null,null,null,null,null,null,null,null,null,null,null,null,17,null,null,null,null,null,null,null,null,50,null,null,null,null,null,null,null,null,null,null,null,null,null,null,null,null,null,null,null,null,null,null,null,null,null,null,null,null,null,null,null,null,null,null,null,null,null,null,null,null,null,null,null,null,null,null,null,null,null,null,null,null,null,null,null,null,null,null,null,null,null,null,null,null,null,null,null,null,null,null,null,null,null,null,null,null,null,null,null,40,null,null,null,5,5,null,null,null,null,null,null,null,null,null,null,null,null,null,null,null,null,null,null,null,null,null,null,null,null,null,null,null,null,null,null,null,null,null,null,null,null,null,null,null,null,null,null,null,null,null,null,null,null,"7 to 10 (value from 2005 or 2002)","7 to 10 (value from 2005 or 2002)",null,null,null,null,null,null,null,null,null,null,null,null,null,null,null,null,null,null,null,null,null,null,null,null,null,null,null,null,null,null,null,null,null,null,null,null,null,null,null,null,null,null,null,null,null,null,null,null,null,null,null,null,null,null,null,null,null,null,null,null,null,null,null,null,null,null,null,null,null,null,null,null,null,null,null,null,null,null,null,null,null,null,null,null,null,null,null,null,null,null,null,null,null,null,null,null,null,null,null,null,null,null,null,null,null,null,null,null,null,null,null,null,null,null,null,null,null,null,null,null,null,null,null,null,null,null,null,null,null,null,null,null,null,null,null,null,null,null,null,null,null,null,null,null,null,null,null,null,null,null,null,null,null,null,null,null,null,null,null,null,null,null,null,null,null,null,null,null,null,null,null,null,null,null,null,null,null,null,null,null,null,null,null,null,null,null,null,null,null,null,null,null,null,null,null,null,null,null,null,null,null,null,null,null,null,null,null,null,null,null,null,null,null,null,null,null,null,null,null,null,null,null,null,null,null,null,null,null,null,null,null,null,null,null,null,null,null,null,null,null,null,null,null,null,null,null,null,null,null,null,null,null,null,null,null,null,null,null,null,null,null,null,null,null,null,null,null,null,null,null,null,null,null,null,null,null,null,null,null,null,null,null,null,null,null,null,null,null,null,null,null,null,null,null,null,null,null,null,null,null,null,null,null,null,null,null,null,null,null,null,null,null,null,null,null,null,null,null,null,null,null,null,null,null,null,null,null,null,null,null,null,null,null,null,null,null,null,null,null,null,null,null,null,null,null,null,null,null,null,null,null,null,null,null,null,null,null,null,null,null,null,null,null,null,null,null,null,null,null,null,null,null,null,null,null,null,null,null,null,null,null,null,null,null,null,null,null,null,null,null,null,null,null,null,null,null,null,null,null,null,null,null,null,null,null,null,null,null,null,null,null,null,null,null,null,null,null,null,null,null,null,null,null,null,null,null,null,null,null,null,null,null,null,null,null,null,null,null,null,null,null,null,null,null,null,null,null,null,null,null,null,null,null,null,null,null,null,null,null,null,null,null,null,null,null,null,null,null,null,null,null,null,30]
[null,null,null,null,"Formation time (s)",12,null,null,20,15,44.32,30,35,45,46,90,null,null,null,35,20,20,20,20,20,20,"15 (Lab test values)",20,"20 (Lab test values)","20 (Lab test values)","20 (Lab test values)",null,20,"20 (Lab test values)","20 (Lab test values)",30.43,"20 (Lab test values)",20,15,"20 (Lab test values)",null,null,4,3,null,20,null,20,10,20,null,null,null,15,null,null,null,15,null,10,10,14.3,9,null,"20 (data from masterprice)",14,12,"13 (Lab test values)","21 (Lab test values)",null,null,null,null,null,null,null,null,null,null,null,null,null,null,null,null,"30 (masterprice ROTEM Oron 60B30 data)",8,null,null,null,null,null,null,null,null,null,null,null,null,null,null,null,null,null,null,null,null,null,null,null,null,null,null,null,null,null,null,null,null,null,null,null,null,null,null,null,null,null,null,null,null,null,null,null,null,null,null,null,null,null,null,null,null,null,null,null,null,null,null,null,null,null,null,null,null,null,null,null,null,null,null,null,null,null,null,null,null,null,null,null,null,null,null,null,null,12,"27 (masterprice value)","12 (masterprice value)",null,33,33,null,null,null,null,30,null,null,null,null,null,null,null,null,null,null,null,null,null,null,null,null,null,null,null,null,null,null,null,null,null,null,null,null,null,null,null,null,"35 (data from 1996, 2008 or 2014)","35 (data from 1996, 2008 or 2014)","35 (data from 1996, 2008 or 2014)",null,null,null,null,null,"20 (data from 2002 or 2006)",null,null,null,null,null,null,null,null,null,null,null,null,null,null,null,null,null,"20 (data from 2002 or 2006)",null,null,null,null,null,null,null,null,null,null,null,null,null,null,null,null,null,null,null,null,null,null,null,null,null,null,null,null,null,null,null,null,null,null,null,null,null,null,null,null,null,null,null,null,null,null,null,null,null,null,null,null,null,null,null,null,null,null,null,null,null,null,null,null,null,null,null,null,null,null,null,null,null,null,null,null,null,null,null,null,null,null,null,null,null,null,null,null,null,null,null,null,null,null,null,null,null,null,null,null,null,null,null,null,null,null,null,null,null,null,null,null,null,null,null,null,null,null,null,null,null,null,null,null,null,null,null,null,null,null,null,null,null,null,null,null,null,null,null,null,null,null,null,null,null,null,null,null,null,null,null,null,null,null,null,null,null,null,null,null,null,null,null,null,null,null,null,null,null,null,null,null,null,null,null,null,null,null,null,null,null,null,null,null,null,null,null,null,null,null,null,null,null,null,null,null,null,null,null,null,null,null,null,null,null,null,null,null,null,null,null,null,null,null,null,null,null,null,null,null,null,null,null,null,null,null,null,null,null,null,null,null,null,null,null,null,null,null,null,null,null,null,null,null,null,null,null,null,null,null,null,null,null,null,null,null,null,null,null,null,null,null,null,null,null,null,null,null,null,null,null,null,null,null,null,null,null,null,null,null,null,null,null,null,null,null,null,null,null,null,null,null,null,null,null,null,null,null,null,null,null,null,null,null,null,null,null,null,null,null,null,null,null,null,null,null,null,null,null,null,null,null,null,null,null,null,null,null,null,null,null,null,null,null,null,null,null,null,null,null,null,null,null,null,null,null,null,null,null,null,null,null,null,null,null,null,null,null,null,null,null,null,null,null,null,null,null,null,null,null,null,null,null,null,null,null,null,null,null,null,null,null,null,null,null,null,null,null,null,null,null,null,null,null,null,null,null,null,null,null,null,null,null,null,null,null,null,null,null,null,null,null,null,null,null,null,null,null,null,null,null,null,null,null,null,null,null,null,null,null,null,null,null,null,null,null,null,null,null,null,null,null,null,null,null,null,null,null,null,null,null,null,null,null,null,null,null,null,10]
[null,null,"Washing","(CAKE) Washing","Washing method","No washing","2 Direct","1D","No washing","1D + 1CC",null,"2D","1D","2D","2D",null,"2D","1D + 1CC","2D","2D","1D","1D","1D","1D","1D","No washing","1D","1D","1D","1D","1D","1D","1D","1D","1D","1D","1D","1D","1D","1D",null,null,"1D","No washing",null,"2D",null,null,"No washing","1D","No washing",null,null,"No washing","No washing",null,"No washing",null,null,"2D+1CC","2D+1CC","2D+1CC","1D+1CC","1D+1CC","2D+1CC","2D+1CC","2D+1CC","2D+1CC","2D+1CC",null,null,null,null,null,null,null,null,null,null,null,null,null,null,null,null,null,"\"\"Dirty water\" + tapwater\"",null,null,null,null,null,null,null,null,null,null,null,null,null,null,null,null,null,null,null,null,null,null,null,null,null,null,"\"No washing required\"",null,null,null,null,null,null,null,null,null,null,null,null,null,null,null,null,null,null,null,null,null,null,null,null,null,null,null,null,null,null,null,null,null,null,null,null,null,null,null,null,null,null,null,null,null,null,null,null,null,null,null,null,null,null,null,null,null,null,null,null,null,"\"counter current\"",null,null,null,"2D","2D",null,null,null,null,null,null,null,null,null,null,null,null,null,null,null,null,null,null,null,null,null,null,null,null,null,null,null,null,null,null,null,null,null,null,null,null,null,"2D (data from 1996, 2008 or 2014)","2D (data from 1996, 2008 or 2014)","2D (data from 1996, 2008 or 2014)",null,null,null,null,null,"1D (data from 2002 or 2006)",null,null,null,null,null,null,null,null,null,null,null,null,null,null,null,null,null,"1D (data from 2002 or 2006)",null,null,null,null,null,null,null,null,null,null,null,null,null,null,null,null,null,null,null,null,null,null,null,null,null,null,null,null,null,null,null,null,null,null,null,null,null,null,null,null,null,null,null,null,null,null,null,null,null,null,null,null,null,null,null,null,null,null,null,null,null,null,null,null,null,null,null,null,null,null,null,null,null,null,null,null,null,null,null,null,null,null,null,null,null,null,null,null,null,null,null,null,null,null,null,null,null,null,null,null,null,null,null,null,null,null,null,null,null,null,null,null,null,null,null,null,null,null,null,null,null,null,null,null,null,null,null,null,null,null,null,null,null,null,null,null,null,null,null,null,null,null,null,null,null,null,null,null,null,null,null,null,null,null,null,null,null,null,null,null,null,null,null,null,null,null,null,null,null,null,null,null,null,null,null,null,null,null,null,null,null,null,null,null,null,null,null,null,null,null,null,null,null,null,null,null,null,null,null,null,null,null,null,null,null,null,null,null,null,null,null,null,null,null,null,null,null,null,null,null,null,null,null,null,null,null,null,null,null,null,null,null,null,null,null,null,null,null,null,null,null,null,null,null,null,null,null,null,null,null,null,null,null,null,null,null,null,null,null,null,null,null,null,null,null,null,null,null,null,null,null,null,null,null,null,null,null,null,null,null,null,null,null,null,null,null,null,null,null,null,null,null,null,null,null,null,null,null,null,null,null,null,null,null,null,null,null,null,null,null,null,null,null,null,null,null,null,null,null,null,null,null,null,null,null,null,null,null,null,null,null,null,null,null,null,null,null,null,null,null,null,null,null,null,null,null,null,null,null,null,null,null,null,null,null,null,null,null,null,null,null,null,null,null,null,null,null,null,null,null,null,null,null,null,null,null,null,null,null,null,null,null,null,null,null,null,null,null,null,null,null,null,null,null,null,null,null,null,null,null,null,null,null,null,null,null,null,null,null,null,null,null,null,null,null,null,null,null,null,null,null,null,null,null,null,null,null,null,null,null,null,null,null,null,null,null,null,null,null,null,null,null,null,null,null,null,null,null,null,null,null,null,null,null,null,null,null,null,"1D+2C"]
[null,null,null,null,"Interzone (s)",0,null,null,0,0,2.2999999999999998,5,5,5,0,0,null,null,null,5,10,12,10,10,10,0,"10 (Lab test values)",10,"5 (Lab test values)","2 (Lab test values)","2 (Lab test values)",null,2,"2- (Lab test values)","2 (Lab test values)",43.47,"2 (Lab test values)",2,2,"2 (Lab test values)",null,null,0,0,null,0,null,15,5,2,0,null,null,0,0,null,0,0,null,10,10,5.4,null,null,"5 (data from masterprice)",15,21,"7 (Lab test values","6 (Lab test values)",null,null,null,null,null,null,null,null,null,null,null,null,null,null,null,null,null,null,null,null,null,null,null,null,null,null,null,null,null,null,null,null,null,null,null,null,null,null,null,null,null,null,null,null,"\"No washing required\"",null,null,null,null,null,null,null,null,null,null,null,null,null,null,null,null,null,null,null,null,null,null,null,null,null,null,null,null,null,null,null,null,null,null,null,null,null,null,null,null,null,null,null,null,null,null,null,null,null,null,null,null,null,null,null,null,null,null,null,null,null,"10 (Lab test values)","0 (masterprice value)","10 (masterprice value)",null,10,10,null,null,null,null,15,null,null,null,null,null,null,null,null,null,null,null,null,null,null,null,null,null,null,null,null,null,null,null,null,null,null,null,null,null,null,null,null,"0 (data from 1996, 2008 or 2014)","0 (data from 1996, 2008 or 2014)","0 (data from 1996, 2008 or 2014)",null,null,null,null,null,"8 (data from 2002 or 2006)",null,null,null,null,null,null,null,null,null,null,null,null,null,null,null,null,null,"8 (data from 2002 or 2006)",null,null,null,null,null,null,null,null,null,null,null,null,null,null,null,null,null,null,null,null,null,null,null,null,null,null,null,null,null,null,null,null,null,null,null,null,null,null,null,null,null,null,null,null,null,null,null,null,null,null,null,null,null,null,null,null,null,null,null,null,null,null,null,null,null,null,null,null,null,null,null,null,null,null,null,null,null,null,null,null,null,null,null,null,null,null,null,null,null,null,null,null,null,null,null,null,null,null,null,null,null,null,null,null,null,null,null,null,null,null,null,null,null,null,null,null,null,null,null,null,null,null,null,null,null,null,null,null,null,null,null,null,null,null,null,null,null,null,null,null,null,null,null,null,null,null,null,null,null,null,null,null,null,null,null,null,null,null,null,null,null,null,null,null,null,null,null,null,null,null,null,null,null,null,null,null,null,null,null,null,null,null,null,null,null,null,null,null,null,null,null,null,null,null,null,null,null,null,null,null,null,null,null,null,null,null,null,null,null,null,null,null,null,null,null,null,null,null,null,null,null,null,null,null,null,null,null,null,null,null,null,null,null,null,null,null,null,null,null,null,null,null,null,null,null,null,null,null,null,null,null,null,null,null,null,null,null,null,null,null,null,null,null,null,null,null,null,null,null,null,null,null,null,null,null,null,null,null,null,null,null,null,null,null,null,null,null,null,null,null,null,null,null,null,null,null,null,null,null,null,null,null,null,null,null,null,null,null,null,null,null,null,null,null,null,null,null,null,null,null,null,null,null,null,null,null,null,null,null,null,null,null,null,null,null,null,null,null,null,null,null,null,null,null,null,null,null,null,null,null,null,null,null,null,null,null,null,null,null,null,null,null,null,null,null,null,null,null,null,null,null,null,null,null,null,null,null,null,null,null,null,null,null,null,null,null,null,null,null,null,null,null,null,null,null,null,null,null,null,null,null,null,null,null,null,null,null,null,null,null,null,null,null,null,null,null,null,null,null,null,null,null,null,null,null,null,null,null,null,null,null,null,null,null,null,null,null,null,null,null,null,null,null,null,null,null,null,null,null,null,null,null,null,null,null,null,null,null,5]
[null,null,null,null,"Wash 1 time (s)",0,null,null,0,40,90.63,40,15,35,54,15,null,null,null,20,20,18,20,20,20,0,"15 (Lab test values)",20,"10 (Lab test values)","10 (Lab test values)","10 (Lab test values)",null,10,"10 (Lab test values)","10 (Lab test values)",30.43,"10 (Lab test values)",10,10,"20 (Lab test values)",null,null,2,0,null,5,null,10,0,12,0,null,null,0,0,null,0,5,null,5,5,4.5999999999999996,8,null,"20 (data from masterprice)",4,3,"10 (Lab test values)","4 (Lab test values)",null,null,null,null,null,null,null,null,null,null,null,null,null,null,null,null,"15 (masterprice ROTEM Oron 60B30 data)",null,null,null,null,null,null,null,null,null,null,null,null,null,null,null,null,null,null,null,null,null,null,null,null,null,null,null,"\"No washing required\"",null,null,null,null,null,null,null,null,null,null,null,null,null,null,null,null,null,null,null,null,null,null,null,null,null,null,null,null,null,null,null,null,null,null,null,null,null,null,null,null,null,null,null,null,null,null,null,null,null,null,null,null,null,null,null,null,null,null,null,null,null,"1 (Lab test values)","14 (masterprice value)","5 (masterprice value)",null,11.3,11.3,null,null,null,null,8,null,null,null,null,null,null,null,null,null,null,null,null,null,null,null,null,null,null,null,null,null,null,null,null,null,null,null,null,null,null,null,null,"23 (data from 1996, 2008 or 2014)","23 (data from 1996, 2008 or 2014)","23 (data from 1996, 2008 or 2014)",null,null,null,null,null,"30 (data from 2002 or 2006)",null,null,null,null,null,null,null,null,null,null,null,null,null,null,null,null,null,"30 (data from 2002 or 2006)",null,null,null,null,null,null,null,null,null,null,null,null,null,null,null,null,null,null,null,null,null,null,null,null,null,null,null,null,null,null,null,null,null,null,null,null,null,null,null,null,null,null,null,null,null,null,null,null,null,null,null,null,null,null,null,null,null,null,null,null,null,null,null,null,null,null,null,null,null,null,null,null,null,null,null,null,null,null,null,null,null,null,null,null,null,null,null,null,null,null,null,null,null,null,null,null,null,null,null,null,null,null,null,null,null,null,null,null,null,null,null,null,null,null,null,null,null,null,null,null,null,null,null,null,null,null,null,null,null,null,null,null,null,null,null,null,null,null,null,null,null,null,null,null,null,null,null,null,null,null,null,null,null,null,null,null,null,null,null,null,null,null,null,null,null,null,null,null,null,null,null,null,null,null,null,null,null,null,null,null,null,null,null,null,null,null,null,null,null,null,null,null,null,null,null,null,null,null,null,null,null,null,null,null,null,null,null,null,null,null,null,null,null,null,null,null,null,null,null,null,null,null,null,null,null,null,null,null,null,null,null,null,null,null,null,null,null,null,null,null,null,null,null,null,null,null,null,null,null,null,null,null,null,null,null,null,null,null,null,null,null,null,null,null,null,null,null,null,null,null,null,null,null,null,null,null,null,null,null,null,null,null,null,null,null,null,null,null,null,null,null,null,null,null,null,null,null,null,null,null,null,null,null,null,null,null,null,null,null,null,null,null,null,null,null,null,null,null,null,null,null,null,null,null,null,null,null,null,null,null,null,null,null,null,null,null,null,null,null,null,null,null,null,null,null,null,null,null,null,null,null,null,null,null,null,null,null,null,null,null,null,null,null,null,null,null,null,null,null,null,null,null,null,null,null,null,null,null,null,null,null,null,null,null,null,null,null,null,null,null,null,null,null,null,null,null,null,null,null,null,null,null,null,null,null,null,null,null,null,null,null,null,null,null,null,null,null,null,null,null,null,null,null,null,null,null,null,null,null,null,null,null,null,null,null,null,null,null,null,null,null,null,null,null,null,null,null,null,null,null,null,null,null,null,null,null,null,null,15]
[null,null,null,null,"Wash 2 time (s)",0,null,null,0,0,34.06,40,0,25,36,15,null,null,null,20,null,null,null,null,null,null,null,null,null,null,null,null,null,null,null,null,null,null,null,null,null,null,0,0,null,5,null,10,0,0,0,null,null,0,0,null,0,0,null,5,5,3.7,4,null,null,4,3,"3 (Lab test values)",null,null,null,null,null,null,null,null,null,null,null,null,null,null,null,null,null,"15 (masterprice ROTEM Oron 60B30 data)",null,null,null,null,null,null,null,null,null,null,null,null,null,null,null,null,null,null,null,null,null,null,null,null,null,null,null,"\"No washing required\"",null,null,null,null,null,null,null,null,null,null,null,null,null,null,null,null,null,null,null,null,null,null,null,null,null,null,null,null,null,null,null,null,null,null,null,null,null,null,null,null,null,null,null,null,null,null,null,null,null,null,null,null,null,null,null,null,null,null,null,null,null,"1 (Lab test values)",null,null,null,11.3,11.3,null,null,null,null,8,null,null,null,null,null,null,null,null,null,null,null,null,null,null,null,null,null,null,null,null,null,null,null,null,null,null,null,null,null,null,null,null,"23 (data from 1996, 2008 or 2014)","23 (data from 1996, 2008 or 2014)","23 (data from 1996, 2008 or 2014)",null,null,null,null,null,"0 (data from 2002 or 2006)",null,null,null,null,null,null,null,null,null,null,null,null,null,null,null,null,null,"0 (data from 2002 or 2006)",null,null,null,null,null,null,null,null,null,null,null,null,null,null,null,null,null,null,null,null,null,null,null,null,null,null,null,null,null,null,null,null,null,null,null,null,null,null,null,null,null,null,null,null,null,null,null,null,null,null,null,null,null,null,null,null,null,null,null,null,null,null,null,null,null,null,null,null,null,null,null,null,null,null,null,null,null,null,null,null,null,null,null,null,null,null,null,null,null,null,null,null,null,null,null,null,null,null,null,null,null,null,null,null,null,null,null,null,null,null,null,null,null,null,null,null,null,null,null,null,null,null,null,null,null,null,null,null,null,null,null,null,null,null,null,null,null,null,null,null,null,null,null,null,null,null,null,null,null,null,null,null,null,null,null,null,null,null,null,null,null,null,null,null,null,null,null,null,null,null,null,null,null,null,null,null,null,null,null,null,null,null,null,null,null,null,null,null,null,null,null,null,null,null,null,null,null,null,null,null,null,null,null,null,null,null,null,null,null,null,null,null,null,null,null,null,null,null,null,null,null,null,null,null,null,null,null,null,null,null,null,null,null,null,null,null,null,null,null,null,null,null,null,null,null,null,null,null,null,null,null,null,null,null,null,null,null,null,null,null,null,null,null,null,null,null,null,null,null,null,null,null,null,null,null,null,null,null,null,null,null,null,null,null,null,null,null,null,null,null,null,null,null,null,null,null,null,null,null,null,null,null,null,null,null,null,null,null,null,null,null,null,null,null,null,null,null,null,null,null,null,null,null,null,null,null,null,null,null,null,null,null,null,null,null,null,null,null,null,null,null,null,null,null,null,null,null,null,null,null,null,null,null,null,null,null,null,null,null,null,null,null,null,null,null,null,null,null,null,null,null,null,null,null,null,null,null,null,null,null,null,null,null,null,null,null,null,null,null,null,null,null,null,null,null,null,null,null,null,null,null,null,null,null,null,null,null,null,null,null,null,null,null,null,null,null,null,null,null,null,null,null,null,null,null,null,null,null,null,null,null,null,null,null,null,null,null,null,null,null,null,null,null,null,null,null,null,null,null,null,null,null,null,null,null,null,null,null,15]
[null,null,null,null,"Wash 3 time (s)",0,null,null,0,0,0,0,0,0,0,15,null,null,null,0,null,null,null,null,null,null,null,null,null,null,null,null,null,null,null,null,null,null,null,null,null,null,0,0,null,0,null,10,0,0,0,null,null,0,0,null,0,0,null,5,5,2.8,null,null,null,3,3,null,null,null,null,null,null,null,null,null,null,null,null,null,null,null,null,null,null,null,null,null,null,null,null,null,null,null,null,null,null,null,null,null,null,null,null,null,null,null,null,null,null,null,null,null,null,"\"No washing required\"",null,null,null,null,null,null,null,null,null,null,null,null,null,null,null,null,null,null,null,null,null,null,null,null,null,null,null,null,null,null,null,null,null,null,null,null,null,null,null,null,null,null,null,null,null,null,null,null,null,null,null,null,null,null,null,null,null,null,null,null,null,null,null,null,null,null,null,null,null,null,null,5,null,null,null,null,null,null,null,null,null,null,null,null,null,null,null,null,null,null,null,null,null,null,null,null,null,null,null,null,null,null,null,null,"0 (data from 1996, 2008 or 2014)","0 (data from 1996, 2008 or 2014)","0 (data from 1996, 2008 or 2014)",null,null,null,null,null,"0 (data from 2002 or 2006)",null,null,null,null,null,null,null,null,null,null,null,null,null,null,null,null,null,"0 (data from 2002 or 2006)",null,null,null,null,null,null,null,null,null,null,null,null,null,null,null,null,null,null,null,null,null,null,null,null,null,null,null,null,null,null,null,null,null,null,null,null,null,null,null,null,null,null,null,null,null,null,null,null,null,null,null,null,null,null,null,null,null,null,null,null,null,null,null,null,null,null,null,null,null,null,null,null,null,null,null,null,null,null,null,null,null,null,null,null,null,null,null,null,null,null,null,null,null,null,null,null,null,null,null,null,null,null,null,null,null,null,null,null,null,null,null,null,null,null,null,null,null,null,null,null,null,null,null,null,null,null,null,null,null,null,null,null,null,null,null,null,null,null,null,null,null,null,null,null,null,null,null,null,null,null,null,null,null,null,null,null,null,null,null,null,null,null,null,null,null,null,null,null,null,null,null,null,null,null,null,null,null,null,null,null,null,null,null,null,null,null,null,null,null,null,null,null,null,null,null,null,null,null,null,null,null,null,null,null,null,null,null,null,null,null,null,null,null,null,null,null,null,null,null,null,null,null,null,null,null,null,null,null,null,null,null,null,null,null,null,null,null,null,null,null,null,null,null,null,null,null,null,null,null,null,null,null,null,null,null,null,null,null,null,null,null,null,null,null,null,null,null,null,null,null,null,null,null,null,null,null,null,null,null,null,null,null,null,null,null,null,null,null,null,null,null,null,null,null,null,null,null,null,null,null,null,null,null,null,null,null,null,null,null,null,null,null,null,null,null,null,null,null,null,null,null,null,null,null,null,null,null,null,null,null,null,null,null,null,null,null,null,null,null,null,null,null,null,null,null,null,null,null,null,null,null,null,null,null,null,null,null,null,null,null,null,null,null,null,null,null,null,null,null,null,null,null,null,null,null,null,null,null,null,null,null,null,null,null,null,null,null,null,null,null,null,null,null,null,null,null,null,null,null,null,null,null,null,null,null,null,null,null,null,null,null,null,null,null,null,null,null,null,null,null,null,null,null,null,null,null,null,null,null,null,null,null,null,null,null,null,null,null,null,null,null,null,null,null,null,null,null,null,null,null,null,null,null,null,null,null,null,null,10]
[null,null,null,null,"Wash water 1 (m3/h)","No washing",1.5,null,"No washing",55,"1,61?",12,10,9.6,9,3,6.34,null,2.5,11,null,null,null,null,null,null,null,null,null,null,null,null,null,null,null,null,null,null,null,null,null,null,null,"No washing",null,30,null,47.5,"No washing",12,"No washing",null,15,"No washing","No washing",null,"No washing",16,null,4.9249999999999998,7.2,4.585,28,null,null,null,12.9,6.3,null,null,null,null,null,null,null,null,null,null,null,null,null,null,null,null,null,null,null,null,null,null,null,null,null,null,null,null,null,null,null,null,null,null,null,null,null,null,null,null,null,null,null,null,null,null,null,null,null,null,null,null,null,null,null,null,null,null,null,null,null,null,null,null,null,null,null,null,null,null,null,null,null,null,null,null,null,null,null,null,null,null,null,null,null,null,null,null,null,null,null,null,null,null,null,null,null,null,null,null,null,null,null,null,null,null,null,null,null,null,null,null,null,null,null,null,null,null,null,null,null,null,null,null,null,null,null,null,null,null,null,null,null,null,null,null,null,null,null,null,null,null,null,null,null,null,null,null,null,null,"5 (data from 1996, 2008 or 2014)","5 (data from 1996, 2008 or 2014)","5 (data from 1996, 2008 or 2014)",null,null,null,null,null,"2,5 (data from 2002 or 2006)",null,null,null,null,null,null,null,null,null,null,null,null,null,null,null,null,null,"2,5 (data from 2002 or 2006)",null,null,null,null,null,null,null,null,null,null,null,null,null,null,null,null,null,null,null,null,null,null,null,null,null,null,null,null,null,null,null,null,null,null,null,null,null,null,null,null,null,null,null,null,null,null,null,null,null,null,null,null,null,null,null,null,null,null,null,null,null,null,null,null,null,null,null,null,null,null,null,null,null,null,null,null,null,null,null,null,null,null,null,null,null,null,null,null,null,null,null,null,null,null,null,null,null,null,null,null,null,null,null,null,null,null,null,null,null,null,null,null,null,null,null,null,null,null,null,null,null,null,null,null,null,null,null,null,null,null,null,null,null,null,null,null,null,null,null,null,null,null,null,null,null,null,null,null,null,null,null,null,null,null,null,null,null,null,null,null,null,null,null,null,null,null,null,null,null,null,null,null,null,null,null,null,null,null,null,null,null,null,null,null,null,null,null,null,null,null,null,null,null,null,null,null,null,null,null,null,null,null,null,null,null,null,null,null,null,null,null,null,null,null,null,null,null,null,null,null,null,null,null,null,null,null,null,null,null,null,null,null,null,null,null,null,null,null,null,null,null,null,null,null,null,null,null,null,null,null,null,null,null,null,null,null,null,null,null,null,null,null,null,null,null,null,null,null,null,null,null,null,null,null,null,null,null,null,null,null,null,null,null,null,null,null,null,null,null,null,null,null,null,null,null,null,null,null,null,null,null,null,null,null,null,null,null,null,null,null,null,null,null,null,null,null,null,null,null,null,null,null,null,null,null,null,null,null,null,null,null,null,null,null,null,null,null,null,null,null,null,null,null,null,null,null,null,null,null,null,null,null,null,null,null,null,null,null,null,null,null,null,null,null,null,null,null,null,null,null,null,null,null,null,null,null,null,null,null,null,null,null,null,null,null,null,null,null,null,null,null,null,null,null,null,null,null,null,null,null,null,null,null,null,null,null,null,null,null,null,null,null,null,null,null,null,null,null,null,null,null,null,null,null,null,null,null,null,null,null,null,null,null,null,null,null,null,null,null,null,null,null,null,null,null,null,null,null,null,null,null,null,null,null,null,null,null,null,120]
[null,null,null,null,"Wash ratio 1  (m3/t) per dry solid","No washing",4.76,null,"No washing",0.93,null,1.25,1.67,1,1.5,0.48,0.53,null,4.9000000000000004,0.44,null,null,null,null,null,null,null,null,null,null,null,null,null,null,null,null,null,null,null,null,null,null,null,"No washing",null,0.11,null,0.17,"No washing",0.2,"No washing",null,0.15,"No washing","No washing",null,"No washing",0.15,null,{"$f":"BH49/BH68","v":9.9494949494949497E-2},{"$f":"0.095","v":9.5000000000000001E-2},{"$f":"0.085","v":8.5000000000000006E-2},null,null,null,null,0.1212406015037594,0.10096153846153846,null,null,null,null,null,null,null,null,null,null,null,null,null,null,null,null,null,null,null,null,null,null,null,null,null,null,null,null,null,null,null,null,null,null,null,null,null,null,null,null,null,null,null,null,null,null,null,null,null,null,null,null,null,null,null,null,null,null,null,null,null,null,null,null,null,null,null,null,null,null,null,null,null,null,null,null,null,null,null,null,null,null,null,null,null,null,null,null,null,null,null,null,null,null,null,null,null,null,null,null,null,null,null,null,null,null,null,null,null,null,null,null,null,null,null,null,null,null,null,null,null,null,null,null,null,null,null,null,null,null,null,null,null,null,null,null,null,null,null,null,null,null,null,null,null,null,null,null,null,null,"1,02 (data from 1996, 2008 or 2014)","1,02 (data from 1996, 2008 or 2014)","1,02 (data from 1996, 2008 or 2014)",null,null,null,null,null,"1,09 (data from 2002 or 2006)",null,null,null,null,null,null,null,null,null,null,null,null,null,null,null,null,null,"1,09 (data from 2002 or 2006)",null,null,null,null,null,null,null,null,null,null,null,null,null,null,null,null,null,null,null,null,null,null,null,null,null,null,null,null,null,null,null,null,null,null,null,null,null,null,null,null,null,null,null,null,null,null,null,null,null,null,null,null,null,null,null,null,null,null,null,null,null,null,null,null,null,null,null,null,null,null,null,null,null,null,null,null,null,null,null,null,null,null,null,null,null,null,null,null,null,null,null,null,null,null,null,null,null,null,null,null,null,null,null,null,null,null,null,null,null,null,null,null,null,null,null,null,null,null,null,null,null,null,null,null,null,null,null,null,null,null,null,null,null,null,null,null,null,null,null,null,null,null,null,null,null,null,null,null,null,null,null,null,null,null,null,null,null,null,null,null,null,null,null,null,null,null,null,null,null,null,null,null,null,null,null,null,null,null,null,null,null,null,null,null,null,null,null,null,null,null,null,null,null,null,null,null,null,null,null,null,null,null,null,null,null,null,null,null,null,null,null,null,null,null,null,null,null,null,null,null,null,null,null,null,null,null,null,null,null,null,null,null,null,null,null,null,null,null,null,null,null,null,null,null,null,null,null,null,null,null,null,null,null,null,null,null,null,null,null,null,null,null,null,null,null,null,null,null,null,null,null,null,null,null,null,null,null,null,null,null,null,null,null,null,null,null,null,null,null,null,null,null,null,null,null,null,null,null,null,null,null,null,null,null,null,null,null,null,null,null,null,null,null,null,null,null,null,null,null,null,null,null,null,null,null,null,null,null,null,null,null,null,null,null,null,null,null,null,null,null,null,null,null,null,null,null,null,null,null,null,null,null,null,null,null,null,null,null,null,null,null,null,null,null,null,null,null,null,null,null,null,null,null,null,null,null,null,null,null,null,null,null,null,null,null,null,null,null,null,null,null,null,null,null,null,null,null,null,null,null,null,null,null,null,null,null,null,null,null,null,null,null,null,null,null,null,null,null,null,null,null,null,null,null,null,null,null,null,null,null,null,null,null,null,null,null,null,null,null,null,null,null,null,null,null,null,null,null,null,null,null,null,null,null,null,null,null,null,{"$f":"AAB47/AAB35","v":0.4}]
[null,null,null,null,"Wash water 2 (m3/h)","No washing",10.8,null,"No washing",0,"1,91?",12,0,9.6,6,3,2.38,null,1.7,10,null,null,null,null,null,null,null,null,null,null,null,null,null,null,null,null,null,null,null,null,null,null,null,"No washing",null,30,null,47.5,"No washing",0,"No washing",null,15,"No washing","No washing",null,"No washing",0,null,4.9249999999999998,7.2,4.585,null,null,null,null,12.9,6.3,null,null,null,null,null,null,null,null,null,null,null,null,null,null,null,null,null,null,null,null,null,null,null,null,null,null,null,null,null,null,null,null,null,null,null,null,null,null,null,null,null,null,null,null,null,null,null,null,null,null,null,null,null,null,null,null,null,null,null,null,null,null,null,null,null,null,null,null,null,null,null,null,null,null,null,null,null,null,null,null,null,null,null,null,null,null,null,null,null,null,null,null,null,null,null,null,null,null,null,null,null,null,null,null,null,null,null,null,null,null,null,null,null,null,null,null,null,null,null,null,null,null,null,null,null,null,null,null,null,null,null,null,null,null,null,null,null,null,null,null,null,null,null,null,null,null,null,null,null,null,"5,39 (data from 1996, 2008 or 2014)","5,39 (data from 1996, 2008 or 2014)","5,39 (data from 1996, 2008 or 2014)",null,null,null,null,null,"0 (data from 2002 or 2006)",null,null,null,null,null,null,null,null,null,null,null,null,null,null,null,null,null,"0 (data from 2002 or 2006)"]
[null,null,null,null,"Wash ratio 2  (m3/t) per dry solid","No washing",34.29,null,"No washing",0,null,1.25,0,1,1,0.48,0.2,null,3.33,0.4,null,null,null,null,null,null,null,null,null,null,null,null,null,null,null,null,null,null,null,null,null,null,null,"No washing",null,0.11,null,0.17,"No washing",0,"No washing",null,0.15,"No washing","No washing",null,"No washing",0,null,{"$f":"BH49/BH68","v":9.9494949494949497E-2},{"$f":"0.095","v":9.5000000000000001E-2},{"$f":"0.085","v":8.5000000000000006E-2},null,null,null,null,0.1212406015037594,0.10096153846153846,null,null,null,null,null,null,null,null,null,null,null,null,null,null,null,null,null,null,null,null,null,null,null,null,null,null,null,null,null,null,null,null,null,null,null,null,null,null,null,null,null,null,null,null,null,null,null,null,null,null,null,null,null,null,null,null,null,null,null,null,null,null,null,null,null,null,null,null,null,null,null,null,null,null,null,null,null,null,null,null,null,null,null,null,null,null,null,null,null,null,null,null,null,null,null,null,null,null,null,null,null,null,null,null,null,null,null,null,null,null,null,null,null,null,null,null,null,null,null,null,null,null,null,null,null,null,null,null,null,null,null,null,null,null,null,null,null,null,null,null,null,null,null,null,null,null,null,null,null,null,"1,1 (data from 1996, 2008 or 2014)","1,1 (data from 1996, 2008 or 2014)","1,1 (data from 1996, 2008 or 2014)",null,null,null,null,null,"0 (data from 2002 or 2006)",null,null,null,null,null,null,null,null,null,null,null,null,null,null,null,null,null,"0 (data from 2002 or 2006)"]
[null,null,null,null,"Wash water 3 (m3/h)","No washing",0,null,"No washing",0,0,0,0,0,0,2,0,null,0,0,null,null,null,null,null,null,null,null,null,null,null,null,null,null,null,null,null,null,null,null,null,null,null,"No washing",null,0,null,10,"No washing",0,"No washing",null,15,"No washing","No washing",null,"No washing",0,null,null,null,null,null,null,null,null,null,null,null,null,null,null,null,null,null,null,null,null,null,null,null,null,null,null,null,null,null,null,null,null,null,null,null,null,null,null,null,null,null,null,null,null,null,null,null,null,null,null,null,null,null,null,null,null,null,null,null,null,null,null,null,null,null,null,null,null,null,null,null,null,null,null,null,null,null,null,null,null,null,null,null,null,null,null,null,null,null,null,null,null,null,null,null,null,null,null,null,null,null,null,null,null,null,null,null,null,null,null,null,null,null,null,null,null,null,null,null,null,null,null,null,null,null,null,null,null,null,null,null,null,null,null,null,null,null,null,null,null,null,null,null,null,null,null,null,null,null,null,null,null,null,null,null,null,null,null,null,null,"0 (data from 1996, 2008 or 2014)","0 (data from 1996, 2008 or 2014)","0 (data from 1996, 2008 or 2014)",null,null,null,null,null,"0 (data from 2002 or 2006)",null,null,null,null,null,null,null,null,null,null,null,null,null,null,null,null,null,"0 (data from 2002 or 2006)"]
[null,null,null,null,"Wash ratio 3  (m3/t) per dry solid","No washing",0,null,"No washing",0,null,0,0,0,0,0.32,0,null,0,0,null,null,null,null,null,null,null,null,null,null,null,null,null,null,null,null,null,null,null,null,null,null,null,"No washing",null,0,null,0.03,"No washing",0,"No washing",null,0.15,"No washing","No washing",null,"No washing",0,null,null,null,null,null,null,null,null,null,null,null,null,null,null,null,null,null,null,null,null,null,null,null,null,null,null,null,null,0.28999999999999998,null,null,null,null,null,null,null,null,null,null,null,null,null,null,null,null,null,null,null,null,null,null,null,null,null,null,null,null,null,null,null,null,null,null,null,null,null,null,null,null,null,null,null,null,null,null,null,null,null,null,null,null,null,null,null,null,null,null,null,null,null,null,null,null,null,null,null,null,null,null,null,null,null,null,null,null,null,null,null,null,null,null,null,null,null,null,null,null,null,null,null,null,null,null,null,null,null,null,null,null,null,null,null,null,null,null,null,null,null,null,null,null,null,null,null,null,null,null,null,null,null,null,null,null,null,null,null,null,null,null,null,"0 (data from 1996, 2008 or 2014)","0 (data from 1996, 2008 or 2014)","0 (data from 1996, 2008 or 2014)",null,null,null,null,null,"0 (data from 2002 or 2006)",null,null,null,null,null,null,null,null,null,null,null,null,null,null,null,null,null,"0 (data from 2002 or 2006)"]
[null,null,null,"(CLOTH & BELT) Washing","Wash water cloth and belt (m3/h)",null,null,null,null,null,null,null,null,null,null,null,null,null,null,null,null,null,null,null,null,null,null,null,null,null,null,null,null,null,null,null,null,null,null,null,null,null,null,null,null,null,null,null,null,null,null,null,null,null,null,null,null,null,null,8.73,13,10.4,13,null,null,null,16.7,13.5]
[null,null,null,null,"Wash ratio cloth and belt (m3/t) per dry solid",null,null,null,null,null,null,null,null,null,null,null,null,null,null,null,null,null,null,null,null,null,null,null,null,null,null,null,null,null,null,null,null,null,null,null,null,null,null,null,null,null,null,null,null,null,null,null,null,null,null,null,null,null,null,{"$f":"0.17","v":0.17},{"$f":"BI53/BI68","v":0.16883116883116883},0.19439252336448598,null,null,null,null,0.1569548872180451,0.21634615384615385]
[null,null,null,"(Total) Washing","Wash water total (m3/h)","No washing",12.3,null,"No washing",55,null,24,10,19.2,15,8,8.7200000000000006,null,4.2,21,6,24,5,24,31,"No washing",38.6,6.06,22,3.7,22.78,8.5,21,24.75,13,null,21,34.5,1.8,27,null,35,5.2,"No washing",5,60,null,105,"No washing",12,"No washing",13.18,45,"No washing","No washing",null,"No washing",16,null,{"$f":"BH47+BH49+BH53","v":18.579999999999998},{"$f":"27.44","v":27.44},19.57,41,22.5,null,null,42.5,25.74,null,null,null,null,null,null,null,null,null,null,null,null,null,null,null,null,null,null,null,null,null,null,null,null,null,null,null,null,null,null,null,null,null,null,null,null,null,null,null,null,null,null,null,null,null,null,null,null,null,null,null,null,null,null,null,null,null,null,null,null,null,null,null,null,null,null,null,null,null,null,null,null,null,null,null,null,null,null,null,null,null,null,null,null,null,null,null,null,null,null,null,null,null,null,null,null,null,null,null,null,null,null,null,null,null,null,null,null,null,null,null,null,null,null,null,null,null,null,null,null,null,null,null,null,null,null,null,null,null,null,null,null,null,null,null,null,null,null,null,null,null,null,null,null,null,null,null,null,null,null,"10,39 (data from 1996, 2008 or 2014)","10,39 (data from 1996, 2008 or 2014)","10,39 (data from 1996, 2008 or 2014)",null,null,null,null,null,"2,5 (data from 2002 or 2006)",null,null,null,null,null,null,null,null,null,null,null,null,null,null,null,null,null,"2,5 (data from 2002 or 2006)",null,null,null,null,null,null,null,null,null,null,null,null,null,null,null,null,null,null,null,null,null,null,null,null,null,null,null,null,null,null,null,null,null,null,null,null,null,null,null,null,null,null,null,null,null,null,null,null,null,null,null,null,null,null,null,null,null,null,null,null,null,null,null,null,null,null,null,null,null,null,null,null,null,null,null,null,null,null,null,null,null,null,null,null,null,null,null,null,null,null,null,null,null,null,null,null,null,null,null,null,null,null,null,null,null,null,null,null,null,null,null,null,null,null,null,null,null,null,null,null,null,null,null,null,null,null,null,null,null,null,null,null,null,null,null,null,null,null,null,null,null,null,null,null,null,null,null,null,null,null,null,null,null,null,null,null,null,null,null,null,null,null,null,null,null,null,null,null,null,null,null,null,null,null,null,null,null,null,null,null,null,null,null,null,null,null,null,null,null,null,null,null,null,null,null,null,null,null,null,null,null,null,null,null,null,null,null,null,null,null,null,null,null,null,null,null,null,null,null,null,null,null,null,null,null,null,null,null,null,null,null,null,null,null,null,null,null,null,null,null,null,null,null,null,null,null,null,null,null,null,null,null,null,null,null,null,null,null,null,null,null,null,null,null,null,null,null,null,null,null,null,null,null,null,null,null,null,null,null,null,null,null,null,null,null,null,null,null,null,null,null,null,null,null,null,null,null,null,null,null,null,null,null,null,null,null,null,null,null,null,null,null,null,null,null,null,null,null,null,null,null,null,null,null,null,null,null,null,null,null,null,null,null,null,null,null,null,null,null,null,null,null,null,null,null,null,null,null,null,null,null,null,null,null,null,null,null,null,null,null,null,null,null,null,null,null,null,null,null,null,null,null,null,null,null,null,null,null,null,null,null,null,null,null,null,null,null,null,null,null,null,null,null,null,null,null,null,null,null,null,null,null,null,null,null,null,null,null,null,null,null,null,null,null,null,null,null,null,null,null,null,null,null,null,null,null,null,null,null,null,null,null,null,null,null,null,null,null,null,null,null,null,null,null,null,null,null,null,null,null,null,null,null,null,null,null,null,null,120]
[null,null,null,null,"Wash ratio total (m3/t) per dry solid","No washing",39,null,"No washing",0.93,1,2.5,1.67,2,2.5,1.27,0.73,null,8.24,0.84,0.6,0.6,0.68,0.6,0.6,"No washing",null,0.7,0.98,null,0.97,0.6,0.6,0.84,null,null,0.53,0.67,0.65,0.56000000000000005,null,null,0.02,"No washing",0.05,0.21,null,0.37,"No washing",0.2,"No washing",0.03,0.45,"No washing","No washing",null,"No washing",0.15,null,{"$f":"0.38","v":0.38},{"$f":"BI48+BI50+BI54","v":0.35883116883116883},{"$f":"0.37","v":0.37},null,0.38,"<0,7","<0,7",0.39943609022556392,0.41,null,null,null,null,null,null,null,null,null,null,null,null,null,null,null,null,null,null,null,null,null,null,null,null,null,null,null,null,null,null,null,null,null,null,null,null,null,null,null,null,null,null,null,null,null,null,null,null,null,null,null,null,null,null,null,null,null,null,null,null,null,null,null,null,null,null,null,null,null,null,null,null,null,null,null,null,null,null,null,null,null,null,null,null,null,null,null,null,null,null,null,null,null,null,null,null,null,null,null,null,null,null,null,null,null,null,null,null,null,null,null,2.4,2.4,null,null,null,null,null,null,null,null,null,null,null,null,null,null,null,null,null,null,null,null,null,null,null,null,null,null,null,null,null,null,null,null,null,null,null,null,null,"2,12 (data from 1996, 2008 or 2014)","2,12 (data from 1996, 2008 or 2014)","2,12 (data from 1996, 2008 or 2014)",null,null,null,null,null,"1,09 (data from 2002 or 2006)",null,null,"0,3 (value from 2005 or 2002)","0,3 (value from 2005 or 2002)",null,null,null,null,null,null,null,null,null,null,null,null,null,"1,09 (data from 2002 or 2006)",null,null,null,null,null,null,null,null,null,null,null,null,null,null,null,null,null,null,null,null,null,null,null,null,null,null,null,null,null,null,null,null,null,null,null,null,null,null,null,null,null,null,null,null,null,null,null,null,null,null,null,null,null,null,null,null,null,null,null,null,null,null,null,null,null,null,null,null,null,null,null,null,null,null,null,null,null,null,null,null,null,null,null,null,null,null,null,null,null,null,null,null,null,null,null,null,null,null,null,null,null,null,null,null,null,null,null,null,null,null,null,null,null,null,null,null,null,null,null,null,null,null,null,null,null,null,null,null,null,null,null,null,null,null,null,null,null,null,null,null,null,null,null,null,null,null,null,null,null,null,null,null,null,null,null,null,null,null,null,null,null,null,null,null,null,null,null,null,null,null,null,null,null,null,null,null,null,null,null,null,null,null,null,null,null,null,null,null,null,null,null,null,null,null,null,null,null,null,null,null,null,null,null,null,null,null,null,null,null,null,null,null,null,null,null,null,null,null,null,null,null,null,null,null,null,null,null,null,null,null,null,null,null,null,null,null,null,null,null,null,null,null,null,null,null,null,null,null,null,null,null,null,null,null,null,null,null,null,null,null,null,null,null,null,null,null,null,null,null,null,null,null,null,null,null,null,null,null,null,null,null,null,null,null,null,null,null,null,null,null,null,null,null,null,null,null,null,null,null,null,null,null,null,null,null,null,null,null,null,null,null,null,null,null,null,null,null,null,null,null,null,null,null,null,null,null,null,null,null,null,null,null,null,null,null,null,null,null,null,null,null,null,null,null,null,null,null,null,null,null,null,null,null,null,null,null,null,null,null,null,null,null,null,null,null,null,null,null,null,null,null,null,null,null,null,null,null,null,null,null,null,null,null,null,null,null,null,null,null,null,null,null,null,null,null,null,null,null,null,null,null,null,null,null,null,null,null,null,null,null,null,null,null,null,null,null,null,null,null,null,null,null,null,null,null,null,null,null,null,null,null,null,null,null,null,null,null,null,null,null,null,null,null,null,null,null,null,null,null,null,null,null,null,null,null,null,null,null,{"$f":"AAB55/AAB35","v":0.4}]
[null,null,null,"Na2CO3 washing data","Wash ratio 1  (m3/t) per dry Na2CO3",null,null,null,null,null,null,null,null,null,null,null,null,null,null,null,null,null,null,null,null,null,null,null,null,null,null,null,null,null,null,null,null,null,null,null,null,null,null,null,null,null,null,null,null,null,null,null,null,null,null,null,null,null,null,{"$f":"BH47/BH75","v":0.15902486277042299},0.14956377233070212,{"$f":"0.135","v":0.13500000000000001},null,null,null,null,0.19500000000000001,0.16153846153846155]
[null,null,null,null,"Wash ratio 2  (m3/t) per dry Na2CO3",null,null,null,null,null,null,null,null,null,null,null,null,null,null,null,null,null,null,null,null,null,null,null,null,null,null,null,null,null,null,null,null,null,null,null,null,null,null,null,null,null,null,null,null,null,null,null,null,null,null,null,null,null,null,{"$f":"BH49/BH75","v":0.15902486277042299},0.14956377233070212,{"$f":"0.135","v":0.13500000000000001},null,null,null,null,0.19500000000000001,0.16153846153846155]
[null,null,null,null,"Wash ratio cloth and belt (m3/t) per dry Na2CO3",null,null,null,null,null,null,null,null,null,null,null,null,null,null,null,null,null,null,null,null,null,null,null,null,null,null,null,null,null,null,null,null,null,null,null,null,null,null,null,null,null,null,null,null,null,null,null,null,null,null,null,null,null,null,{"$f":"BH53/BH75","v":0.28188569583467876},0.27004570004154549,0.31137724550898205,null,null,null,null,0.25112781954887214,0.34615384615384615]
[null,null,null,null,"Wash ratio total (m3/t) per dry Na2CO3",null,null,null,null,null,null,null,null,null,null,null,null,null,null,null,null,null,null,null,null,null,null,null,null,null,null,null,null,null,null,null,null,null,null,null,null,null,null,null,null,null,null,null,null,null,null,null,null,null,null,null,null,null,null,{"$f":"BH57+BH58+BH59","v":0.5999354213755248},0.56917324470294972,{"$f":"0.59","v":0.59},{"$f":"0.55","v":0.55000000000000004},0.6,null,null,0.71,0.66]
[null,null,"Drying",null,"Dry time (s)",60,null,null,null,25,33.76,30,40,35,12,15,null,null,null,50,40,40,40,40,40,40,"70 (Lab test values)",40,"40 (Lab test values)","30 (Lab test values)","58 (Lab test values)",null,58,"60 (Lab test values)","58 (Lab test values)",69.53,"58 (Lab test values)",40,35,"50 (Lab test values)",null,null,20,57,null,30,null,25,30,16,null,null,null,35,0,null,null,35,null,null,null,50.6,45,null,"45 (data from masterprice)",48,50,"60 (Lab test values)","63 (Lab test values)",null,null,null,null,null,null,null,null,null,null,null,null,null,null,null,null,"30 (masterprice ROTEM Oron 60B30 data)",null,null,null,null,null,null,null,null,null,40,null,null,null,null,null,null,null,null,null,null,null,null,null,null,null,null,null,null,null,null,null,null,null,null,null,null,null,null,null,null,null,null,null,null,null,null,null,null,null,null,null,null,null,null,null,null,null,null,null,null,null,null,null,null,null,null,null,null,null,null,null,null,null,null,null,null,null,null,null,null,null,null,null,null,null,null,null,null,null,null,"48 (masterprice value)","80 (masterprice value)",null,20,20,null,null,null,null,"voir offre",null,null,null,null,null,null,null,null,null,null,null,null,null,null,null,null,null,null,null,null,null,null,null,null,null,null,null,null,null,null,null,null,"17 (data from 1996, 2008 or 2014)","17 (data from 1996, 2008 or 2014)","17 (data from 1996, 2008 or 2014)",null,null,null,null,null,"30 (data from 2002 or 2006)",null,null,null,null,null,null,null,null,null,null,null,null,null,null,null,null,null,"30 (data from 2002 or 2006)",null,null,null,null,null,null,null,null,null,null,null,null,null,null,null,null,null,null,null,null,null,null,null,null,null,null,null,null,null,null,null,null,null,null,null,null,null,null,null,null,null,null,null,null,null,null,null,null,null,null,null,null,null,null,null,null,null,null,null,null,null,null,null,null,null,null,null,null,null,null,null,null,null,null,null,null,null,null,null,null,null,null,null,null,null,null,null,null,null,null,null,null,null,null,null,null,null,null,null,null,null,null,null,null,null,null,null,null,null,null,null,null,null,null,null,null,null,null,null,null,null,null,null,null,null,null,null,null,null,null,null,null,null,null,null,null,null,null,null,null,null,null,null,null,null,null,null,null,null,null,null,null,null,null,null,null,null,null,null,null,null,null,null,null,null,null,null,null,null,null,null,null,null,null,null,null,null,null,null,null,null,null,null,null,null,null,null,null,null,null,null,null,null,null,null,null,null,null,null,null,null,null,null,null,null,null,null,null,null,null,null,null,null,null,null,null,null,null,null,null,null,null,null,null,null,null,null,null,null,null,null,null,null,null,null,null,null,null,null,null,null,null,null,null,null,null,null,null,null,null,null,null,null,null,null,null,null,null,null,null,null,null,null,null,null,null,null,null,null,null,null,null,null,null,null,null,null,null,null,null,null,null,null,null,null,null,null,null,null,null,null,null,null,null,null,null,null,null,null,null,null,null,null,null,null,null,null,null,null,null,null,null,null,null,null,null,null,null,null,null,null,null,null,null,null,null,null,null,null,null,null,null,null,null,null,null,null,null,null,null,null,null,null,null,null,null,null,null,null,null,null,null,null,null,null,null,null,null,null,null,null,null,null,null,null,null,null,null,null,null,null,null,null,null,null,null,null,null,null,null,null,null,null,null,null,null,null,null,null,null,null,null,null,null,null,null,null,null,null,null,null,null,null,null,null,null,null,null,null,null,null,null,null,null,null,null,null,null,null,null,null,null,null,null,null,null,null,null,null,null,null,null,null,null,null,null,null,null,null,null,null,null,null,null,null,null,null,null,null,null,null,null,null,null,null,null,null,null,45]
[null,null,"Results",null,"Cycle time (s)",72,null,null,null,90,205.75,145,95,145,148,150,null,null,null,130,90,90,90,90,90,60,"110 (Lab test values)",90,"75 (Lab test values)","62 (Lab test values)","90 (Lab test values)",null,90,"90 (Lab test values)","90 (Lab test values)",173.86,"90 (Lab test values)",72,62,"92 (Lab test values)",null,null,27,60,null,60,null,90,45,50,null,null,null,50,null,80,null,55,null,67.400000000000006,85.1,92,96,null,"90 (data from masterprice)",88,92,95,"90 (Lab test values)",null,null,null,null,null,null,null,null,null,null,null,null,null,null,null,null,"90 (masterprice ROTEM Oron 60B30 data)",null,null,null,null,null,null,null,null,null,null,null,null,null,null,null,null,null,null,null,null,null,null,null,null,null,null,null,null,null,null,null,null,null,null,null,null,null,null,null,null,null,null,null,null,null,null,null,null,null,null,null,null,null,null,null,null,null,null,null,null,null,null,null,null,null,null,null,null,null,null,null,null,null,null,null,null,null,null,null,null,null,null,null,null,null,null,null,null,null,null,"89 (masterprice value)","107 (masterprice value)",null,86,86,null,null,null,null,"voir offre",null,null,null,null,null,null,null,null,null,null,null,null,null,null,null,null,null,null,null,null,null,null,null,null,null,null,null,null,null,null,null,null,"98 (data from 1996, 2008 or 2014)","98 (data from 1996, 2008 or 2014)","98 (data from 1996, 2008 or 2014)",null,null,null,null,null,"88 (data from 2002 or 2006)",null,null,null,null,null,null,null,null,null,null,null,null,null,null,null,null,null,"88 (data from 2002 or 2006)",null,null,null,null,null,null,null,null,null,null,null,null,null,null,null,null,null,null,null,null,null,null,null,null,null,null,null,null,null,null,null,null,null,null,null,null,null,null,null,null,null,null,null,null,null,null,null,null,null,null,null,null,null,null,null,null,null,null,null,null,null,null,null,null,null,null,null,null,null,null,null,null,null,null,null,null,null,null,null,null,null,null,null,null,null,null,null,null,null,null,null,null,null,null,null,null,null,null,null,null,null,null,null,null,null,null,null,null,null,null,null,null,null,null,null,null,null,null,null,null,null,null,null,null,null,null,null,null,null,null,null,null,null,null,null,null,null,null,null,null,null,null,null,null,null,null,null,null,null,null,null,null,null,null,null,null,null,null,null,null,null,null,null,null,null,null,null,null,null,null,null,null,null,null,null,null,null,null,null,null,null,null,null,null,null,null,null,null,null,null,null,null,null,null,null,null,null,null,null,null,null,null,null,null,null,null,null,null,null,null,null,null,null,null,null,null,null,null,null,null,null,null,null,null,null,null,null,null,null,null,null,null,null,null,null,null,null,null,null,null,null,null,null,null,null,null,null,null,null,null,null,null,null,null,null,null,null,null,null,null,null,null,null,null,null,null,null,null,null,null,null,null,null,null,null,null,null,null,null,null,null,null,null,null,null,null,null,null,null,null,null,null,null,null,null,null,null,null,null,null,null,null,null,null,null,null,null,null,null,null,null,null,null,null,null,null,null,null,null,null,null,null,null,null,null,null,null,null,null,null,null,null,null,null,null,null,null,null,null,null,null,null,null,null,null,null,null,null,null,null,null,null,null,null,null,null,null,null,null,null,null,null,null,null,null,null,null,null,null,null,null,null,null,null,null,null,null,null,null,null,null,null,null,null,null,null,null,null,null,null,null,null,null,null,null,null,null,null,null,null,null,null,null,null,null,null,null,null,null,null,null,null,null,null,null,null,null,null,null,null,null,null,null,null,null,null,null,null,null,null,null,null,null,null,null,null,null,null,null,null,null,null,null,null,null,null,null,null,null,null,null,null,null,null,null,null,null,null,{"$f":"SUM(AAB41+(SUM(AAB43:AAB46))+AAB61)","v":100}]
[null,null,null,null,"Filtrability (T/h/m2)",1.46,0.04,null,0.68,0.49,null,0.15,0.25,0.11,0.13,0.16,0.27,7.0000000000000007E-2,0.17,0.51,0.81,0.81,0.8,0.81,0.86,0.87,null,0.66,0.45,null,0.57999999999999996,0.99,0.86,0.57999999999999996,null,0.89,0.99,0.78,0.79,1.01,null,null,22,3.7,8.3000000000000007,5.5,10,3.8,0.97,1.7,4.5999999999999996,5.9,3,4.0999999999999996,1.4,null,8,5.9,5.6,{"$f":"1.2","v":1.2},{"$f":"1.2","v":1.2},{"$f":"1.2","v":1.2},{"$f":"BK68/BK30","v":1.4728395061728394},1,null,null,0.98518518518518527,1.2,null,null,null,null,null,null,null,null,null,null,null,null,null,null,null,null,null,null,null,null,null,null,null,null,null,null,null,5.17,null,null,null,null,null,null,null,null,null,null,null,null,null,null,null,null,null,null,null,null,null,null,null,null,null,null,null,null,null,null,null,null,null,null,null,null,null,null,null,null,null,null,null,null,null,null,null,null,null,null,null,null,null,null,null,null,null,null,null,null,null,null,null,null,null,null,null,null,null,null,null,null,null,null,null,null,null,null,null,null,null,null,null,0.17399999999999999,0.17399999999999999,null,null,null,null,null,null,null,null,null,null,null,null,null,null,null,null,null,null,null,null,null,null,null,null,null,null,null,null,null,null,null,null,null,null,null,null,null,"0,1 (data from 1996, 2008 or 2014)","0,1 (data from 1996, 2008 or 2014)","0,1 (data from 1996, 2008 or 2014)",null,null,null,null,null,"0,1 (data from 2002 or 2006)",null,null,"0,29 (value from 2005 or 2002)","0,29 (value from 2005 or 2002)",null,null,null,null,null,null,null,null,null,null,null,null,null,"0,1 (data from 2002 or 2006)",null,null,null,null,null,null,null,null,null,null,null,null,null,null,null,null,null,null,null,null,null,null,null,null,null,null,null,null,null,null,null,null,null,null,null,null,null,null,null,null,null,null,null,null,null,null,null,null,null,null,null,null,null,null,null,null,null,null,null,null,null,null,null,null,null,null,null,null,null,null,null,null,null,null,null,null,null,null,null,null,null,null,null,null,null,null,null,null,null,null,null,null,null,null,null,null,null,null,null,null,null,null,null,null,null,null,null,null,null,null,null,null,null,null,null,null,null,null,null,null,null,null,null,null,null,null,null,null,null,null,null,null,null,null,null,null,null,null,null,null,null,null,null,null,null,null,null,null,null,null,null,null,null,null,null,null,null,null,null,null,null,null,null,null,null,null,null,null,null,null,null,null,null,null,null,null,null,null,null,null,null,null,null,null,null,null,null,null,null,null,null,null,null,null,null,null,null,null,null,null,null,null,null,null,null,null,null,null,null,null,null,null,null,null,null,null,null,null,null,null,null,null,null,null,null,null,null,null,null,null,null,null,null,null,null,null,null,null,null,null,null,null,null,null,null,null,null,null,null,null,null,null,null,null,null,null,null,null,null,null,null,null,null,null,null,null,null,null,null,null,null,null,null,null,null,null,null,null,null,null,null,null,null,null,null,null,null,null,null,null,null,null,null,null,null,null,null,null,null,null,null,null,null,null,null,null,null,null,null,null,null,null,null,null,null,null,null,null,null,null,null,null,null,null,null,null,null,null,null,null,null,null,null,null,null,null,null,null,null,null,null,null,null,null,null,null,null,null,null,null,null,null,null,null,null,null,null,null,null,null,null,null,null,null,null,null,null,null,null,null,null,null,null,null,null,null,null,null,null,null,null,null,null,null,null,null,null,null,null,null,null,null,null,null,null,null,null,null,null,null,null,null,null,null,null,null,null,null,null,null,null,null,null,null,null,null,null,null,null,null,null,null,null,null,null,null,null,null,null,null,null,null,null,null,null,null,null,null,null,null,null,null,null,null,null,null,null,null,null,null,null,null,null,null,null,null,null,null,2.5]
[null,"Equipement parameters",null,null,"Lowest belt speed (m/min)",2,0.5,0.75,1.25,5,3.12,2.67,2,3.67,2,2.67,2.5,null,0.83,2.67,2,3.17,1.42,3.37,4,4.67,null,2.17,"Around 9",1.39,6.56,5.83,2.67,4.7,9,6.9,null,4.33,0.83,11.4,null,null,6.67,2.17,null,5.83,null,5,5.5,4,null,null,2.2999999999999998,4.17,6.5,2.5,null,2.33,15,null,null,null,null,null,null,null,null,null,null,null,null,null,null,null,null,null,null,null,null,null,null,null,null,null,null,null,null,null,null,null,null,null,null,null,null,null,null,null,null,null,null,null,null,null,null,null,null,null,null,null,null,null,null,null,null,null,null,null,null,null,null,null,null,null,null,null,null,null,null,null,null,null,null,null,null,null,null,null,null,null,null,null,null,null,null,null,null,null,null,null,null,null,null,null,null,null,null,null,null,null,null,null,null,null,null,null,null,null,null,null,null,null,null,null,null,null,null,null,null,17.3,12.2,null,null,null,null,null,null,null,null,null,null,null,null,null,null,null,null,null,null,null,null,null,null,null,null,null,null,null,null,null,null,null,null,null,null,null,null,null,"1 (data from 1996, 2008 or 2014)","1 (data from 1996, 2008 or 2014)","1 (data from 1996, 2008 or 2014)",null,null,null,null,null,"1,67 (data from 2002 or 2006)",null,null,"15,05 (value from 2005 or 2002)","15,05 (value from 2005 or 2002)",null,null,null,null,null,null,null,null,null,null,null,null,null,"1,67 (data from 2002 or 2006)",null,null,null,null,null,null,null,null,null,null,null,null,null,null,null,null,null,null,null,null,null,null,null,null,null,null,null,null,null,null,null,null,null,null,null,null,null,null,null,null,null,null,null,null,null,null,null,null,null,null,null,null,null,null,null,null,null,null,null,null,null,null,null,null,null,null,null,null,null,null,null,null,null,null,null,null,null,null,null,null,null,null,null,null,null,null,null,null,null,null,null,null,null,null,null,null,null,null,null,null,null,null,null,null,null,null,null,null,null,null,null,null,null,null,null,null,null,null,null,null,null,null,null,null,null,null,null,null,null,null,null,null,null,null,null,null,null,null,null,null,null,null,null,null,null,null,null,null,null,null,null,null,null,null,null,null,null,null,null,null,null,null,null,null,null,null,null,null,null,null,null,null,null,null,null,null,null,null,null,null,null,null,null,null,null,null,null,null,null,null,null,null,null,null,null,null,null,null,null,null,null,null,null,null,null,null,null,null,null,null,null,null,null,null,null,null,null,null,null,null,null,null,null,null,null,null,null,null,null,null,null,null,null,null,null,null,null,null,null,null,null,null,null,null,null,null,null,null,null,null,null,null,null,null,null,null,null,null,null,null,null,null,null,null,null,null,null,null,null,null,null,null,null,null,null,null,null,null,null,null,null,null,null,null,null,null,null,null,null,null,null,null,null,null,null,null,null,null,null,null,null,null,null,null,null,null,null,null,null,null,null,null,null,null,null,null,null,null,null,null,null,null,null,null,null,null,null,null,null,null,null,null,null,null,null,null,null,null,null,null,null,null,null,null,null,null,null,null,null,null,null,null,null,null,null,null,null,null,null,null,null,null,null,null,null,null,null,null,null,null,null,null,null,null,null,null,null,null,null,null,null,null,null,null,null,null,null,null,null,null,null,null,null,null,null,null,null,null,null,null,null,null,null,null,null,null,null,null,null,null,null,null,null,null,null,null,null,null,null,null,null,null,null,null,null,null,null,null,null,null,null,null,null,null,null,null,null,null,null,null,null,null,null,null,null,null,null,null,null,null,null,null,null,null,null,null,null,null,5.83]
[null,null,null,null,"Maximum belt speed (m/min)",12,3,4.5,7.5,30,3.12,16,12,22,12,16,15,null,5,16,12,22,8.5,22,24,28,null,13,"Around 9",1.39,6.56,5.83,16,4.7,9,6.9,null,26,5,11.4,null,null,35,13,null,35,null,30,33,24,null,30,14,25,6.5,15,null,14,15,null,null,null,null,null,null,null,null,null,null,null,null,null,null,null,null,null,null,null,null,null,null,null,null,null,null,null,null,null,null,null,null,null,null,null,null,null,null,null,null,null,null,null,null,null,null,null,null,null,null,null,null,null,null,null,null,null,null,null,null,null,null,null,null,null,null,null,null,null,null,null,null,null,null,null,null,null,null,null,null,null,null,null,null,null,null,null,null,null,null,null,null,null,null,null,null,null,null,null,null,null,null,null,null,null,null,null,null,null,null,null,null,null,null,null,null,null,null,null,null,null,null,null,null,null,null,null,null,null,null,null,null,null,null,null,null,null,null,null,null,null,null,null,null,null,null,null,null,null,null,null,null,null,null,null,null,null,null,null,"6 (data from 1996, 2008 or 2014)","6 (data from 1996, 2008 or 2014)","6 (data from 1996, 2008 or 2014)",null,null,null,null,null,"10 (data from 2002 or 2006)",null,null,"15,05 (value from 2005 or 2002)","15,05 (value from 2005 or 2002)",null,null,null,null,null,null,null,null,null,null,null,null,null,"10 (data from 2002 or 2006)",null,null,null,null,null,null,null,null,null,null,null,null,null,null,null,null,null,null,null,null,null,null,null,null,null,null,null,null,null,null,null,null,null,null,null,null,null,null,null,null,null,null,null,null,null,null,null,null,null,null,null,null,null,null,null,null,null,null,null,null,null,null,null,null,null,null,null,null,null,null,null,null,null,null,null,null,null,null,null,null,null,null,null,null,null,null,null,null,null,null,null,null,null,null,null,null,null,null,null,null,null,null,null,null,null,null,null,null,null,null,null,null,null,null,null,null,null,null,null,null,null,null,null,null,null,null,null,null,null,null,null,null,null,null,null,null,null,null,null,null,null,null,null,null,null,null,null,null,null,null,null,null,null,null,null,null,null,null,null,null,null,null,null,null,null,null,null,null,null,null,null,null,null,null,null,null,null,null,null,null,null,null,null,null,null,null,null,null,null,null,null,null,null,null,null,null,null,null,null,null,null,null,null,null,null,null,null,null,null,null,null,null,null,null,null,null,null,null,null,null,null,null,null,null,null,null,null,null,null,null,null,null,null,null,null,null,null,null,null,null,null,null,null,null,null,null,null,null,null,null,null,null,null,null,null,null,null,null,null,null,null,null,null,null,null,null,null,null,null,null,null,null,null,null,null,null,null,null,null,null,null,null,null,null,null,null,null,null,null,null,null,null,null,null,null,null,null,null,null,null,null,null,null,null,null,null,null,null,null,null,null,null,null,null,null,null,null,null,null,null,null,null,null,null,null,null,null,null,null,null,null,null,null,null,null,null,null,null,null,null,null,null,null,null,null,null,null,null,null,null,null,null,null,null,null,null,null,null,null,null,null,null,null,null,null,null,null,null,null,null,null,null,null,null,null,null,null,null,null,null,null,null,null,null,null,null,null,null,null,null,null,null,null,null,null,null,null,null,null,null,null,null,null,null,null,null,null,null,null,null,null,null,null,null,null,null,null,null,null,null,null,null,null,null,null,null,null,null,null,null,null,null,null,null,null,null,null,null,null,null,null,null,null,null,null,null,null,null,null,null,null,null,null,null,null,null,null,null,35]
[null,null,null,null,"Vacuum pump air flow (m3/h)",2800,null,1200,900,12000,null,5100,2000,6000,3600,3000,3600,750,550,5000,3700,15000,2800,15000,18000,27000,null,4200,null,null,null,4000,12400,null,null,null,null,20000,1050,null,7000,null,6000,3300,null,13000,null,30400,12700,7200,null,28000,4200,20000,6500,4200,7000,7200,6000,null,null,null,26000,24375,null,null,null,24300,null,null,null,null,null,null,null,null,null,null,null,null,null,null,null,null,null,null,null,null,null,null,null,null,null,null,null,null,null,null,null,null,null,null,null,null,null,null,null,null,null,null,null,null,null,null,null,null,null,null,null,null,null,null,null,null,null,null,null,null,null,null,null,null,null,null,null,null,null,null,null,null,null,null,null,null,null,null,null,null,null,null,null,null,null,null,null,null,null,null,null,null,null,null,null,null,null,null,null,null,null,null,null,null,null,null,null,null,null,null,null,null,null,null,null,null,null,null,null,null,null,null,null,null,null,null,null,null,null,null,null,null,null,null,null,null,null,null,null,null,null,null,null,null,null,null,null,null,null,null,"5000 (data from 1996, 2008 or 2014)","5000 (data from 1996, 2008 or 2014)","5000 (data from 1996, 2008 or 2014)",null,null,null,null,null,"1700 (data from 2002 or 2006)",null,null,null,null,null,null,null,null,null,null,null,null,null,null,null,null,null,"1700 (data from 2002 or 2006)",null,null,null,null,null,null,null,null,null,null,null,null,null,null,null,null,null,null,null,null,null,null,null,null,null,null,null,null,null,null,null,null,null,null,null,null,null,null,null,null,null,null,null,null,null,null,null,null,null,null,null,null,null,null,null,null,null,null,null,null,null,null,null,null,null,null,null,null,null,null,null,null,null,null,null,null,null,null,null,null,null,null,null,null,null,null,null,null,null,null,null,null,null,null,null,null,null,null,null,null,null,null,null,null,null,null,null,null,null,null,null,null,null,null,null,null,null,null,null,null,null,null,null,null,null,null,null,null,null,null,null,null,null,null,null,null,null,null,null,null,null,null,null,null,null,null,null,null,null,null,null,null,null,null,null,null,null,null,null,null,null,null,null,null,null,null,null,null,null,null,null,null,null,null,null,null,null,null,null,null,null,null,null,null,null,null,null,null,null,null,null,null,null,null,null,null,null,null,null,null,null,null,null,null,null,null,null,null,null,null,null,null,null,null,null,null,null,null,null,null,null,null,null,null,null,null,null,null,null,null,null,null,null,null,null,null,null,null,null,null,null,null,null,null,null,null,null,null,null,null,null,null,null,null,null,null,null,null,null,null,null,null,null,null,null,null,null,null,null,null,null,null,null,null,null,null,null,null,null,null,null,null,null,null,null,null,null,null,null,null,null,null,null,null,null,null,null,null,null,null,null,null,null,null,null,null,null,null,null,null,null,null,null,null,null,null,null,null,null,null,null,null,null,null,null,null,null,null,null,null,null,null,null,null,null,null,null,null,null,null,null,null,null,null,null,null,null,null,null,null,null,null,null,null,null,null,null,null,null,null,null,null,null,null,null,null,null,null,null,null,null,null,null,null,null,null,null,null,null,null,null,null,null,null,null,null,null,null,null,null,null,null,null,null,null,null,null,null,null,null,null,null,null,null,null,null,null,null,null,null,null,null,null,null,null,null,null,null,null,null,null,null,null,null,null,null,null,null,null,null,null,null,null,null,null,null,null,null,null,null,null,null,null,null,null,null,null,null,null,null,null,null,null,null,null,null,null,null,36000]
[null,null,null,null,"Vacuum pump(m3/h/m2)",178,null,{"$f":"1200/6","v":200},360,100,null,81,83,71,80,75,80,125,183,101,298,303,308,303,300,367,null,307,null,null,null,281,306,null,null,null,null,303,300,null,292,null,400,406,null,255,null,400,229,200,null,424,140,392,181,140,233,400,480,{"$f":"BH66/BH30","v":0},0,0,321,406,null,null,null,450,null,null,null,null,null,null,null,null,null,null,null,null,null,null,null,null,null,null,null,null,null,null,null,null,null,null,null,null,null,null,null,null,null,null,null,null,null,null,null,null,null,null,null,null,null,null,null,null,null,null,null,null,null,null,null,null,null,null,null,null,null,null,null,null,null,null,null,null,null,null,null,null,null,null,null,null,null,null,null,null,null,null,null,null,null,null,null,null,null,null,null,null,null,null,null,null,null,null,null,null,null,null,null,null,null,null,null,null,null,null,null,null,null,null,null,null,null,null,null,null,null,null,null,null,null,null,null,null,null,null,null,null,null,null,null,null,null,null,null,null,null,null,null,null,null,null,null,null,null,null,"98 (data from 1996, 2008 or 2014)","98 (data from 1996, 2008 or 2014)","98 (data from 1996, 2008 or 2014)",null,null,null,null,null,"71 (data from 2002 or 2006)",null,null,null,null,null,null,null,null,null,null,null,null,null,null,null,null,null,"71 (data from 2002 or 2006)",null,null,null,null,null,null,null,null,null,null,null,null,null,null,null,null,null,null,null,null,null,null,null,null,null,null,null,null,null,null,null,null,null,null,null,null,null,null,null,null,null,null,null,null,null,null,null,null,null,null,null,null,null,null,null,null,null,null,null,null,null,null,null,null,null,null,null,null,null,null,null,null,null,null,null,null,null,null,null,null,null,null,null,null,null,null,null,null,null,null,null,null,null,null,null,null,null,null,null,null,null,null,null,null,null,null,null,null,null,null,null,null,null,null,null,null,null,null,null,null,null,null,null,null,null,null,null,null,null,null,null,null,null,null,null,null,null,null,null,null,null,null,null,null,null,null,null,null,null,null,null,null,null,null,null,null,null,null,null,null,null,null,null,null,null,null,null,null,null,null,null,null,null,null,null,null,null,null,null,null,null,null,null,null,null,null,null,null,null,null,null,null,null,null,null,null,null,null,null,null,null,null,null,null,null,null,null,null,null,null,null,null,null,null,null,null,null,null,null,null,null,null,null,null,null,null,null,null,null,null,null,null,null,null,null,null,null,null,null,null,null,null,null,null,null,null,null,null,null,null,null,null,null,null,null,null,null,null,null,null,null,null,null,null,null,null,null,null,null,null,null,null,null,null,null,null,null,null,null,null,null,null,null,null,null,null,null,null,null,null,null,null,null,null,null,null,null,null,null,null,null,null,null,null,null,null,null,null,null,null,null,null,null,null,null,null,null,null,null,null,null,null,null,null,null,null,null,null,null,null,null,null,null,null,null,null,null,null,null,null,null,null,null,null,null,null,null,null,null,null,null,null,null,null,null,null,null,null,null,null,null,null,null,null,null,null,null,null,null,null,null,null,null,null,null,null,null,null,null,null,null,null,null,null,null,null,null,null,null,null,null,null,null,null,null,null,null,null,null,null,null,null,null,null,null,null,null,null,null,null,null,null,null,null,null,null,null,null,null,null,null,null,null,null,null,null,null,null,null,null,null,null,null,null,null,null,null,null,null,null,null,null,null,null,null,null,null,null,null,null,null,null,null,null,null,null,null,null,300]
[null,"Performances",null,null,"Dry cake (T/h)",23,0.315,1.35,1.7,59,1.46,9.6,6,9.6,6,6.3,12,0.41,0.51,25,10,40,7.3,40,51.5,64,null,9.1,22.4,null,23.51,14.16,35,29.5,null,42.5,40,51.76,2.75,48.4,null,null,335,29.9,100,280,150,287,54,60,230,390,100,210,50,null,220,106,70,49.5,77,53.5,119.3,60,null,null,106.4,62.4,null,null,null,null,null,null,null,null,null,null,null,null,null,null,null,"216,5 (from TG 4278)",null,null,null,null,null,null,null,null,null,null,null,null,null,null,null,null,null,null,null,null,null,null,null,null,null,null,null,null,null,null,null,null,null,null,null,null,null,null,null,null,null,null,null,null,null,null,null,null,null,null,null,null,null,null,null,null,null,null,null,null,null,null,null,null,null,null,null,null,null,null,null,null,null,null,null,null,null,null,null,null,null,null,null,null,null,null,null,null,null,null,null,null,null,null,null,8.5,7,null,null,null,null,null,null,null,null,null,null,null,null,null,null,null,null,null,null,null,null,null,null,null,null,null,null,null,null,null,null,null,null,null,null,null,null,null,"4,89 (data from 1996, 2008 or 2014)","4,89 (data from 1996, 2008 or 2014)","4,89 (data from 1996, 2008 or 2014)",null,null,null,null,null,"2,3 (data from 2002 or 2006)",null,null,"42 (value from 2005 or 2002)","42 (value from 2005 or 2002)",null,null,null,null,null,null,null,null,null,null,null,null,null,"2,3 (data from 2002 or 2006)",null,null,null,null,null,null,null,null,null,null,null,null,null,null,null,null,null,null,null,null,null,null,null,null,null,null,null,null,null,null,null,null,null,null,null,null,null,null,null,null,null,null,null,null,null,null,null,null,null,null,null,null,null,null,null,null,null,null,null,null,null,null,null,null,null,null,null,null,null,null,null,null,null,null,null,null,null,null,null,null,null,null,null,null,null,null,null,null,null,null,null,null,null,null,null,null,null,null,null,null,null,null,null,null,null,null,null,null,null,null,null,null,null,null,null,null,null,null,null,null,null,null,null,null,null,null,null,null,null,null,null,null,null,null,null,null,null,null,null,null,null,null,null,null,null,null,null,null,null,null,null,null,null,null,null,null,null,null,null,null,null,null,null,null,null,null,null,null,null,null,null,null,null,null,null,null,null,null,null,null,null,null,null,null,null,null,null,null,null,null,null,null,null,null,null,null,null,null,null,null,null,null,null,null,null,null,null,null,null,null,null,null,null,null,null,null,null,null,null,null,null,null,null,null,null,null,null,null,null,null,null,null,null,null,null,null,null,null,null,null,null,null,null,null,null,null,null,null,null,null,null,null,null,null,null,null,null,null,null,null,null,null,null,null,null,null,null,null,null,null,null,null,null,null,null,null,null,null,null,null,null,null,null,null,null,null,null,null,null,null,null,null,null,null,null,null,null,null,null,null,null,null,null,null,null,null,null,null,null,null,null,null,null,null,null,null,null,null,null,null,null,null,null,null,null,null,null,null,null,null,null,null,null,null,null,null,null,null,null,null,null,null,null,null,null,null,null,null,null,null,null,null,null,null,null,null,null,null,null,null,null,null,null,null,null,null,null,null,null,null,null,null,null,null,null,null,null,null,null,null,null,null,null,null,null,null,null,null,null,null,null,null,null,null,null,null,null,null,null,null,null,null,null,null,null,null,null,null,null,null,null,null,null,null,null,null,null,null,null,null,null,null,null,null,null,null,null,null,null,null,null,null,null,null,null,null,null,null,null,null,null,null,null,null,null,null,null,null,null,null,null,null,null,null,null,null,null,null,300]
[null,null,null,null,"Wet cake (T/h)",29.5,0.7,null,4.0999999999999996,92.2,null,15.4,7.2,17.5,9.6,7.5,15.4,null,null,33.799999999999997,11.1,44.4,8.1,44.4,57.2,73.599999999999994,null,null,25.3,null,27.4,15.7,38.9,null,null,47.2,44.4,57.5,3.1,53.8,null,null,362,32.200000000000003,106,350,179,null,64,65,288,439,null,null,54,null,249,null,74,{"$f":"59.6","v":59.6},{"$f":"92.1","v":92.1},{"$f":"63.7","v":63.7},{"$f":"143.4","v":143.4},{"$f":"BL68*100/(100-BL72)","v":70.754716981132077},null,null,130.9,79,null,null,null,null,null,null,null,null,null,null,null,null,null,null,null,null,null,null,null,null,null,null,null,null,null,null,null,null,null,null,null,null,null,null,null,null,null,null,null,null,null,null,null,null,null,null,null,null,null,null,null,null,null,null,null,null,null,null,null,null,null,null,null,null,null,null,null,null,null,null,null,null,null,null,null,null,null,null,null,null,null,null,null,null,null,null,null,null,null,null,null,null,null,null,null,null,null,null,null,null,null,null,null,null,null,null,null,null,null,null,null,null,null,null,null,null,null,null,null,null,null,null,null,null,null,null,null,null,null,null,null,null,null,null,null,null,null,null,null,null,null,null,null,null,null,null,null,null,null,null,"10,9 (data from 1996, 2008 or 2014)","10,9 (data from 1996, 2008 or 2014)","10,9 (data from 1996, 2008 or 2014)",null,null,null,null,null,"4,1 (data from 2002 or 2006)",null,null,null,null,null,null,null,null,null,null,null,null,null,null,null,null,null,"4,1 (data from 2002 or 2006)"]
[null,null,null,null,"Daily dry cake (T/day)",552,7.56,null,40.799999999999997,1416,null,230.4,144,230.4,144,151.19999999999999,288,9.84,12.24,600,240,960,175,960,1236,1536,null,218.4,537.6,null,564.24,339.84,840,null,null,1020,960,1242,66,1162,null,null,8040,718,2400,6720,3600,6888,1296,1440,5520,9360,2400,5040,1200,null,5280,2544,1680,{"$f":"1189","v":1189},{"$f":"1849","v":1849},{"$f":"BJ68*24","v":1284},{"$f":"2863","v":2863},1440,"2*1200 (2 filters)","2*1200 (2 filters)",2554,1497.6,null,null,null,null,null,null,null,null,null,null,null,null,null,null,null,null,null,null,null,null,null,null,null,null,null,null,null,null,null,null,null,null,null,null,null,null,null,null,null,null,null,null,null,null,null,null,null,null,null,null,null,null,null,null,null,null,null,null,null,null,null,null,null,null,null,null,null,null,null,null,null,null,null,null,null,null,null,null,null,null,null,null,null,null,null,null,null,null,null,null,null,null,null,null,null,null,null,null,null,null,null,null,null,null,null,null,null,null,null,null,null,null,null,null,null,null,null,null,null,null,null,null,null,null,null,null,null,null,null,null,null,null,null,null,null,null,null,null,null,null,null,null,null,null,null,null,null,null,null,null,"117,36 (data from 1996, 2008 or 2014)","117,36 (data from 1996, 2008 or 2014)","117,36 (data from 1996, 2008 or 2014)",null,null,null,null,null,"55,2 (data from 2002 or 2006)",null,null,"1008 (value from 2005 or 2002)","1008 (value from 2005 or 2002)",null,null,null,null,null,null,null,null,null,null,null,null,null,"55,2 (data from 2002 or 2006)"]
[null,null,null,null,"Daily wet cake (T/day)",707.7,16.8,null,99.1,2212.5,null,368.6,172.8,418.9,230.4,179.7,369.2,null,null,810.8,267,1067,195,1067,1373,1766,null,null,606,null,657,378,933,null,null,1132,1066,1380,73,1291,null,null,8688,772,2553,8400,4286,null,1525,1548,6900,10541,null,null,1290,null,5966,null,1787,{"$f":"1429","v":1429},{"$f":"2211","v":2211},{"$f":"1529","v":1529},{"$f":"3441","v":3441},{"$f":"1698","v":1698},null,null,3142,1895,null,null,null,null,null,null,null,null,null,null,null,null,null,null,null,null,null,null,null,null,null,null,null,null,null,null,null,null,null,null,null,null,null,null,null,null,null,null,null,null,null,null,null,null,null,null,null,null,null,null,null,null,null,null,null,null,null,null,null,null,null,null,null,null,null,null,null,null,null,null,null,null,null,null,null,null,null,null,null,null,null,null,null,null,null,null,null,null,null,null,null,null,null,null,null,null,null,null,null,null,null,null,null,null,null,null,null,null,null,null,null,null,null,null,null,null,null,null,null,null,null,null,null,null,null,null,null,null,null,null,null,null,null,null,null,null,null,null,null,null,null,null,null,null,null,null,null,null,null,null,"260,8 (data from 1996, 2008 or 2014)","260,8 (data from 1996, 2008 or 2014)","260,8 (data from 1996, 2008 or 2014)",null,null,null,null,null,"97,7 (data from 2002 or 2006)",null,null,null,null,null,null,null,null,null,null,null,null,null,null,null,null,null,"97,7 (data from 2002 or 2006)"]
[null,null,null,null,"Cake moisture (%)",22,55,19,58.8,36,null,37.5,16.7,45,37.5,15.9,22,null,null,26,10,10,10,10,10,13,null,null,11.3,14,14.1,10,10,null,null,9.9,9.9700000000000006,10,10,10,null,10.01,7.46,7,6,20,16,null,15,"5 to 8",20,11.2,null,null,7,11,11.5,null,6,16.8,16.399999999999999,16,16.8,15.2,16.5,16,18.7,20.97,null,null,null,null,null,null,null,null,null,null,null,null,null,null,null,null,null,null,null,null,null,null,null,null,null,null,null,"<0,15",null,null,null,null,null,null,null,null,null,null,null,null,null,null,null,null,null,null,null,null,null,null,null,null,null,null,null,null,null,null,null,null,null,null,null,null,null,null,null,null,null,null,null,null,null,null,null,null,null,null,null,null,null,null,null,null,null,null,null,null,null,null,null,null,null,null,null,null,null,null,null,null,null,null,null,null,null,null,null,15,null,null,null,39,39,null,null,null,null,null,null,null,null,null,null,null,null,null,null,null,null,null,null,null,null,null,null,null,null,null,null,null,null,null,null,null,null,null,null,null,null,null,"55 (data from 1996, 2008 or 2014)","55 (data from 1996, 2008 or 2014)","55 (data from 1996, 2008 or 2014)",null,null,null,null,null,"43,5 (data from 2002 or 2006)",null,null,null,null,null,null,null,null,null,null,null,null,null,null,null,null,null,"43,5 (data from 2002 or 2006)",null,null,null,null,null,null,null,null,null,null,null,null,null,null,null,null,null,null,null,null,null,null,null,null,null,null,null,null,null,null,null,null,null,null,null,null,null,null,null,null,null,null,null,null,null,null,null,null,null,null,null,null,null,null,null,null,null,null,null,null,null,null,null,null,null,null,null,null,null,null,null,null,null,null,null,null,null,null,null,null,null,null,null,null,null,null,null,null,null,null,null,null,null,null,null,null,null,null,null,null,null,null,null,null,null,null,null,null,null,null,null,null,null,null,null,null,null,null,null,null,null,null,null,null,null,null,null,null,null,null,null,null,null,null,null,null,null,null,null,null,null,null,null,null,null,null,null,null,null,null,null,null,null,null,null,null,null,null,null,null,null,null,null,null,null,null,null,null,null,null,null,null,null,null,null,null,null,null,null,null,null,null,null,null,null,null,null,null,null,null,null,null,null,null,null,null,null,null,null,null,null,null,null,null,null,null,null,null,null,null,null,null,null,null,null,null,null,null,null,null,null,null,null,null,null,null,null,null,null,null,null,null,null,null,null,null,null,null,null,null,null,null,null,null,null,null,null,null,null,null,null,null,null,null,null,null,null,null,null,null,null,null,null,null,null,null,null,null,null,null,null,null,null,null,null,null,null,null,null,null,null,null,null,null,null,null,null,null,null,null,null,null,null,null,null,null,null,null,null,null,null,null,null,null,null,null,null,null,null,null,null,null,null,null,null,null,null,null,null,null,null,null,null,null,null,null,null,null,null,null,null,null,null,null,null,null,null,null,null,null,null,null,null,null,null,null,null,null,null,null,null,null,null,null,null,null,null,null,null,null,null,null,null,null,null,null,null,null,null,null,null,null,null,null,null,null,null,null,null,null,null,null,null,null,null,null,null,null,null,null,null,null,null,null,null,null,null,null,null,null,null,null,null,null,null,null,null,null,null,null,null,null,null,null,null,null,null,null,null,null,null,null,null,null,null,null,null,null,null,null,null,null,null,null,null,null,null,null,null,null,null,null,null,null,null,null,null,null,null,null,null,null,null,null,null,null,null,null,16]
[null,null,null,null,"Salt content in cake (%)",null,null,"H2SO4<10%",null,null,null,null,null,null,null,null,null,null,null,null,100,100,100,100,100,null,null,null,null,100,null,100,100,null,null,300,null,100,100,133,null,140,null,null,null,null,null,null,null,null,null,null,null,null,null,null,null,null,null,"0,16 in soda ash","0,18 in soda ash","0,11 in soda ash",null,"0,13 in soda ash",7.0000000000000007E-2,0.06,null,null,null,null,null,null,null,null,null,null,null,null,null,null,null,null,null,null,null,null,"3,13 (P2O5) | 0,66 (K2O)",null,null,null,null,null,null,null,null,null,null,null,null,null,null,null,null,null,null,null,null,null,null,null,null,null,null,null,null,null,null,null,null,null,null,null,null,null,null,null,null,null,null,null,null,null,null,null,null,null,null,null,null,null,null,null,null,null,null,null,null,null,null,null,null,null,null,null,null,null,null,null,null,null,null,null,null,null,null,null,null,null,null,null,null,null,null,null,null,null,null,null,null,0.2,0.2,null,null,null,null,null,null,null,null,null,null,null,null,null,null,null,null,null,null,null,null,null,null,null,null,null,null,null,null,null,null,null,null,null,null,null,null,null,null,null,null,null,null,null,null,null,null,null,null,null,null,null,null,null,null,null,null,null,null,null,null,null,null,null,null,null,null,null,null,null,null,null,null,null,null,null,null,null,null,null,null,null,null,null,null,null,null,null,null,null,null,null,null,null,null,null,null,null,null,null,null,null,null,null,null,null,null,null,null,null,null,null,null,null,null,null,null,null,null,null,null,null,null,null,null,null,null,null,null,null,null,null,null,null,null,null,null,null,null,null,null,null,null,null,null,null,null,null,null,null,null,null,null,null,null,null,null,null,null,null,null,null,null,null,null,null,null,null,null,null,null,null,null,null,null,null,null,null,null,null,null,null,null,null,null,null,null,null,null,null,null,null,null,null,null,null,null,null,null,null,null,null,null,null,null,null,null,null,null,null,null,null,null,null,null,null,null,null,null,null,null,null,null,null,null,null,null,null,null,null,null,null,null,null,null,null,null,null,null,null,null,null,null,null,null,null,null,null,null,null,null,null,null,null,null,null,null,null,null,null,null,null,null,null,null,null,null,null,null,null,null,null,null,null,null,null,null,null,null,null,null,null,null,null,null,null,null,null,null,null,null,null,null,null,null,null,null,null,null,null,null,null,null,null,null,null,null,null,null,null,null,null,null,null,null,null,null,null,null,null,null,null,null,null,null,null,null,null,null,null,null,null,null,null,null,null,null,null,null,null,null,null,null,null,null,null,null,null,null,null,null,null,null,null,null,null,null,null,null,null,null,null,null,null,null,null,null,null,null,null,null,null,null,null,null,null,null,null,null,null,null,null,null,null,null,null,null,null,null,null,null,null,null,null,null,null,null,null,null,null,null,null,null,null,null,null,null,null,null,null,null,null,null,null,null,null,null,null,null,null,null,null,null,null,null,null,null,null,null,null,null,null,null,null,null,null,null,null,null,null,null,null,null,null,null,null,null,null,null,null,null,null,null,null,null,null,null,null,null,null,null,null,null,null,null,null,null,null,null,null,null,null,null,null,null,null,null,null,null,null,null,null,null,null,null,null,null,null,null,null,null,null,null,null,null,null,null,null,null,null,null,null,null,null,null,null,null,null,null,null,null,null,null,null,null,null,null,null,null,null,null,null,null,"< 700 ppm"]
[null,null,null,null,"LOSS (%)",null,null,null,null,null,null,null,null,null,null,null,null,null,null,null,null,null,null,null,null,null,null,null,null,null,null,null,null,null,null,null,null,null,null,null,null,null,null,null,null,null,null,null,null,null,null,null,null,null,null,null,null,null,null,2.71,2.46,null,null,null,null,null,null,1.22]
[null,null,null,"Na2CO3 data","Na2CO3 (T/h)",null,null,null,null,null,null,null,null,null,null,null,null,null,null,null,null,null,null,null,null,null,null,null,null,null,null,null,null,null,null,null,null,null,null,null,null,null,null,null,null,null,null,null,null,null,null,null,null,null,null,null,null,null,null,30.97,48.14,33.4,74.5,37.5,null,null,66.5,39]
[null,null,null,null,"Na2CO3 (T/h/m2)",null,null,null,null,null,null,null,null,null,null,null,null,null,null,null,null,null,null,null,null,null,null,null,null,null,null,null,null,null,null,null,null,null,null,null,null,null,null,null,null,null,null,null,null,null,null,null,null,null,null,null,null,null,null,{"$f":"BH75/BH30","v":0.77424999999999999},0.72939393939393937,0.66799999999999993,{"$f":"BK75/BK30","v":0.91975308641975306},0.63,null,null,0.6157407407407407,0.72222222222222221]
[null,null,null,null,"Na2CO3 daily production (T/Day)",null,null,null,null,null,null,null,null,null,null,null,null,null,null,null,null,null,null,null,null,null,null,null,null,null,null,null,null,null,null,null,null,null,null,null,null,null,null,null,null,null,null,null,null,null,null,null,null,null,null,null,null,null,null,{"$f":"744.8","v":744.8},{"$f":"1166.4","v":1166.4000000000001},{"$f":"832.7","v":832.7},{"$f":"1789","v":1789},{"$f":"BL75*24","v":900},null,null,1596,936]
[null,null,null,null,"Na2CO3 Annual Production for belt filter running 365 days (T/Year)",null,null,null,null,null,null,null,null,null,null,null,null,null,null,null,null,null,null,null,null,null,null,null,null,null,null,null,null,null,null,null,null,null,null,null,null,null,null,null,null,null,null,null,null,null,null,null,null,null,null,null,null,null,null,{"$f":"BH77*365","v":271852},425736.00000000006,{"$f":"303936","v":303936},{"$f":"653018","v":653018},328500,null,null,582540,341640]
[null,null,null,null,"Conversion rate NaHCO3 to Na2CO3",null,null,null,null,null,null,null,null,null,null,null,null,null,null,null,null,null,null,null,null,null,null,null,null,null,null,null,null,null,null,null,null,null,null,null,null,null,null,null,null,null,null,null,null,null,null,null,null,null,null,null,null,null,null,1.6,1.6,1.6,1.6,1.6,1.6,1.6,1.6,1.6,1.6,null,null,null,null,null,null,null,null,null,null,null,null,null,null,null,null,null,null,null,null,null,null,null,null,null,null,null,null,null,null,null,null,null,null,null,null,null,null,null,null,null,null,null,null,null,null,null,null,null,null,null,null,null,null,null,null,null,null,null,null,null,null,null,null,null,null,null,null,null,null,null,null,null,null,null,null,null,null,null,null,null,null,null,null,null,null,null,null,null,null,null,null,null,null,null,null,null,null,null,null,null,null,null,null,null,null,1.6]
[null,"Materials",null,"S/E 01: Main frame","Frame","Carbon steel","AISI 316L",null,"Carbon steel","AISI 316L","AISI 316L","AISI 316L","AISI 304L","AISI 304L","Carbon steel","AISI 316L","Carbon steel","AISI 316L","AISI 904L","Carbon steel","Carbon steel","Carbon steel","Carbon steel","Carbon steel","Carbon steel","Carbon steel","Carbon steel","Carbon steel","Carbon steel","Carbon steel","Carbon steel","Carbon steel epoxy painted","Carbon steel","Carbon steel","Carbon steel",null,"Carbon steel","Carbon steel","Carbon steel","Carbon steel",null,null,"AISI 316L","AISI 316L",null,"AISI 316L","AISI 316L","Carbon steel","Carbon steel","AISI 316L","AISI 316L","Carbon steel","AISI 316L","AISI 316L","AISI 316L","AISI 316L","AISI 316L","AISI 316L",null,"AISI 316L","AISI 316L","AISI 316L","AISI 316L","AISI 316L","AISI 316L","AISI 316L","AISI 316L","AISI 316L","AISI 316L",null,null,null,null,null,null,null,null,null,null,null,null,null,null,null,null,null,null,null,null,null,null,null,null,null,null,null,null,null,null,null,null,null,null,null,null,null,null,null,null,null,null,null,null,null,null,"S 235 JR",null,null,null,null,null,null,null,null,null,null,null,null,null,null,null,null,null,null,null,null,null,null,null,null,null,null,null,null,null,null,null,null,null,null,null,null,null,null,null,null,null,null,null,null,null,null,null,null,null,null,null,null,null,null,null,null,null,null,null,null,null,"AISI 316L",null,null,null,null,null,null,null,null,null,null,null,null,null,null,null,null,null,null,null,null,null,null,null,null,null,null,null,null,null,null,null,null,null,null,null,null,null,null,null,null,"AISI 316L (data from 1996, 2008 or 2014)","AISI 316L (data from 1996, 2008 or 2014)","AISI 316L (data from 1996, 2008 or 2014)",null,null,null,null,null,"AISI 316L (data from 2002 or 2006)",null,null,"AISI 316L (data from 2005 or 2002)","AISI 316L (data from 2005 or 2002)",null,null,null,null,null,null,null,null,null,null,null,null,null,"AISI 316L (data from 2002 or 2006)"]
[null,null,null,"S/E 02: Cloth & belt run","Cloth tracking"]
[null,null,null,null,"Cloth support roller",null,null,null,null,null,null,null,null,null,null,null,null,null,null,null,null,null,null,null,null,null,null,null,null,null,null,null,null,null,null,null,null,null,null,null,null,null,null,null,null,null,null,null,null,null,null,null,null,null,null,null,null,null,null,null,null,null,null,null,null,null,null,null,null,null,null,null,null,null,null,null,null,null,null,null,null,null,null,null,null,null,null,null,null,null,null,null,null,null,null,null,null,null,null,null,null,null,null,null,null,null,null,null,null,null,null,null,null,null,null,null,null,null,null,null,null,null,null,null,null,null,null,null,null,null,null,null,null,null,null,null,null,null,null,null,null,null,null,null,null,null,null,null,null,null,null,null,null,null,null,null,null,null,null,null,null,null,null,null,null,null,null,null,null,null,null,null,null,null,null,null,null,"AISI 316L"]
[null,null,null,null,"Cloth return roller","AISI 304L","CSRL",null,"AISI 304L","AISI 316L","AISI 316L","AISI 316L","AISI 316L","AISI 316L","AISI 316L","AISI 316L","AISI 316L","AISI 316L","CSRL","AISI 304L","CSRL","CSRL","CSRL","CSRL","CSRL","CSRL","CSRL","CSRL","CSRL","CSRL","CSRL","CSRL","CSRL","CSRL","CSRL",null,"CSRL","CSRL","CSRL","CSRL",null,null,"AISI 316L","AISI 316L",null,"AISI 316L","AISI 316L","AISI 316L","CSRL","AISI 316L","AISI 316L","Carbon steel","AISI 316L","AISI 316L","AISI 316L","AISI 316L","AISI 316L","AISI 316L",null,"AISI 316L","AISI 316L","AISI 316L","AISI 316L","AISI 316L","AISI 316L","AISI 316L","AISI 316L","AISI 316L","AISI 316L",null,null,null,null,null,null,null,null,null,null,null,null,null,null,null,null,null,null,null,null,null,null,null,null,null,null,null,null,null,null,null,null,null,null,null,null,null,null,null,null,null,null,null,null,null,null,null,null,null,null,null,null,null,null,null,null,null,null,null,null,null,null,null,null,null,null,null,null,null,null,null,null,null,null,null,null,null,null,null,null,null,null,null,null,null,null,null,null,null,null,null,null,null,null,null,null,null,null,null,null,null,null,null,null,null,null,null,null,"AISI 316L",null,null,null,null,null,null,null,null,null,null,null,null,null,null,null,null,null,null,null,null,null,null,null,null,null,null,null,null,null,null,null,null,null,null,null,null,null,null,null,null,"AISI 316L (data from 1996, 2008 or 2014)","AISI 316L (data from 1996, 2008 or 2014)","AISI 316L (data from 1996, 2008 or 2014)",null,null,null,null,null,"AISI 316L (data from 2002 or 2006)",null,null,"AISI 316L (data from 2005 or 2002)","AISI 316L (data from 2005 or 2002)",null,null,null,null,null,null,null,null,null,null,null,null,null,"AISI 316L (data from 2002 or 2006)"]
[null,null,null,null,"Cloth tension & take up device"]
[null,null,null,null,"Head pulley & drive unit",null,null,null,null,null,null,null,null,null,null,null,null,null,null,null,null,null,null,null,null,null,null,null,null,null,null,null,null,null,null,null,null,null,null,null,null,null,null,null,null,null,null,null,null,null,null,null,null,null,null,null,null,null,null,null,null,null,null,null,null,null,null,null,null,null,null,null,null,null,null,null,null,null,null,null,null,null,null,null,null,null,null,null,null,null,null,null,null,null,null,null,null,null,null,null,null,null,null,null,null,null,null,null,null,null,null,null,null,null,null,null,null,null,null,null,null,null,null,null,null,null,null,null,null,null,null,null,null,null,null,null,null,null,null,null,null,null,null,null,null,null,null,null,null,null,null,null,null,null,null,null,null,null,null,null,null,null,null,null,null,null,null,null,null,null,null,null,null,null,null,null,null,"XC18S/S235JR/SVR"]
[null,null,null,null,"Belt tracking roller 1 rollers type"]
[null,null,null,null,"Belt tracking roller 2 rollers type"]
[null,null,null,null,"Tail pulley",null,null,null,null,null,null,null,null,null,null,null,null,null,null,null,null,null,null,null,null,null,null,null,null,null,null,null,null,null,null,null,null,null,null,null,null,null,null,null,null,null,null,null,null,null,null,null,null,null,null,null,null,null,null,null,null,null,null,null,null,null,null,null,null,null,null,null,null,null,null,null,null,null,null,null,null,null,null,null,null,null,null,null,null,null,null,null,null,null,null,null,null,null,null,null,null,null,null,null,null,null,null,null,null,null,null,null,null,null,null,null,null,null,null,null,null,null,null,null,null,null,null,null,null,null,null,null,null,null,null,null,null,null,null,null,null,null,null,null,null,null,null,null,null,null,null,null,null,null,null,null,null,null,null,null,null,null,null,null,null,null,null,null,null,null,null,null,null,null,null,null,null,"XC18S/S235JR/SVR"]
[null,null,null,null,"Belt support roller","AISI 304L","CSRL",null,"AISI 304L","AISI 316L","AISI 316L","AISI 316L","AISI 316L","AISI 316L","AISI 316L","AISI 316L","AISI 316L","AISI 316L","AISI 316L","AISI 304L","CSRL","CSRL","CSRL","CSRL","CSRL","CSRL","CSRL","CSRL","CSRL","CSRL","CSRL","CSRL","CSRL","CSRL","CSRL",null,"CSRL","CSRL","CSRL","CSRL",null,null,"AISI 316L","AISI 316L",null,"AISI 316L","AISI 316L","AISI 316L","CSRL","AISI 316L","AISI 316L","AISI 316L","AISI 316L","AISI 316L","AISI 316L","AISI 316L","AISI 316L","AISI 316L",null,"AISI 316L","AISI 316L","AISI 316L","AISI 316L","AISI 316L","AISI 316L","AISI 316L","AISI 316L","AISI 316L","AISI 316L",null,null,null,null,null,null,null,null,null,null,null,null,null,null,null,null,null,null,null,null,null,null,null,null,null,null,null,null,null,null,null,null,null,null,null,null,null,null,null,null,null,null,null,null,null,null,null,null,null,null,null,null,null,null,null,null,null,null,null,null,null,null,null,null,null,null,null,null,null,null,null,null,null,null,null,null,null,null,null,null,null,null,null,null,null,null,null,null,null,null,null,null,null,null,null,null,null,null,null,null,null,null,null,null,null,null,null,null,"AISI 316L",null,null,null,null,null,null,null,null,null,null,null,null,null,null,null,null,null,null,null,null,null,null,null,null,null,null,null,null,null,null,null,null,null,null,null,null,null,null,null,null,"AISI 316L (data from 1996, 2008 or 2014)","AISI 316L (data from 1996, 2008 or 2014)","AISI 316L (data from 1996, 2008 or 2014)",null,null,null,null,null,"AISI 316L (data from 2002 or 2006)",null,null,"MSRL (data from 2005 or 2002)","MSRL (data from 2005 or 2002)",null,null,null,null,null,null,null,null,null,null,null,null,null,"AISI 316L (data from 2002 or 2006)"]
[null,null,null,null,"Rubber belt","SBR","SBR",null,"SBR","SBR","SBR","SBR","SBR","SBR","SBR","SBR","EPDM","SBR","SBR","EPDM","SBR","SBR","SBR","SBR","SBR","SBR","SBR","SBR","SBR","SBR","SBR","SBR","SBR","SBR","SBR",null,"SBR","SBR","SBR","SBR","SBR",null,"SBR","SBR",null,"EPDM","SBR/EPDM","SBR","SBR","SBR","SBR/EPDM","SBR","RUBBER","SBR","SBR","SBR","SBR/EPDM","EPDM",null,"SBR","SBR","SBR","SBR","SBR","SBR","SBR","SBR","SBR","SBR",null,null,null,null,null,null,null,null,null,null,null,null,null,null,null,null,null,null,null,null,null,null,null,null,null,null,null,null,null,null,null,null,null,null,null,null,null,null,null,null,null,null,null,null,null,null,null,null,null,null,null,null,null,null,null,null,null,null,null,null,null,null,null,null,null,null,null,null,null,null,null,null,null,null,null,null,null,null,null,null,null,null,null,null,null,null,null,null,null,null,null,null,null,null,null,null,null,null,null,null,null,null,null,null,null,null,null,null,"SBR",null,null,null,null,null,null,null,null,null,null,null,null,null,null,null,null,null,null,null,null,null,null,null,null,null,null,null,null,null,null,null,null,null,null,null,null,null,null,null,null,"SBR (data from 1996, 2008 or 2014)","SBR (data from 1996, 2008 or 2014)","SBR (data from 1996, 2008 or 2014)",null,null,null,null,null,"SBR (data from 2002 or 2006)",null,null,"SBR (data from 2005 or 2002)","SBR (data from 2005 or 2002)",null,null,null,null,null,null,null,null,null,null,null,null,null,"SBR (data from 2002 or 2006)"]
[null,null,null,null,"Inlet roller",null,null,null,null,null,null,null,null,null,null,null,null,null,null,null,null,null,null,null,null,null,null,null,null,null,null,null,null,null,null,null,null,null,null,null,null,null,null,null,null,null,null,null,null,null,null,null,null,null,null,null,null,null,null,null,null,null,null,null,null,null,null,null,null,null,null,null,null,null,null,null,null,null,null,null,null,null,null,null,null,null,null,null,null,null,null,null,null,null,null,null,null,null,null,null,null,null,null,null,null,null,null,null,null,null,null,null,null,null,null,null,null,null,null,null,null,null,null,null,null,null,null,null,null,null,null,null,null,null,null,null,null,null,null,null,null,null,null,null,null,null,null,null,null,null,null,null,null,null,null,null,null,null,null,null,null,null,null,null,null,null,null,null,null,null,null,null,null,null,null,null,null,"U45N"]
[null,null,null,null,"Pneumatic feeler"]
[null,null,null,null,"Filter cloth (Warp/Weft - Reference - opening - Fiber)","Mo - SEFAR - 85 - PP","Mo/Mu - 07 8435 SK 10 - 10 - PES",null,null,null,null,null,null,null,null,"Mo/Mo - SEFAR - 30 - PP","Mo - PP","Mo/Mu - SEFAR - 20 - PP","Mo/Mo - PP",null,"Mo - SEFAR - 85 - PP","Mo - SEFAR - 85 - PP","Mo - SEFAR - 85 - PP","Mo - SEFAR - 85 - PP","Mo - SEFAR - 85 - PP","Mo - SEFAR - 85 - PP","Mo - SEFAR - 85 - PP","Mo - SEFAR - 85 - PP","Mo - SEFAR - 85 - PP","Mo - SEFAR - 85 - PP","Mo - SEFAR - 85 - PP","Mo - SEFAR - 85 - PP","Mo - SEFAR - 85 - PP","Mo - SEFAR - 85 - PP","Mo - SEFAR - 85 - PP","Mo - SEFAR - 85 - PP","Mo - SEFAR - 85 - PP","Mo - SEFAR - 85 - PP","Mo - SEFAR - 85 - PP","Mo - SEFAR - 85 - PP","Mo - SEFAR - 85 - PP",null,"Mo/Dlw - PP","Mo/Dlw - PP","Mo/Dlw - PP","Mo/Dlw - PP","Mo/Dlw - PP","Mo/Dlw - PP","Mo/Dlw - PP","Mo/Mo Dlw - SEFAR - 85 - PP","VENDOIR","Mo - SEFAR or SCANDIAFELT - ?? - PES","VERSEIDAG - 6623 PES",null,"VERSEIDAG - 6623 PES","VERSEIDAG - 6623 PES",null,null,null,"Mo/Mo Dlw - SEFAR - 50 - PP","Mo/Mo Dlw - SEFAR - 50 - PP","Mo/Mo Dlw - 214-3 CRAMER - 50 - PP","Mo - SEFAR - 120 - PP","Mo - VERSEIDAG - 6982 PES","Mo/Dlw - PP",null,"Mo/Mo Dlw- 214-3 CRAMER - 50 - PP","Mo/Mo Dlw- SEFAR - 50 - PP","Dlw - SEFAR - 50  - PP",null,null,null,null,null,null,null,null,null,null,null,null,null,null,null,null,null,null,null,null,null,null,null,null,null,null,"Monofilament",null,null,null,null,null,null,null,null,null,null,null,null,null,null,null,null,null,null,null,null,null,null,null,null,null,null,null,null,null,null,null,null,null,null,null,null,null,null,null,null,null,null,null,null,null,null,null,null,null,null,null,null,null,null,null,null,null,null,null,null,null,null,null,null,null,null,null,null,null,null,null,null,null,null,null,null,null,null,null,null,null,null,null,"Double layer - C50 HC",null,null,null,null,null,null,null,null,null,null,null,null,null,null,null,null,null,null,null,null,null,null,null,null,null,null,null,null,null,null,null,null,null,null,null,null,null,null,"Mo - PP (data from 1996, 2008 or 2014)","Mo - PP (data from 1996, 2008 or 2014)","Mo - PP (data from 1996, 2008 or 2014)",null,null,null,null,null,null,null,null,"Mo - PP/PES (data from 2005 or 2002)","Mo - PP/PES (data from 2005 or 2002)"]
[null,null,null,"S/E 03: Drive unit"]
[null,null,null,"S/E 04: Vacuum box","Section","AISI 304L","FRP",null,"AISI 304L","AISI 316L","U45N","AISI 904L","AISI 904L","AISI 904L","DIN 4435","AISI 316L","AISI 316L","AISI 316L","FRP","AISI 304L","FRP","FRP","FRP","FRP","FRP","FRP","FRP","FRP","FRP","FRP","FRP","FRP","FRP","FRP","FRP",null,"FRP","FRP","FRP","FRP","FRP",null,"AISI 904L","AISI 316L",null,"AISI 316L","AISI 316L","AISI 316L","AISI 316L","AISI 316L","AISI 316L","AISI 316L","AISI 316L","AISI 316L","AISI 316L","AISI 316L","AISI 316L","AISI 316L",null,"U45N","U45N","U45N","U45N","AISI 316L","U45N","U45N","U45N","U45N","U45N",null,null,null,null,null,null,null,null,null,null,null,null,null,null,null,null,null,null,null,null,null,null,null,null,null,null,null,null,null,null,null,null,null,null,null,null,null,null,null,null,null,null,null,null,null,null,null,null,null,null,null,null,null,null,null,null,null,null,null,null,null,null,null,null,null,null,null,null,null,null,null,null,null,null,null,null,null,null,null,null,null,null,null,null,null,null,null,null,null,null,null,null,null,null,null,null,null,null,null,null,null,null,null,null,null,null,null,null,"U45N",null,null,null,null,null,null,null,null,null,null,null,null,null,null,null,null,null,null,null,null,null,null,null,null,null,null,null,null,null,null,null,null,null,null,null,null,null,null,null,null,"AISI 904L (data from 1996, 2008 or 2014)","AISI 904L (data from 1996, 2008 or 2014)","AISI 904L (data from 1996, 2008 or 2014)",null,null,null,null,null,"AISI 316L (data from 2002 or 2006)",null,null,"U45N (data from 2005 or 2002)","U45N (data from 2005 or 2002)",null,null,null,null,null,null,null,null,null,null,null,null,null,"AISI 316L (data from 2002 or 2006)"]
[null,null,null,null,"Vacuum box support frame","AISI 304L","AISI 316L",null,"AISI 304L","AISI 316L","AISI 316L","AISI 316L","AISI 316L","AISI 304L","AISI 316L","AISI 316L","AISI 316L","AISI 316L","AISI 904L","AISI 304L","AISI 316L","AISI 316L","AISI 316L","AISI 316L","AISI 316L","AISI 316L","AISI 316L","AISI 316L","AISI 316L","AISI 316L","AISI 316L",null,"AISI 316L","AISI 316L","AISI 316L",null,"AISI 316L","AISI 316L","AISI 316L","AISI 316L",null,null,"AISI 316L","AISI 316L",null,"AISI 316L","AISI 316L","AISI 316L","AISI 316L","AISI 316L","AISI 316L","AISI 316L","AISI 316L","AISI 316L","AISI 316L","AISI 316L","AISI 316L","AISI 316L",null,"AISI 316L","AISI 316L","AISI 316L","AISI 316L","AISI 316L","AISI 316L","AISI 316L","AISI 316L","AISI 316L","AISI 316L",null,null,null,null,null,null,null,null,null,null,null,null,null,null,null,null,null,null,null,null,null,null,null,null,null,null,null,null,null,null,null,null,null,null,null,null,null,null,null,null,null,null,null,null,null,null,null,null,null,null,null,null,null,null,null,null,null,null,null,null,null,null,null,null,null,null,null,null,null,null,null,null,null,null,null,null,null,null,null,null,null,null,null,null,null,null,null,null,null,null,null,null,null,null,null,null,null,null,null,null,null,null,null,null,null,null,null,null,"U45N",null,null,null,null,null,null,null,null,null,null,null,null,null,null,null,null,null,null,null,null,null,null,null,null,null,null,null,null,null,null,null,null,null,null,null,null,null,null,null,null,"AISI 316L (data from 1996, 2008 or 2014)","AISI 316L (data from 1996, 2008 or 2014)","AISI 316L (data from 1996, 2008 or 2014)",null,null,null,null,null,"AISI 316L (data from 2002 or 2006)",null,null,"AISI 316L (data from 2005 or 2002)","AISI 316L (data from 2005 or 2002)",null,null,null,null,null,null,null,null,null,null,null,null,null,"AISI 316L (data from 2002 or 2006)"]
[null,null,null,null,"Filtrate connection","AISI 304L","FRP",null,"AISI 304L","AISI 316L","U45N","AISI 904L","AISI 904L","AISI 904L","DIN 4435","AISI 316L","AISI 316L",null,"Polypropylen","AISI 304L","FRP","FRP","POLYPROPYLEN","FRP","FRP","POLYPROPYLEN","POLYPROPYLEN","FRP","POLYPROPYLEN","POLYPROPYLEN","CSRL","POLYPROPYLEN","CSRL","CSRL","CSRL",null,"CSRL","POLYPROPYLEN","POLYPROPYLEN","POLYPROPYLEN","POLYPROPYLEN",null,"AISI 904L","AISI 316L",null,"AISI 316L","AISI 316L","AISI 316L","AISI 316L","AISI 316L",null,"Carbon steel","AISI 316L","AISI 316L","AISI 904L","AISI 904L","AISI 316L","AISI 316L",null,"U45N","U45N","U45N","U45N","AISI 316L","U45N","SVR","U45N","U45N","U45N",null,null,null,null,null,null,null,null,null,null,null,null,null,null,null,null,null,null,null,null,null,null,null,null,null,null,null,null,null,null,null,null,null,null,null,null,null,null,null,null,null,null,null,null,null,null,null,null,null,null,null,null,null,null,null,null,null,null,null,null,null,null,null,null,null,null,null,null,null,null,null,null,null,null,null,null,null,null,null,null,null,null,null,null,null,null,null,null,null,null,null,null,null,null,null,null,null,null,null,null,null,null,null,null,null,null,null,null,"U45N",null,null,null,null,null,null,null,null,null,null,null,null,null,null,null,null,null,null,null,null,null,null,null,null,null,null,null,null,null,null,null,null,null,null,null,null,null,null,null,null,"AISI 904L (data from 1996, 2008 or 2014)","AISI 904L (data from 1996, 2008 or 2014)","AISI 904L (data from 1996, 2008 or 2014)",null,null,null,null,null,"AISI 316L (data from 2002 or 2006)",null,null,"U45N (data from 2005 or 2002)","U45N (data from 2005 or 2002)",null,null,null,null,null,null,null,null,null,null,null,null,null,"AISI 316L (data from 2002 or 2006)"]
[null,null,null,"S/E 05: Cloth and belt washing and cake discharge","Cake discharge"]
[null,null,null,null,"Cloth and belt washing","AISI 304L","AISI 316L",null,"AISI 304L","AISI 316L","AISI 316L","AISI 316L","AISI 316L","AISI 316L","AISI 316L","AISI 316L","AISI 316L","AISI 316L","AISI 316L","AISI 304L","AISI 316L","AISI 316L","AISI 316L","AISI 316L","AISI 316L","AISI 316L","AISI 316L","AISI 316L","AISI 316L","AISI 316L","AISI 316L","SS 316L","AISI 316L","AISI 316L","AISI 316L",null,"AISI 316L","AISI 316L","AISI 316L","AISI 316L","POLYPROPYLEN",null,"AISI 316L","AISI 316L",null,"AISI 316L","AISI 316L","AISI 316L","AISI 304L","AISI 316L","AISI 316L","Carbon steel","AISI 316L","AISI 316L","AISI 316L","AISI 316L","AISI 316L","AISI 316L",null,"AISI 316L","AISI 316L","AISI 316L","AISI 316L","AISI 316L","AISI 316L","AISI 316L","AISI 316L","AISI 316L","AISI 316L",null,null,null,null,null,null,null,null,null,null,null,null,null,null,null,null,null,null,null,null,null,null,null,null,null,null,null,null,null,null,null,null,null,null,null,null,null,null,null,null,null,null,null,null,null,null,null,null,null,null,null,null,null,null,null,null,null,null,null,null,null,null,null,null,null,null,null,null,null,null,null,null,null,null,null,null,null,null,null,null,null,null,null,null,null,null,null,null,null,null,null,null,null,null,null,null,null,null,null,null,null,null,null,null,null,null,null,null,"AISI 316L",null,null,null,null,null,null,null,null,null,null,null,null,null,null,null,null,null,null,null,null,null,null,null,null,null,null,null,null,null,null,null,null,null,null,null,null,null,null,null,null,"AISI 316L (data from 1996, 2008 or 2014)","AISI 316L (data from 1996, 2008 or 2014)","AISI 316L (data from 1996, 2008 or 2014)",null,null,null,null,null,"AISI 316L (data from 2002 or 2006)",null,null,"U45N (data from 2005 or 2002)","U45N (data from 2005 or 2002)",null,null,null,null,null,null,null,null,null,null,null,null,null,"AISI 316L (data from 2002 or 2006)"]
[null,null,null,null,"Cloth and belt wash water collecting tank","AISI 304L","AISI 316L",null,"AISI 304L","AISI 316L","AISI 316L","AISI 316L","AISI 316L","AISI 316L","DIN 4435","AISI 316L","AISI 316L","AISI 316L","POLYPROPYLEN","AISI 304L","POLYPROPYLEN","POLYPROPYLEN","POLYPROPYLEN","POLYPROPYLEN","POLYPROPYLEN","POLYPROPYLEN","POLYPROPYLEN","POLYPROPYLEN","POLYPROPYLEN","POLYPROPYLEN","POLYPROPYLEN",null,"POLYPROPYLEN","POLYPROPYLEN","POLYPROPYLEN",null,"POLYPROPYLEN","POLYPROPYLEN","POLYPROPYLEN","POLYPROPYLEN","POLYPROPYLEN",null,"AISI 316L","AISI 316L",null,"AISI 316L","AISI 316L","AISI 316L","Carbon steel","AISI 316L","AISI 316L","AISI 316L","AISI 316L","AISI 316L","AISI 316L","AISI 316L","AISI 316L","AISI 316L",null,"U45N","U45N","U45N","U45N","AISI 316L","AISI 316L","U45N","U45N","U45N","U45N",null,null,null,null,null,null,null,null,null,null,null,null,null,null,null,null,null,null,null,null,null,null,null,null,null,null,null,null,null,null,null,null,null,null,null,null,null,null,null,null,null,null,null,null,null,null,null,null,null,null,null,null,null,null,null,null,null,null,null,null,null,null,null,null,null,null,null,null,null,null,null,null,null,null,null,null,null,null,null,null,null,null,null,null,null,null,null,null,null,null,null,null,null,null,null,null,null,null,null,null,null,null,null,null,null,null,null,null,"AISI 316L",null,null,null,null,null,null,null,null,null,null,null,null,null,null,null,null,null,null,null,null,null,null,null,null,null,null,null,null,null,null,null,null,null,null,null,null,null,null,null,null,"AISI 316L (data from 1996, 2008 or 2014)","AISI 316L (data from 1996, 2008 or 2014)","AISI 316L (data from 1996, 2008 or 2014)",null,null,null,null,null,"AISI 316L (data from 2002 or 2006)",null,null,"U45N (data from 2005 or 2002)","U45N (data from 2005 or 2002)",null,null,null,null,null,null,null,null,null,null,null,null,null,"AISI 316L (data from 2002 or 2006)"]
[null,null,null,null,"Liquid Ring collecting tank"]
[null,null,null,null,"Cake discharge hopper","AISI 304L","Polypropylen",null,"AISI 304L","AISI 316L","AISI 316L","AISI 316L","AISI 316L","AISI 316L","AISI 316L","AISI 316L","AISI 316L","AISI 316L","POLYETHYLENE","AISI 304L","POLYPROPYLEN","POLYPROPYLEN","POLYPROPYLEN","POLYPROPYLEN","POLYPROPYLEN","POLYPROPYLEN","POLYPROPYLEN","POLYPROPYLEN","POLYPROPYLEN","POLYPROPYLEN","POLYPROPYLEN",null,"POLYPROPYLEN","POLYPROPYLEN","POLYPROPYLEN",null,"POLYPROPYLEN","POLYPROPYLEN","POLYPROPYLEN","POLYPROPYLEN",null,null,"AISI 316L","POLYPROPYLEN",null,"AISI 316L","AISI 316L","AISI 316L","Carbon steel","AISI 316L","AISI 316L","POLYURETHANE","AISI 316L","AISI 316L","AISI 316L","AISI 316L","AISI 316L","AISI 316L",null,"AISI 316L","AISI 316L","AISI 316L","AISI 316L","AISI 316L","AISI 316L","AISI 316L","AISI 316L","AISI 316L","AISI 316L",null,null,null,null,null,null,null,null,null,null,null,null,null,null,null,null,null,null,null,null,null,null,null,null,null,null,null,null,null,null,null,null,null,null,null,null,null,null,null,null,null,null,null,null,null,null,null,null,null,null,null,null,null,null,null,null,null,null,null,null,null,null,null,null,null,null,null,null,null,null,null,null,null,null,null,null,null,null,null,null,null,null,null,null,null,null,null,null,null,null,null,null,null,null,null,null,null,null,null,null,null,null,null,null,null,null,null,null,null,null,null,null,null,null,null,null,null,null,null,null,null,null,null,null,null,null,null,null,null,null,null,null,null,null,null,null,null,null,null,null,null,null,null,null,null,null,null,null,null,"AISI 316L (data from 1996, 2008 or 2014)","AISI 316L (data from 1996, 2008 or 2014)","AISI 316L (data from 1996, 2008 or 2014)",null,null,null,null,null,"AISI 316L (data from 2002 or 2006)",null,null,"AISI 316L (data from 2005 or 2002)","AISI 316L (data from 2005 or 2002)",null,null,null,null,null,null,null,null,null,null,null,null,null,"AISI 316L (data from 2002 or 2006)"]
[null,null,null,null,"Discharge roller","AISI 304L","CSRL",null,"AISI 304L","AISI 316L","AISI 316L",null,null,null,null,null,null,null,"CSRL","AISI 304L","CSRL","CSRL","CSRL","CSRL","CSRL","CSRL","CSRL","CSRL","CSRL","CSRL","CSRL",null,"CSRL","CSRL","CSRL",null,"CSRL","CSRL","CSRL","CSRL",null,null,"AISI 316L","AISI 316L",null,"AISI 316L","AISI 316L","AISI 316L","CSRL","AISI 316L","AISI 316L","AISI 316L","AISI 316L","AISI 316L","AISI 316L","AISI 316L","AISI 316L","AISI 316L",null,"AISI 316L","AISI 316L","AISI 316L","AISI 316L","AISI 316L","AISI 316L","AISI 316L","AISI 316L","AISI 316L","AISI 316L",null,null,null,null,null,null,null,null,null,null,null,null,null,null,null,null,null,null,null,null,null,null,null,null,null,null,null,null,null,null,null,null,null,null,null,null,null,null,null,null,null,null,null,null,null,null,null,null,null,null,null,null,null,null,null,null,null,null,null,null,null,null,null,null,null,null,null,null,null,null,null,null,null,null,null,null,null,null,null,null,null,null,null,null,null,null,null,null,null,null,null,null,null,null,null,null,null,null,null,null,null,null,null,null,null,null,null,null,"AISI 316L"]
[null,null,null,null,"Cloth wash water pan","AISI 304L","Polypropylen",null,"AISI 304L","AISI 316L","AISI 316L","AISI 316L","AISI 304L","AISI 316L","AISI 316L","AISI 316L","AISI 316L","AISI 316L","POLYPROPYLEN","AISI 304L","POLYPROPYLEN","POLYPROPYLEN","POLYPROPYLEN","POLYPROPYLEN","POLYPROPYLEN","POLYPROPYLEN","POLYPROPYLEN","POLYPROPYLEN","POLYPROPYLEN","POLYPROPYLEN","POLYPROPYLEN",null,"POLYPROPYLEN","POLYPROPYLEN","POLYPROPYLEN",null,"POLYPROPYLEN","POLYPROPYLEN","POLYPROPYLEN","POLYPROPYLEN","POLYPROPYLEN",null,"AISI 316L","POLYPROPYLEN",null,"AISI 316L","AISI 316L","AISI 316L","Carbon steel","AISI 316L","AISI 316L","AISI 316L","AISI 316L","AISI 316L","AISI 316L","AISI 316L","AISI 316L","AISI 316L",null,"AISI 316L","AISI 316L","AISI 316L","AISI 316L","AISI 316L","AISI 316L","AISI 316L","AISI 316L","AISI 316L","AISI 316L",null,null,null,null,null,null,null,null,null,null,null,null,null,null,null,null,null,null,null,null,null,null,null,null,null,null,null,null,null,null,null,null,null,null,null,null,null,null,null,null,null,null,null,null,null,null,null,null,null,null,null,null,null,null,null,null,null,null,null,null,null,null,null,null,null,null,null,null,null,null,null,null,null,null,null,null,null,null,null,null,null,null,null,null,null,null,null,null,null,null,null,null,null,null,null,null,null,null,null,null,null,null,null,null,null,null,null,null,null,null,null,null,null,null,null,null,null,null,null,null,null,null,null,null,null,null,null,null,null,null,null,null,null,null,null,null,null,null,null,null,null,null,null,null,null,null,null,null,null,"AISI 316L (data from 1996, 2008 or 2014)","AISI 316L (data from 1996, 2008 or 2014)","AISI 316L (data from 1996, 2008 or 2014)",null,null,null,null,null,"AISI 316L (data from 2002 or 2006)",null,null,"U45N (data from 2005 or 2002)","U45N (data from 2005 or 2002)",null,null,null,null,null,null,null,null,null,null,null,null,null,"AISI 316L (data from 2002 or 2006)"]
[null,null,null,"S/E 06: Upper accessories","Slurry entrance dam (former feed dam roller)","AISI 304L","Polypropylen",null,"AISI 304L","AISI 316L","U45N","AISI 904L","AISI 904L","AISI 904L","DIN 4435","AISI 316L","AISI 316L","AISI 316L","POLYPROPYLEN","AISI 304L","CSRL","CSRL","CSRL","CSRL","CSRL","CSRL","CSRL","CSRL","CSRL","CSRL","CSRL",null,"CSRL","CSRL","CSRL",null,"CSRL","CSRL","CSRL","CSRL",null,null,"AISI 316L","AISI 316L",null,"AISI 316L","AISI 316L","CSRL","CSRL","AISI 316L","AISI 316L","AISI 316L","AISI 316L","AISI 316L","AISI 316L","AISI 316L","AISI 316L","AISI 316L",null,"U45N","U45N","U45N","U45N","AISI 316L","U45N","U45N","U45N","U45N","U45N",null,null,null,null,null,null,null,null,null,null,null,null,null,null,null,null,null,null,null,null,null,null,null,null,null,null,null,null,null,null,null,null,null,null,null,null,null,null,null,null,null,null,null,null,null,null,null,null,null,null,null,null,null,null,null,null,null,null,null,null,null,null,null,null,null,null,null,null,null,null,null,null,null,null,null,null,null,null,null,null,null,null,null,null,null,null,null,null,null,null,null,null,null,null,null,null,null,null,null,null,null,null,null,null,null,null,null,null,null,null,null,null,null,null,null,null,null,null,null,null,null,null,null,null,null,null,null,null,null,null,null,null,null,null,null,null,null,null,null,null,null,null,null,null,null,null,null,null,null,"AISI 904L (data from 1996, 2008 or 2014)","AISI 904L (data from 1996, 2008 or 2014)","AISI 904L (data from 1996, 2008 or 2014)",null,null,null,null,null,"AISI 316L (data from 2002 or 2006)",null,null,"U45N (data from 2005 or 2002)","U45N (data from 2005 or 2002)",null,null,null,null,null,null,null,null,null,null,null,null,null,"AISI 316L (data from 2002 or 2006)"]
[null,null,null,null,"Pendular Dam"]
[null,null,null,null,"Slurry Distributor","AISI 304L","Polypropylen",null,"AISI 304L","AISI 316L","U45N","AISI 904L","AISI 904L","AISI 904L","DIN 4435","AISI 316L","AISI 316L","AISI 316L","POLYPROPYLEN","AISI 304L","POLYPROPYLEN","POLYPROPYLEN","POLYPROPYLEN","POLYPROPYLEN","POLYPROPYLEN","POLYPROPYLEN","POLYPROPYLEN","POLYPROPYLEN","POLYPROPYLEN","POLYPROPYLEN","POLYPROPYLEN","POLYPROPYLEN","POLYPROPYLEN","POLYPROPYLEN","POLYPROPYLEN",null,"POLYPROPYLEN","POLYPROPYLEN","POLYPROPYLEN","POLYPROPYLEN",null,null,"AISI 316L","AISI 316L",null,"AISI 316L","AISI 316L","AISI 316L","Carbon steel","AISI 316L","AISI 316L","AISI 316L","AISI 316L","AISI 316L","AISI 316L","AISI 316L","AISI 316L","AISI 316L",null,"U45N","U45N","U45N","U45N","AISI 316L","U45N","U45N","U45N","U45N","U45N",null,null,null,null,null,null,null,null,null,null,null,null,null,null,null,null,null,null,null,null,null,null,null,null,null,null,null,null,null,null,null,null,null,null,null,null,null,null,null,null,null,null,null,null,null,null,null,null,null,null,null,null,null,null,null,null,null,null,null,null,null,null,null,null,null,null,null,null,null,null,null,null,null,null,null,null,null,null,null,null,null,null,null,null,null,null,null,null,null,null,null,null,null,null,null,null,null,null,null,null,null,null,null,null,null,null,null,null,null,null,null,null,null,null,null,null,null,null,null,null,null,null,null,null,null,null,null,null,null,null,null,null,null,null,null,null,null,null,null,null,null,null,null,null,null,null,null,null,null,"AISI 904L (data from 1996, 2008 or 2014)","AISI 904L (data from 1996, 2008 or 2014)","AISI 904L (data from 1996, 2008 or 2014)",null,null,null,null,null,"AISI 316L (data from 2002 or 2006)",null,null,"U45N (data from 2005 or 2002)","U45N (data from 2005 or 2002)",null,null,null,null,null,null,null,null,null,null,null,null,null,"AISI 316L (data from 2002 or 2006)"]
[null,null,null,null,"Cake washing distributor / Process equipment trolley","AISI 304L","AISI 316L"]
[null,null,null,"S/E 07: Belt support table",null,"AISI 304L","AISI 316L",null,"AISI 304L","AISI 316L","AISI 316L","AISI 304L","AISI 304L","AISI 304L","AISI 304L","AISI 316L","AISI 316L","AISI 316L","AISI 904L","Carbon steel","AISI 304L","AISI 304L","AISI 304L","Carbon steel","Carbon steel","Carbon steel","Carbon steel","Carbon steel","Carbon steel","Carbon steel","AISI 304L","AISI 304L","AISI 304L","AISI 304L","AISI 304L",null,"AISI 304L","AISI 304L","AISI 304L","AISI 304L",null,null,"AISI 316L","AISI 316L",null,"AISI 316L","AISI 316L","AISI 316L","AISI 304L","AISI 316L","AISI 316L","Carbon steel","AISI 316L","AISI 316L","AISI 316L","AISI 316L","AISI 316L","AISI 316L",null,"AISI 316L","AISI 316L","AISI 316L","AISI 316L","AISI 316L","AISI 316L","AISI 316L","AISI 316L","AISI 316L","AISI 316L",null,null,null,null,null,null,null,null,null,null,null,null,null,null,null,null,null,null,null,null,null,null,null,null,null,null,null,null,null,null,null,null,null,null,null,null,null,null,null,null,null,null,null,null,null,null,null,null,null,null,null,null,null,null,null,null,null,null,null,null,null,null,null,null,null,null,null,null,null,null,null,null,null,null,null,null,null,null,null,null,null,null,null,null,null,null,null,null,null,null,null,null,null,null,null,null,null,null,null,null,null,null,null,null,null,null,null,null,null,null,null,null,null,null,null,null,null,null,null,null,null,null,null,null,null,null,null,null,null,null,null,null,null,null,null,null,null,null,null,null,null,null,null,null,null,null,null,null,null,"AISI 316L (data from 1996, 2008 or 2014)","AISI 316L (data from 1996, 2008 or 2014)","AISI 316L (data from 1996, 2008 or 2014)",null,null,null,null,null,"AISI 316L (data from 2002 or 2006)",null,null,"AISI 316L (data from 2005 or 2002)","AISI 316L (data from 2005 or 2002)",null,null,null,null,null,null,null,null,null,null,null,null,null,"AISI 316L (data from 2002 or 2006)"]
[null,null,null,"S/E 18: Filtrate manifold",null,"Carbon steel","FRP",null,"AISI 304L","AISI 316L","U45N","AISI 904L","AISI 904L","AISI 904L","DIN 4435","AISI 316L","AISI 316L",null,"POLYPROPYLEN","AISI 304L","FRP","FRP","CSRL","FRP","FRP","CSRL","FRP","FRP","Carbon steel","POLYPROPYLEN","CSRL","POLYPROPYLEN","CSRL","CSRL","CSRL",null,"CSRL","CSRL","CSRL","CSRL","POLYPROPYLEN",null,"AISI 316L","AISI 316L",null,"AISI 316L","AISI 316L","AISI 316L","Carbon steel","AISI 316L",null,"CSRL","AISI 316L","AISI 316L","AISI 316L","AISI 316L","AISI 316L","AISI 316L",null,"U45N","U45N","U45N","U45N","AISI 316L","U45N","SVR","FRP","FRP","U45N",null,null,null,null,null,null,null,null,null,null,null,null,null,null,null,null,null,null,null,null,null,null,null,null,null,null,null,null,null,null,null,null,null,null,null,null,null,null,null,null,null,null,null,null,null,null,null,null,null,null,null,null,null,null,null,null,null,null,null,null,null,null,null,null,null,null,null,null,null,null,null,null,null,null,null,null,null,null,null,null,null,null,null,null,null,null,null,null,null,null,null,null,null,null,null,null,null,null,null,null,null,null,null,null,null,null,null,null,"DERAKANE 411 350",null,null,null,null,null,null,null,null,null,null,null,null,null,null,null,null,null,null,null,null,null,null,null,null,null,null,null,null,null,null,null,null,null,null,null,null,null,null,null,null,"AISI 904L (data from 1996, 2008 or 2014)","AISI 904L (data from 1996, 2008 or 2014)","AISI 904L (data from 1996, 2008 or 2014)",null,null,null,null,null,"AISI 316L (data from 2002 or 2006)",null,null,"U45N (data from 2005 or 2002)","U45N (data from 2005 or 2002)",null,null,null,null,null,null,null,null,null,null,null,null,null,"AISI 316L (data from 2002 or 2006)"]
[null,null,null,"S/E 21: Safety guards"]
[null,null,null,"S/E 33: Vacuum pump"]
[null,null,null,"S/E 34: Filtrate pump"]
[null,null,null,"S/E 40: Pneumatic equipment"]
[null,null,null,"S/E 43: Barometric filtrate seal tank"]
[null,null,null,"S/E 51: VBF Electrical equipment"]
[null,null,null,"S/E 70: Filtrate receiver",null,"Carbon steel","Polypropylen",null,"AISI 304L","AISI 316L","U45N","AISI 904L","AISI 316L","AISI 316L","AISI 316L","AISI 316L","AISI 316L",null,"FRP","AISI 304L","FRP","FRP","CSRL","CSRL","FRP","CSRL","CSRL","FRP","Carbon steel","CSRL","CSRL","CSRL","CSRL","CSRL","CSRL",null,"CSRL","CSRL","CSRL","CSRL","FRP",null,"AISI 316L","AISI 316L",null,"AISI 316L","AISI 316L","AISI 316L","Carbon steel","AISI 316L",null,"Carbon steel","AISI 316L","AISI 316L","AISI 316L","AISI 316L","AISI 316L","AISI 316L",null,"U45N","U45N","U45N","U45N","AISI 316L","U45N","Acier caoutchouc","FRP","FRP","U45N",null,null,null,null,null,null,null,null,null,null,null,null,null,null,null,null,null,null,null,null,null,null,null,null,null,null,null,null,null,null,null,null,null,null,null,null,null,null,null,null,null,null,null,null,null,null,null,null,null,null,null,null,null,null,null,null,null,null,null,null,null,null,null,null,null,null,null,null,null,null,null,null,null,null,null,null,null,null,null,null,null,null,null,null,null,null,null,null,null,null,null,null,null,null,null,null,null,null,null,null,null,null,null,null,null,null,null,null,null,null,null,null,null,null,null,null,null,null,null,null,null,null,null,null,null,null,null,null,null,null,null,null,null,null,null,null,null,null,null,null,null,null,null,null,null,null,null,null,null,"EXCLU ?? (data from 1996, 2008 or 2014)","EXCLU ?? (data from 1996, 2008 or 2014)","EXCLU ?? (data from 1996, 2008 or 2014)",null,null,null,null,null,"??? (data from 2002 or 2006)",null,null,"MSRL (data from 2005 or 2002)","MSRL (data from 2005 or 2002)",null,null,null,null,null,null,null,null,null,null,null,null,null,"??? (data from 2002 or 2006)"]
[null,null,null,"S/E 75: Moisture trap"]
[]
[]
[]
[]
[]
[]
[]
[]
[null,"Vaccum box","Section"]
[null,"Feed dam roller","Slurry entrance dam"]
[null,"Pulp distributor","Slurry Distributor"]
[null,"Wash trough","Cloth and belt wash water collecting tank"]
[null,"Discharge tollers","discharge roller"]
[null,"Cake hopper","Cake discharge hopper"]
[null,"Cloth wash water pan","Cloth wash water pan"]
[null,"Wcloth wash header","Cloth and belt washing"]
[null,"Belt support rollers","Belt support roller"]
[null,"Cloth return roller","Cloth return roller"]
[null,"Vacuum box support frame","Vacuum box support frame"]
[null,"Frame/Bolt","Frame"]
[null,"Rubber belt","Rubber belt"]
[null,"Belt support frame","belt support table"]
[null,"Filtrate connection","?"]
[null,"Receiver","?"]
[]
[]
[]
[]
[]
[]
[]
[]
[]
[]
[]
[]
[]
[]
[]
[]
[]
[]
[null,null,null,null,null,null,null,null,null,{"$f":"J161","v":0}]
[]
[]
[]
[]
[]
[]
[]
[]
[]
[]
[]
[null,null,null,null,null,null,null,null,"Filter","Collection through"]
[]
[]
[]
[]
[null,null,null,null,null,null,null,null,"Accessoires","Seal tank for filtrate"]
[null,null,null,null,null,null,null,null,"Accessoires","cake washing water tank"]
[null,null,null,null,null,null,null,null,"Accessoires","Filtrate pump"]
[null,null,null,null,null,null,null,null,"Accessoires","Vacuum pump"]
[]
[null,null,null,null,null,null,null,null,null,"Rouleau d'entrée"]
[null,null,null,null,null,null,null,null,null,"Goulotte"]
[null,null,null,null,null,null,null,null,null,"Rouleaux de sortie"]
[null,null,null,null,null,null,null,null,null,"Goulotte lavage toile"]
[null,null,null,null,null,null,null,null,null,"Rampes lavage toile "]
[null,null,null,null,null,null,null,null,null,"Rouleaux soutien bande"]
[null,null,null,null,null,null,null,null,null,"Rouleaux retour toile"]
[null,null,null,null,null,null,null,null,null,"Support BàV"]
[null,null,null,null,null,null,null,null,null,"Table"]
[null,null,null,null,null,null,null,null,null,"Bande"]
[null,null,null,null,null,null,null,null,null,"Tuyau interne"]
[null,null,null,null,null,null,null,null,null,"Collecteur"]
[null,null,null,null,null,null,null,null,null,"Nourrice"]
[]
[null,null,null,null,null,null,null,null,null,"Feed dam roller"]
[null,null,null,null,null,null,null,null,null,"Wash trough"]
[null,null,null,null,null,null,null,null,null,"cloth wash water pan"]
[null,null,null,null,null,null,null,null,null,"cloth wash header"]
[null,null,null,null,null,null,null,null,null,"cloth return roller"]
[null,null,null,null,null,null,null,null,null,"vacuum box support frame"]
[null,null,null,null,null,null,null,null,null,"belt support frame"]
[null,null,null,null,null,null,null,null,null,"Vaccum box "]

{"sheet":"Pivot table","index":2,"n_rows":27,"n_cols":1,"rows_kept":27,"cut":false,"hidden":false,"merged":[]}
["Étiquettes de lignes"]
["Alginate acids"]
["Alginate extract - concentrated slurry"]
["Alginate extract - light slurry"]
["Alliara 10 - Seaweed + Sulfuric acid"]
["Alliaria 10 - Hydrated Seaweed"]
["Alliaria 10 - Seaweed + citric acid"]
["Aluminium slags"]
["Betainex (K2SO4) "]
["Boues CIBA / chargées en soude"]
["ByPass Dust"]
["CaCO3"]
["Enzymatic Hydrolysis of Pretreated Wood"]
["Gypsum balls"]
["Gypsum LUGP (Uranium)"]
["Hydrated seaweed"]
["Leach residue + Gypsum + precipitates HPG (Uranium)"]
["Leach Residue + Tailings  HP"]
["Neutralized Leach Residue HGNLR"]
["Phosphate"]
["Plaster /  Sulfate Hemihydrate"]
["Potash"]
["Soda Ash"]
["UNLR - Leach Residue (Uranium)"]
["Vinasse Safralic (K2SO4)"]
["Yellow cake YC"]
["Total général"]

{"sheet":"Market list","index":3,"n_rows":25,"n_cols":1,"rows_kept":25,"cut":false,"hidden":false,"merged":[]}
["Market"]
["CCH - A2 Cement"]
["CCH - E4 Technical Silica (and Bulk)"]
["CCH - F5 Cement and kiln dust dosing"]
["CCH - H4 Soda Ash"]
["CCH - other"]
["MMF - A1 Phosphoric Acid"]
["MMF - A3 Phosphate Rock"]
["MMF - B1 Phosphated Fertilizers (MAP,DAP,TSP,DCP …)"]
["MMF - I3 Lithium"]
["MMF - L3 Zinc and cadmium"]
["MMF - N3 Nickel, Cobalt and Manganese"]
["MMF - Other"]
["ENV - A5 FGD (Flue-gas & kiln dust/alternative fuels desulfurization)"]
["ENV - B5 Water Treatment"]
["ENV - E5 Industrial Waste Water Treatment"]
["ENV - Other"]
["DEV - A4 Feed (additives)"]
["DEV - B4 CERAMIC & MATERIALS (Catalyst,proppants)"]
["DEV - D4   Sealant - Bonding - Adhesives"]
["DEV - F4 Battery Pastes"]
["DEV - G4 Specialty Polymers and resins and compounds"]
["DEV - I4 Aminated Acids / vitamins / specialty acids (lactic, citric…)"]
["DEV - J3 Metals recycling"]
["DEV - Other"]

{"sheet":"Drop-down list","index":4,"n_rows":52,"n_cols":4,"rows_kept":52,"cut":false,"hidden":false,"merged":[]}
["Market","Submarket","Application","Product"]
["CCH","N3 Nickel, Cobalt and Manganese","Hydrometallurgy","Nickel Ore"]
["MMF","L3 Zinc and cadmium","FGD","NiSO4"]
["ENV","J3 Metals recycling","POTASH","Carbonate nickel"]
["DEV","D3 Uranium","SODA ASH","Ferro nickel concentrate"]
[null,"F3 Copper","PHOSPHORIC ACID","Goro Nickel"]
[null,"T3 Other metals","PHOSPHATE ROCK","Zinc residue"]
[null,"A5 FGD (Flue-gas-desulfurization)","Aluminium slags","Leach residue"]
[null,"C3 Potash Brine, NaCl, Mg Salts","Tartaric acid","Jarosite"]
[null,"H4 Soda Ash","Methionine Raw","BZS"]
[null,"A1 Phosphoric acid","Methionine Pure","Al slags"]
[null,"A3 Phosphate rock","CaSO4","Uranium peroxide"]
[null,"F3 Copper (hydrometallurgy)","Citric acid","Copper oxide"]
[null,"I4 Aminated Acids / vitamins / specialty acids (lactic, citric…)","Methionine","Dichromate sodium"]
[null,null,"Hydrasine chlorhydrate","FGD (Gypsum)"]
[null,null,"Amine acid","Halite"]
[null,null,"Threonine","Halite waste"]
[null,null,"Glutamate","Sylvinite"]
[null,null,"Gallic acid","NaCl Sylvinite"]
[null,null,"Lactic acid","Sylvinite (KCl + NaCl)"]
[null,null,"Methionine Extr.","Carnalitte KCl MgCl2"]
[null,null,null,"Carnalitte KCl MgCl3"]
[null,null,null,"Carnallite"]
[null,null,null,"KCl"]
[null,null,null,"Tails"]
[null,null,null,"Salt"]
[null,null,null,"NaCl SEPARATION"]
[null,null,null,"KCl Sylvite"]
[null,null,null,"NaHCO3"]
[null,null,null,"Fluosilicate"]
[null,null,null,"Chemical product"]
[null,null,null,"H3PO4 - Sludge"]
[null,null,null,"H3PO4 - 30% Dihydrate"]
[null,null,null,"H3PO4 - Defluoration"]
[null,null,null,"Phosphogypsum"]
[null,null,null,"Pilot unit"]
[null,null,null,"H3PO4"]
[null,null,null,"H3PO4 + HCL"]
[null,null,null,"Aluminium Fluoride"]
[null,null,null,"H3PO4 - 54% Clarificat"]
[null,null,null,"H3PO4 - 50% hemihydrate"]
[null,null,null,"H3PO4 - 42% Clarificat"]
[null,null,null,"Acid sludges"]
[null,null,null,"Phosphoric acid"]
[null,null,null,"Phosphate Ore"]
[null,null,null,"Apatite"]
[null,null,null,"Tar Sand"]
[null,null,null,"Gas desulfuris"]
[null,null,null,"Copper"]
[null,null,null,"Copper oxychloride"]
[null,null,null,"Copper powder"]
[null,null,null,"Copper tailings"]